 Batch Number,Vendor Name,Invoice Number, Line,Line Amount,Account Description,Issue Date ,Total Amount Paid
261113D,WOLF SAFETY LAMP CO LTD=======,0000021691,1,"2,500.00",GENERAL CONSUMABLES,02/12/13,"2,500.00"
181113G,HEALTH MANAGEMENT LIMITED=====,0000105171,1,700.00,CONSULTANTS,02/12/13,700.00
281113F,ENTEL UK LTD==================,0000133488,1,9.00,RADIO,02/12/13,328.17
281113F,ENTEL UK LTD==================,0000133488,2,52.15,RADIO,02/12/13,
281113F,ENTEL UK LTD==================,0000133488,3,106.66,RADIO,02/12/13,
281113F,ENTEL UK LTD==================,0000133488,4,44.50,RADIO,02/12/13,
281113F,ENTEL UK LTD==================,0000133488,5,47.36,RADIO,02/12/13,
281113F,ENTEL UK LTD==================,0000133488,6,68.50,RADIO,02/12/13,
271113C,HOLIDAY INN LONDON BLOOMSBURY,0001395530,1,"2,725.00",PROFESSIONAL DEVELOPMENT,02/12/13,"2,725.00"
140469,OGILVIE FLEET LTD=============,00262276,1,"1,806.21",LEASE CAR CHARGES,02/12/13,"1,806.21"
281113F,FIRE PREVENTION PRODUCTS LTD==,045468,1,"1,798.52",OPERATIONAL EQUIP-PURCHASE,02/12/13,"1,798.52"
281113F,FIRE PREVENTION PRODUCTS LTD==,045470,1,634.77,OPERATIONAL EQUIP-PURCHASE,02/12/13,634.77
281113F,FIRE PREVENTION PRODUCTS LTD==,045472,1,"1,322.44",OPERATIONAL EQUIP-PURCHASE,02/12/13,"1,322.44"
261113D,AFFINITY WATER,101029070,1,714.00,CURRENT HYDRANT COSTS,02/12/13,714.00
271113C,REGENT OFFICE CARE LTD========,10124,1,190.44,STRATEGIC (CYCLICAL),02/12/13,"8,395.23"
271113C,REGENT OFFICE CARE LTD========,10124,2,158.70,STRATEGIC (CYCLICAL),02/12/13,
271113C,REGENT OFFICE CARE LTD========,10124,3,158.70,STRATEGIC (CYCLICAL),02/12/13,
271113C,REGENT OFFICE CARE LTD========,10124,4,158.70,STRATEGIC (CYCLICAL),02/12/13,
271113C,REGENT OFFICE CARE LTD========,10124,5,158.70,STRATEGIC (CYCLICAL),02/12/13,
271113C,REGENT OFFICE CARE LTD========,10124,6,158.70,STRATEGIC (CYCLICAL),02/12/13,
271113C,REGENT OFFICE CARE LTD========,10124,7,158.70,STRATEGIC (CYCLICAL),02/12/13,
271113C,REGENT OFFICE CARE LTD========,10124,8,190.44,STRATEGIC (CYCLICAL),02/12/13,
271113C,REGENT OFFICE CARE LTD========,10124,9,158.70,STRATEGIC (CYCLICAL),02/12/13,
271113C,REGENT OFFICE CARE LTD========,10124,10,190.44,STRATEGIC (CYCLICAL),02/12/13,
271113C,REGENT OFFICE CARE LTD========,10124,11,190.44,STRATEGIC (CYCLICAL),02/12/13,
271113C,REGENT OFFICE CARE LTD========,10124,12,158.70,STRATEGIC (CYCLICAL),02/12/13,
271113C,REGENT OFFICE CARE LTD========,10124,13,190.44,STRATEGIC (CYCLICAL),02/12/13,
271113C,REGENT OFFICE CARE LTD========,10124,14,190.44,STRATEGIC (CYCLICAL),02/12/13,
271113C,REGENT OFFICE CARE LTD========,10124,15,222.18,STRATEGIC (CYCLICAL),02/12/13,
271113C,REGENT OFFICE CARE LTD========,10124,16,190.44,STRATEGIC (CYCLICAL),02/12/13,
271113C,REGENT OFFICE CARE LTD========,10124,17,158.70,STRATEGIC (CYCLICAL),02/12/13,
271113C,REGENT OFFICE CARE LTD========,10124,18,190.44,STRATEGIC (CYCLICAL),02/12/13,
271113C,REGENT OFFICE CARE LTD========,10124,19,190.44,STRATEGIC (CYCLICAL),02/12/13,
271113C,REGENT OFFICE CARE LTD========,10124,20,190.44,STRATEGIC (CYCLICAL),02/12/13,
271113C,REGENT OFFICE CARE LTD========,10124,21,190.44,STRATEGIC (CYCLICAL),02/12/13,
271113C,REGENT OFFICE CARE LTD========,10124,22,158.70,STRATEGIC (CYCLICAL),02/12/13,
271113C,REGENT OFFICE CARE LTD========,10124,23,190.44,STRATEGIC (CYCLICAL),02/12/13,
271113C,REGENT OFFICE CARE LTD========,10124,24,158.70,STRATEGIC (CYCLICAL),02/12/13,
271113C,REGENT OFFICE CARE LTD========,10124,25,158.70,STRATEGIC (CYCLICAL),02/12/13,
271113C,REGENT OFFICE CARE LTD========,10124,26,190.44,STRATEGIC (CYCLICAL),02/12/13,
271113C,REGENT OFFICE CARE LTD========,10124,27,190.44,STRATEGIC (CYCLICAL),02/12/13,
271113C,REGENT OFFICE CARE LTD========,10124,28,190.44,STRATEGIC (CYCLICAL),02/12/13,
271113C,REGENT OFFICE CARE LTD========,10124,29,190.44,STRATEGIC (CYCLICAL),02/12/13,
271113C,REGENT OFFICE CARE LTD========,10124,30,190.44,STRATEGIC (CYCLICAL),02/12/13,
271113C,REGENT OFFICE CARE LTD========,10124,31,158.70,STRATEGIC (CYCLICAL),02/12/13,
271113C,REGENT OFFICE CARE LTD========,10124,32,190.44,STRATEGIC (CYCLICAL),02/12/13,
271113C,REGENT OFFICE CARE LTD========,10124,33,174.57,STRATEGIC (CYCLICAL),02/12/13,
271113C,REGENT OFFICE CARE LTD========,10124,34,158.70,STRATEGIC (CYCLICAL),02/12/13,
271113C,REGENT OFFICE CARE LTD========,10124,35,190.44,STRATEGIC (CYCLICAL),02/12/13,
271113C,REGENT OFFICE CARE LTD========,10124,36,158.70,STRATEGIC (CYCLICAL),02/12/13,
271113C,REGENT OFFICE CARE LTD========,10124,37,158.70,STRATEGIC (CYCLICAL),02/12/13,
271113C,REGENT OFFICE CARE LTD========,10124,38,190.44,STRATEGIC (CYCLICAL),02/12/13,
271113C,REGENT OFFICE CARE LTD========,10124,39,190.44,STRATEGIC (CYCLICAL),02/12/13,
271113C,REGENT OFFICE CARE LTD========,10124,40,190.44,STRATEGIC (CYCLICAL),02/12/13,
271113C,REGENT OFFICE CARE LTD========,10124,41,190.44,STRATEGIC (CYCLICAL),02/12/13,
271113C,REGENT OFFICE CARE LTD========,10124,42,158.70,STRATEGIC (CYCLICAL),02/12/13,
271113C,REGENT OFFICE CARE LTD========,10124,43,190.44,STRATEGIC (CYCLICAL),02/12/13,
271113C,REGENT OFFICE CARE LTD========,10124,44,190.44,STRATEGIC (CYCLICAL),02/12/13,
271113C,REGENT OFFICE CARE LTD========,10124,45,190.44,STRATEGIC (CYCLICAL),02/12/13,
271113C,REGENT OFFICE CARE LTD========,10124,46,190.44,STRATEGIC (CYCLICAL),02/12/13,
271113C,REGENT OFFICE CARE LTD========,10124,47,158.70,STRATEGIC (CYCLICAL),02/12/13,
800026242,*GET YOURSELF NOTICED LTD,10182,1,305.00,PUBLIC RELATIONS,02/12/13,305.00
800026241,*GET YOURSELF NOTICED LTD,10309,1,"1,288.00",PUBLIC RELATIONS,02/12/13,"1,288.00"
800026527,*JAMES HUNTER (OUTFITTERS) LTD,107357,1,350.66,CLOTHING,02/12/13,350.66
261113D,INFOR (UNITED KINGDOM) LIMITED,11307312-GB04G,1,"1,150.00",MAINTENANCE & SUPPORT,02/12/13,"1,686.66"
261113D,INFOR (UNITED KINGDOM) LIMITED,11307312-GB04G,2,536.66,MAINTENANCE & SUPPORT,02/12/13,
271113C,VISTA LANDSCAPE MANAGEMENT LTD,119012,1,300.00,GROUNDS MAINTENANCE,02/12/13,775.00
271113C,VISTA LANDSCAPE MANAGEMENT LTD,119012,2,325.00,GROUNDS MAINTENANCE,02/12/13,
271113C,VISTA LANDSCAPE MANAGEMENT LTD,119012,3,150.00,GROUNDS MAINTENANCE,02/12/13,
271113C,VISTA LANDSCAPE MANAGEMENT LTD,119013,1,237.50,GROUNDS MAINTENANCE,02/12/13,"4,055.00"
271113C,VISTA LANDSCAPE MANAGEMENT LTD,119013,2,287.50,GROUNDS MAINTENANCE,02/12/13,
271113C,VISTA LANDSCAPE MANAGEMENT LTD,119013,3,287.50,GROUNDS MAINTENANCE,02/12/13,
271113C,VISTA LANDSCAPE MANAGEMENT LTD,119013,4,237.50,GROUNDS MAINTENANCE,02/12/13,
271113C,VISTA LANDSCAPE MANAGEMENT LTD,119013,5,50.00,GROUNDS MAINTENANCE,02/12/13,
271113C,VISTA LANDSCAPE MANAGEMENT LTD,119013,6,137.50,GROUNDS MAINTENANCE,02/12/13,
271113C,VISTA LANDSCAPE MANAGEMENT LTD,119013,7,412.50,GROUNDS MAINTENANCE,02/12/13,
271113C,VISTA LANDSCAPE MANAGEMENT LTD,119013,8,287.50,GROUNDS MAINTENANCE,02/12/13,
271113C,VISTA LANDSCAPE MANAGEMENT LTD,119013,9,287.50,GROUNDS MAINTENANCE,02/12/13,
271113C,VISTA LANDSCAPE MANAGEMENT LTD,119013,10,287.50,GROUNDS MAINTENANCE,02/12/13,
271113C,VISTA LANDSCAPE MANAGEMENT LTD,119013,11,287.50,GROUNDS MAINTENANCE,02/12/13,
271113C,VISTA LANDSCAPE MANAGEMENT LTD,119013,12,287.50,GROUNDS MAINTENANCE,02/12/13,
271113C,VISTA LANDSCAPE MANAGEMENT LTD,119013,13,50.00,GROUNDS MAINTENANCE,02/12/13,
271113C,VISTA LANDSCAPE MANAGEMENT LTD,119013,14,175.00,GROUNDS MAINTENANCE,02/12/13,
271113C,VISTA LANDSCAPE MANAGEMENT LTD,119013,15,412.50,GROUNDS MAINTENANCE,02/12/13,
271113C,VISTA LANDSCAPE MANAGEMENT LTD,119013,16,150.00,GROUNDS MAINTENANCE,02/12/13,
271113C,VISTA LANDSCAPE MANAGEMENT LTD,119013,17,180.00,GROUNDS MAINTENANCE,02/12/13,
271113C,VISTA LANDSCAPE MANAGEMENT LTD,119014,1,150.00,GROUNDS MAINTENANCE,02/12/13,"2,450.00"
271113C,VISTA LANDSCAPE MANAGEMENT LTD,119014,2,137.50,GROUNDS MAINTENANCE,02/12/13,
271113C,VISTA LANDSCAPE MANAGEMENT LTD,119014,3,137.50,GROUNDS MAINTENANCE,02/12/13,
271113C,VISTA LANDSCAPE MANAGEMENT LTD,119014,4,137.50,GROUNDS MAINTENANCE,02/12/13,
271113C,VISTA LANDSCAPE MANAGEMENT LTD,119014,5,137.50,GROUNDS MAINTENANCE,02/12/13,
271113C,VISTA LANDSCAPE MANAGEMENT LTD,119014,6,137.50,GROUNDS MAINTENANCE,02/12/13,
271113C,VISTA LANDSCAPE MANAGEMENT LTD,119014,7,137.50,GROUNDS MAINTENANCE,02/12/13,
271113C,VISTA LANDSCAPE MANAGEMENT LTD,119014,8,137.50,GROUNDS MAINTENANCE,02/12/13,
271113C,VISTA LANDSCAPE MANAGEMENT LTD,119014,9,175.00,GROUNDS MAINTENANCE,02/12/13,
271113C,VISTA LANDSCAPE MANAGEMENT LTD,119014,10,62.50,GROUNDS MAINTENANCE,02/12/13,
271113C,VISTA LANDSCAPE MANAGEMENT LTD,119014,11,87.50,GROUNDS MAINTENANCE,02/12/13,
271113C,VISTA LANDSCAPE MANAGEMENT LTD,119014,12,187.50,GROUNDS MAINTENANCE,02/12/13,
271113C,VISTA LANDSCAPE MANAGEMENT LTD,119014,13,37.50,GROUNDS MAINTENANCE,02/12/13,
271113C,VISTA LANDSCAPE MANAGEMENT LTD,119014,14,312.50,GROUNDS MAINTENANCE,02/12/13,
271113C,VISTA LANDSCAPE MANAGEMENT LTD,119014,15,475.00,GROUNDS MAINTENANCE,02/12/13,
281113F,SIGN GRAPHIC DESIGN,127/745,1,650.00,DAY TO DAY MINOR IMPS,02/12/13,650.00
140470,MR JAMES TODD=================,171764A,1,"2,670.00",COUNSELS FEES,02/12/13,"2,670.00"
140470,MR PARISHIL PATEL,181864PATEL,1,"1,890.00",COUNSELS FEES,02/12/13,"1,890.00"
251113C,HILTON CARDIFF,211113,1,958.33,PROFESSIONAL DEVELOPMENT,02/12/13,958.33
271113C,AUTOGLASS LIMITED=============,22316311,1,546.20,WINDSCREEN & TYRE CHARGES,02/12/13,546.20
271113C,CARPETS & FLOOR COVERS DIRECT=,2320,1,674.30,FIXTURES & FITTINGS,02/12/13,674.30
271113C,CARPETS & FLOOR COVERS DIRECT=,2321,1,510.50,FIXTURES & FITTINGS,02/12/13,510.50
271113C,BRISTOL UNIFORMS LTD==========,236286,1,725.99,CLOTHING,02/12/13,725.99
271113C,BRISTOL UNIFORMS LTD==========,236287,1,"1,784.10",CLOTHING,02/12/13,"1,784.10"
271113C,BRISTOL UNIFORMS LTD==========,236288,1,"192,411.72",CLOTHING,02/12/13,"192,411.72"
271113C,CHILLISAUCE LTD,26000,1,937.50,PROFESSIONAL DEVELOPMENT,02/12/13,937.50
800026502,ADECCO UK LIMITED=============,26612117,1,"1,105.30",FRS STAFF AGENCY,02/12/13,"1,105.30"
800026503,ADECCO UK LIMITED=============,26612118,1,"1,375.11",FRS STAFF AGENCY,02/12/13,"1,375.11"
800026504,ADECCO UK LIMITED=============,26612119,1,439.60,FRS STAFF AGENCY,02/12/13,439.60
800026505,ADECCO UK LIMITED=============,26612120,1,"2,500.00",FRS STAFF AGENCY,02/12/13,"2,500.00"
800026506,ADECCO UK LIMITED=============,26612121,1,475.72,FRS STAFF AGENCY,02/12/13,475.72
800026507,ADECCO UK LIMITED=============,26612122,1,594.65,FRS STAFF AGENCY,02/12/13,594.65
800026508,ADECCO UK LIMITED=============,26612123,1,356.79,FRS STAFF AGENCY,02/12/13,356.79
800026511,ADECCO UK LIMITED=============,26612125,1,439.60,FRS STAFF AGENCY,02/12/13,439.60
800026512,ADECCO UK LIMITED=============,26612126,1,356.79,FRS STAFF AGENCY,02/12/13,356.79
800026513,ADECCO UK LIMITED=============,26612127,1,"1,949.85",FRS STAFF AGENCY,02/12/13,"1,949.85"
800026514,ADECCO UK LIMITED=============,26612128,1,543.68,FRS STAFF AGENCY,02/12/13,543.68
800026515,ADECCO UK LIMITED=============,26612129,1,945.42,FRS STAFF AGENCY,02/12/13,945.42
800026516,ADECCO UK LIMITED=============,26612130,1,"1,450.89",FRS STAFF AGENCY,02/12/13,"1,450.89"
800026517,ADECCO UK LIMITED=============,26612131,1,263.76,FRS STAFF AGENCY,02/12/13,263.76
800026518,ADECCO UK LIMITED=============,26612132,1,"1,686.30",FRS STAFF AGENCY,02/12/13,"1,686.30"
800026519,ADECCO UK LIMITED=============,26612133,1,594.65,FRS STAFF AGENCY,02/12/13,594.65
800026530,ADECCO UK LIMITED=============,26612134,1,866.95,FRS STAFF AGENCY,02/12/13,866.95
800026520,ADECCO UK LIMITED=============,26612136,1,439.60,FRS STAFF AGENCY,02/12/13,439.60
800026521,ADECCO UK LIMITED=============,26612137,1,994.50,FRS STAFF AGENCY,02/12/13,994.50
800026529,ADECCO UK LIMITED=============,26615457,1,710.50,CONSULTANTS,02/12/13,710.50
271113C,CHANGING YOUNG MINDS,271113,1,300.00,PROFESSIONAL DEVELOPMENT,02/12/13,300.00
140469,FOCUS & VISION TECHNOLOGY LTD,37414,1,420.26,MEDICAL EXPENSES,02/12/13,420.26
140469,FOCUS & VISION TECHNOLOGY LTD,37443,1,921.70,MEDICAL EXPENSES,02/12/13,921.70
140469,THAMES WATER UTILITIES LTD====,3772999268D,1,478.68,WATER & SEWERAGE RATES,02/12/13,478.68
151113D,COMPUTACENTRE================,3805206695,1,530.90,ACQUISITIONS,02/12/13,530.90
140470,THOMSON REUTERS PROFESSIONAL,4500407344,1,381.94,BOOKS & JOURNALS,02/12/13,779.00
140470,THOMSON REUTERS PROFESSIONAL,4500407344,2,397.06,BOOKS & JOURNALS,02/12/13,
201113D,GRAHAM MALTBY,48,1,"3,000.00",CONSULTANTS,02/12/13,"3,173.81"
201113D,GRAHAM MALTBY,48,2,173.81,CONSULTANTS,02/12/13,
281113F,R J HOLLAND LTD===============,4834,1,"8,955.00",STRATEGIC (NON CYCLICAL),02/12/13,"9,885.00"
281113F,R J HOLLAND LTD===============,4834,2,930.00,STRATEGIC (NON CYCLICAL),02/12/13,
261113D,TOYOTA MATERIAL HANDLING UK LT,610081989,1,909.99,PURCHASE,02/12/13,909.99
271113C,SWETS,6700309295,1,"1,477.98",BOOKS & JOURNALS,02/12/13,"1,477.98"
281113F,THE HAY GROUP MANAGEMENT LTD==,835-3742,1,550.00,CONSULTANTS,02/12/13,550.00
281113F,THE HAY GROUP MANAGEMENT LTD==,835-3743,1,850.00,CONSULTANTS,02/12/13,850.00
140470,MS JEMMA LEE,88616,1,750.00,COUNSELS FEES,02/12/13,750.00
151113D,CAPITA SECURE INFO SOLUTIONS,93268647,1,836.19,CONSULTANTS,02/12/13,836.19
140469,THAMES WATER UTILITIES LTD====,9406020576J,1,318.30,WATER & SEWERAGE RATES,02/12/13,318.30
140469,THAMES WATER UTILITIES LTD====,95240-85193Z,1,"1,458.36",WATER & SEWERAGE RATES,02/12/13,"1,458.36"
221113G,TNT UK LIMITED================,9572736,1,648.00,POSTAL SERVICES,02/12/13,648.00
261113D,CAPITAL CAPTURE LTD===========,9936,1,"4,603.20",MAINTENANCE & SUPPORT,02/12/13,"11,548.20"
261113D,CAPITAL CAPTURE LTD===========,9936,2,"2,700.00",MAINTENANCE & SUPPORT,02/12/13,
261113D,CAPITAL CAPTURE LTD===========,9936,3,800.00,MAINTENANCE & SUPPORT,02/12/13,
261113D,CAPITAL CAPTURE LTD===========,9936,4,"3,445.00",MAINTENANCE & SUPPORT,02/12/13,
140470,MISS REBECCA THOMAS===========,99746,1,"1,150.00",COUNSELS FEES,02/12/13,"1,150.00"
261113D,THAMES WATER UTILITIES LTD====,CBA1313133,1,"1,120.00",CURRENT HYDRANT COSTS,02/12/13,"1,120.00"
261113D,VIP===========================,INV-46243,1,273.95,GENERAL CONSUMABLES,02/12/13,273.95
251113G,BALFOUR BEATTY WORKPLACE LTD,M124773,1,385.35,STRATEGIC (CYCLICAL),02/12/13,"6,936.30"
251113G,BALFOUR BEATTY WORKPLACE LTD,M124773,2,385.35,STRATEGIC (CYCLICAL),02/12/13,
251113G,BALFOUR BEATTY WORKPLACE LTD,M124773,3,385.35,STRATEGIC (CYCLICAL),02/12/13,
251113G,BALFOUR BEATTY WORKPLACE LTD,M124773,4,385.35,STRATEGIC (CYCLICAL),02/12/13,
251113G,BALFOUR BEATTY WORKPLACE LTD,M124773,5,385.35,STRATEGIC (CYCLICAL),02/12/13,
251113G,BALFOUR BEATTY WORKPLACE LTD,M124773,6,385.35,STRATEGIC (CYCLICAL),02/12/13,
251113G,BALFOUR BEATTY WORKPLACE LTD,M124773,7,385.35,STRATEGIC (CYCLICAL),02/12/13,
251113G,BALFOUR BEATTY WORKPLACE LTD,M124773,8,385.35,STRATEGIC (CYCLICAL),02/12/13,
251113G,BALFOUR BEATTY WORKPLACE LTD,M124773,9,385.35,STRATEGIC (CYCLICAL),02/12/13,
251113G,BALFOUR BEATTY WORKPLACE LTD,M124773,10,385.35,STRATEGIC (CYCLICAL),02/12/13,
251113G,BALFOUR BEATTY WORKPLACE LTD,M124773,11,385.35,STRATEGIC (CYCLICAL),02/12/13,
251113G,BALFOUR BEATTY WORKPLACE LTD,M124773,12,385.35,STRATEGIC (CYCLICAL),02/12/13,
251113G,BALFOUR BEATTY WORKPLACE LTD,M124773,13,385.35,STRATEGIC (CYCLICAL),02/12/13,
251113G,BALFOUR BEATTY WORKPLACE LTD,M124773,14,385.35,STRATEGIC (CYCLICAL),02/12/13,
251113G,BALFOUR BEATTY WORKPLACE LTD,M124773,15,385.35,STRATEGIC (CYCLICAL),02/12/13,
251113G,BALFOUR BEATTY WORKPLACE LTD,M124773,16,385.35,STRATEGIC (CYCLICAL),02/12/13,
251113G,BALFOUR BEATTY WORKPLACE LTD,M124773,17,385.35,STRATEGIC (CYCLICAL),02/12/13,
251113G,BALFOUR BEATTY WORKPLACE LTD,M124773,18,385.35,STRATEGIC (CYCLICAL),02/12/13,
221113C,BALFOUR BEATTY WORKPLACE LTD,M124774,1,"1,272.03",STRATEGIC (CYCLICAL),02/12/13,"1,272.03"
191113C,HUNTER LODGE==================,S-015042,1,500.00,ADVERTISING,02/12/13,500.00
271113C,BERENDSEN UK LTD,SN1499726,1,"9,856.88",LAUNDRY,02/12/13,"9,856.88"
800026233,*XMA LTD,U281432,1,365.15,STATIONERY CONSUMABLES,02/12/13,365.15
800026238,*XMA LTD,U281602,1,67.40,STATIONERY CONSUMABLES,02/12/13,283.74
800026238,*XMA LTD,U281602,2,54.55,STATIONERY CONSUMABLES,02/12/13,
800026238,*XMA LTD,U281602,3,51.23,STATIONERY CONSUMABLES,02/12/13,
800026238,*XMA LTD,U281602,4,55.28,STATIONERY CONSUMABLES,02/12/13,
800026238,*XMA LTD,U281602,5,55.28,STATIONERY CONSUMABLES,02/12/13,
261113D,BRITISH TELECOM===============,VP71178070M19601QR,1,"3,529.34",CALL CHARGES,02/12/13,"90,167.59"
261113D,BRITISH TELECOM===============,VP71178070M19601QR,2,"86,638.25",TELECOMMUNICATIONS,02/12/13,
140474,M & M MEDICAL REPORTS,8298FC,1,"3,312.90",DOCTORS/MEDICAL FEES,03/12/13,"3,312.90"
140474,THE LAW SOCIETY===============,LEXCELA,1,300.00,PROFESSIONAL FEES GENERAL,03/12/13,300.00
291113G,GOVNET COMMUNICATIONS=========,0000060581,1,537.00,PROFESSIONAL DEVELOPMENT,05/12/13,537.00
291113G,ENTEL UK LTD==================,0000130878,1,53.33,RADIO,05/12/13,290.74
291113G,ENTEL UK LTD==================,0000130878,2,48.63,RADIO,05/12/13,
291113G,ENTEL UK LTD==================,0000130878,3,38.00,RADIO,05/12/13,
291113G,ENTEL UK LTD==================,0000130878,4,58.60,RADIO,05/12/13,
291113G,ENTEL UK LTD==================,0000130878,5,36.43,RADIO,05/12/13,
291113G,ENTEL UK LTD==================,0000130878,6,46.75,RADIO,05/12/13,
291113G,ENTEL UK LTD==================,0000130878,7,9.00,RADIO,05/12/13,
291113G,TURNER & TOWNSEND PROJECT MNGT,000541117,1,"10,645.00",PROF FEES-MISCELLANEOUS,05/12/13,"10,645.00"
181113C,GEORGE JONES & SON LTD========,036661,1,"15,321.03",STRATEGIC (NON CYCLICAL),05/12/13,"15,321.03"
251113C,HAYS ACCOUNTANCY & FINANCE====,1003769528,1,696.00,FRS STAFF AGENCY,05/12/13,696.00
291113G,CARILLION COMMUNICATIONS LTD==,1011911,1,485.00,TACTICAL DAY TO DAY,05/12/13,485.00
291113C,*APTCO========================,101763,1,360.00,OPERATIONAL EQUIP-PURCHASE,05/12/13,360.00
291113G,*SPRUE SAFETY PRODUCTS LTD====,1052185,1,626.00,FIRE DETECTORS,05/12/13,626.00
021213D,*SPRUE SAFETY PRODUCTS LTD====,1052197,1,"1,377.20",FIRE DETECTORS,05/12/13,"1,377.20"
291113G,INFOR (UNITED KINGDOM) LIMITED,11307307-GB04G,1,"2,140.00",MAINTENANCE & SUPPORT,05/12/13,"2,140.00"
181113G,PRESSURE SEAL SOLUTIONS LTD===,11989,1,394.32,STATIONERY CONSUMABLES,05/12/13,394.32
271113C,YOUGOV PLC,128572,1,"2,300.00",CONSULTANTS,05/12/13,"2,300.00"
021213D,ATKINS LIMITED================,13029046,1,"7,425.00",MAINTENANCE & SUPPORT,05/12/13,"8,420.00"
021213D,ATKINS LIMITED================,13029046,2,995.00,MAINTENANCE & SUPPORT,05/12/13,
291113G,PA ASSOCIATES (UK) LTD========,13082,1,"8,008.39",DEVELOPMENT  EXPENSES-CONTRACT,05/12/13,"8,008.39"
021213D,DITTON ELECTRICAL CONTRACTS LT,14106,1,"27,938.16",PURCHASES-COMPUTER/EQUIPMENT,05/12/13,"27,938.16"
291113G,UK TAPES LTD==================,148916,1,967.20,GENERAL CONSUMABLES,05/12/13,967.20
021213D,VECTOR COMMAND LTD============,1539,1,"2,800.00",ACQUISITIONS,05/12/13,"2,800.00"
021213D,TIGER MAINTENANCE LTD=========,16567,1,"6,698.13",MAINTENANCE & SUPPORT,05/12/13,"6,698.13"
021213D,ENERGY AUDITING AGENCY LTD====,20132162,1,499.00,PROFESSIONAL SERVICES,05/12/13,499.00
221113C,SAFEGUARD PEST CON. & ENV.LTD,211803,1,680.00,PEST CONTROL,05/12/13,680.00
221113C,SAFEGUARD PEST CON. & ENV.LTD,211810,1,550.00,PEST CONTROL,05/12/13,550.00
140474,MISS BO-EUN JUNG==============,231867*,1,630.00,PROFESSIONAL FEES ENFORCEMENT,05/12/13,630.00
800026531,ADECCO UK LIMITED=============,26612135,1,866.95,FRS STAFF AGENCY,05/12/13,866.95
140472,THAMES WATER UTILITIES LTD====,2963180521=,1,354.97,WATER & SEWERAGE RATES,05/12/13,354.97
291113G,HANDS FREE COMPUTING LTD======,30406,1,345.00,ACQUISITIONS,05/12/13,404.95
291113G,HANDS FREE COMPUTING LTD======,30406,2,59.95,ACQUISITIONS,05/12/13,
021213D,SPECTRUM======================,3203,1,650.00,SPECIALIST EQUIPMENT,05/12/13,650.00
191113C,COMPUTACENTRE================,3805211387,1,777.80,ACQUISITIONS,05/12/13,777.80
291113G,ROWAN O'DUFFY=================,4031113,1,523.00,PROFESSIONAL SERVICES,05/12/13,523.00
291113G,AUDIT COMMISSION==============,4043866,1,500.00,EXTERNAL AUDIT,05/12/13,500.00
291113G,AUDIT COMMISSION==============,4044901,1,500.00,EXTERNAL AUDIT,05/12/13,500.00
140472,THAMES WATER UTILITIES LTD====,4133578144M,1,292.90,WATER & SEWERAGE RATES,05/12/13,292.90
291113G,WILLMOTT DIXON CONSTRUCTION,442425,1,"172,497.69",DEVELOPMENT  EXPENSES-CONTRACT,05/12/13,"172,497.69"
021213D,SPORTSAFE UK LTD==============,451283,1,145.00,GYM EQUIPMENT,05/12/13,547.14
021213D,SPORTSAFE UK LTD==============,451283,2,207.76,GYM EQUIPMENT,05/12/13,
021213D,SPORTSAFE UK LTD==============,451283,3,73.94,GYM EQUIPMENT,05/12/13,
021213D,SPORTSAFE UK LTD==============,451283,4,51.44,GYM EQUIPMENT,05/12/13,
021213D,SPORTSAFE UK LTD==============,451283,5,69.00,GYM EQUIPMENT,05/12/13,
291113C,R J HOLLAND LTD===============,4842,1,797.00,STRATEGIC (NON CYCLICAL),05/12/13,797.00
291113C,R J HOLLAND LTD===============,4843,1,897.00,STRATEGIC (NON CYCLICAL),05/12/13,897.00
291113C,R J HOLLAND LTD===============,4844,1,"2,370.00",STRATEGIC (NON CYCLICAL),05/12/13,"2,370.00"
291113C,R J HOLLAND LTD===============,4845,1,"2,196.00",STRATEGIC (NON CYCLICAL),05/12/13,"2,196.00"
800026297,*GREENHAM TRADING LTD=========,5619076,1,6.72,HYGIENE,05/12/13,350.89
800026297,*GREENHAM TRADING LTD=========,5619076,2,16.86,HYGIENE,05/12/13,
800026297,*GREENHAM TRADING LTD=========,5619076,3,34.80,HYGIENE,05/12/13,
800026297,*GREENHAM TRADING LTD=========,5619076,4,4.62,HYGIENE,05/12/13,
800026297,*GREENHAM TRADING LTD=========,5619076,5,3.90,HYGIENE,05/12/13,
800026297,*GREENHAM TRADING LTD=========,5619076,6,9.78,HYGIENE,05/12/13,
800026297,*GREENHAM TRADING LTD=========,5619076,7,3.80,HYGIENE,05/12/13,
800026297,*GREENHAM TRADING LTD=========,5619076,8,46.50,HYGIENE,05/12/13,
800026297,*GREENHAM TRADING LTD=========,5619076,9,41.10,HYGIENE,05/12/13,
800026297,*GREENHAM TRADING LTD=========,5619076,10,10.70,HYGIENE,05/12/13,
800026297,*GREENHAM TRADING LTD=========,5619076,11,40.75,HYGIENE,05/12/13,
800026297,*GREENHAM TRADING LTD=========,5619076,12,12.40,HYGIENE,05/12/13,
800026297,*GREENHAM TRADING LTD=========,5619076,13,12.40,HYGIENE,05/12/13,
800026297,*GREENHAM TRADING LTD=========,5619076,14,2.52,HYGIENE,05/12/13,
800026297,*GREENHAM TRADING LTD=========,5619076,15,41.10,HYGIENE,05/12/13,
800026297,*GREENHAM TRADING LTD=========,5619076,16,5.04,HYGIENE,05/12/13,
800026297,*GREENHAM TRADING LTD=========,5619076,17,10.70,HYGIENE,05/12/13,
800026297,*GREENHAM TRADING LTD=========,5619076,18,14.60,HYGIENE,05/12/13,
800026297,*GREENHAM TRADING LTD=========,5619076,19,32.60,HYGIENE,05/12/13,
800026298,*GREENHAM TRADING LTD=========,5619077,1,43.24,HYGIENE,05/12/13,265.93
800026298,*GREENHAM TRADING LTD=========,5619077,2,32.60,HYGIENE,05/12/13,
800026298,*GREENHAM TRADING LTD=========,5619077,3,34.58,HYGIENE,05/12/13,
800026298,*GREENHAM TRADING LTD=========,5619077,4,32.43,HYGIENE,05/12/13,
800026298,*GREENHAM TRADING LTD=========,5619077,5,16.86,HYGIENE,05/12/13,
800026298,*GREENHAM TRADING LTD=========,5619077,6,6.72,HYGIENE,05/12/13,
800026298,*GREENHAM TRADING LTD=========,5619077,7,3.10,HYGIENE,05/12/13,
800026298,*GREENHAM TRADING LTD=========,5619077,8,8.76,HYGIENE,05/12/13,
800026298,*GREENHAM TRADING LTD=========,5619077,9,6.72,HYGIENE,05/12/13,
800026298,*GREENHAM TRADING LTD=========,5619077,10,11.56,HYGIENE,05/12/13,
800026298,*GREENHAM TRADING LTD=========,5619077,11,4.96,HYGIENE,05/12/13,
800026298,*GREENHAM TRADING LTD=========,5619077,12,10.70,HYGIENE,05/12/13,
800026298,*GREENHAM TRADING LTD=========,5619077,13,2.83,HYGIENE,05/12/13,
800026298,*GREENHAM TRADING LTD=========,5619077,14,3.59,HYGIENE,05/12/13,
800026298,*GREENHAM TRADING LTD=========,5619077,15,1.18,HYGIENE,05/12/13,
800026298,*GREENHAM TRADING LTD=========,5619077,16,9.88,HYGIENE,05/12/13,
800026298,*GREENHAM TRADING LTD=========,5619077,17,3.12,CATERING EQUIPMENT,05/12/13,
800026298,*GREENHAM TRADING LTD=========,5619077,18,22.44,HYGIENE,05/12/13,
800026298,*GREENHAM TRADING LTD=========,5619077,19,4.62,HYGIENE,05/12/13,
800026298,*GREENHAM TRADING LTD=========,5619077,20,6.04,HYGIENE,05/12/13,
800026299,*GREENHAM TRADING LTD=========,5619079,1,42.48,HYGIENE,05/12/13,351.39
800026299,*GREENHAM TRADING LTD=========,5619079,2,18.60,HYGIENE,05/12/13,
800026299,*GREENHAM TRADING LTD=========,5619079,3,10.08,HYGIENE,05/12/13,
800026299,*GREENHAM TRADING LTD=========,5619079,4,16.44,HYGIENE,05/12/13,
800026299,*GREENHAM TRADING LTD=========,5619079,5,12.84,HYGIENE,05/12/13,
800026299,*GREENHAM TRADING LTD=========,5619079,6,32.60,HYGIENE,05/12/13,
800026299,*GREENHAM TRADING LTD=========,5619079,7,218.35,HYGIENE,05/12/13,
800026315,*GREENHAM TRADING LTD=========,5619096,1,32.89,HYGIENE,05/12/13,282.86
800026315,*GREENHAM TRADING LTD=========,5619096,2,33.12,OPERATIONAL EQUIP-PURCHASE,05/12/13,
800026315,*GREENHAM TRADING LTD=========,5619096,3,50.26,HYGIENE,05/12/13,
800026315,*GREENHAM TRADING LTD=========,5619096,4,16.86,HYGIENE,05/12/13,
800026315,*GREENHAM TRADING LTD=========,5619096,5,6.72,HYGIENE,05/12/13,
800026315,*GREENHAM TRADING LTD=========,5619096,6,8.76,HYGIENE,05/12/13,
800026315,*GREENHAM TRADING LTD=========,5619096,7,7.60,HYGIENE,05/12/13,
800026315,*GREENHAM TRADING LTD=========,5619096,8,4.20,HYGIENE,05/12/13,
800026315,*GREENHAM TRADING LTD=========,5619096,9,4.24,HYGIENE,05/12/13,
800026315,*GREENHAM TRADING LTD=========,5619096,10,5.20,CATERING EQUIPMENT,05/12/13,
800026315,*GREENHAM TRADING LTD=========,5619096,11,32.10,HYGIENE,05/12/13,
800026315,*GREENHAM TRADING LTD=========,5619096,12,6.52,HYGIENE,05/12/13,
800026315,*GREENHAM TRADING LTD=========,5619096,13,4.02,HYGIENE,05/12/13,
800026315,*GREENHAM TRADING LTD=========,5619096,14,8.99,HYGIENE,05/12/13,
800026315,*GREENHAM TRADING LTD=========,5619096,15,10.88,HYGIENE,05/12/13,
800026315,*GREENHAM TRADING LTD=========,5619096,16,15.21,HYGIENE,05/12/13,
800026315,*GREENHAM TRADING LTD=========,5619096,17,2.68,HYGIENE,05/12/13,
800026315,*GREENHAM TRADING LTD=========,5619096,18,10.70,HYGIENE,05/12/13,
800026315,*GREENHAM TRADING LTD=========,5619096,19,5.61,HYGIENE,05/12/13,
800026315,*GREENHAM TRADING LTD=========,5619096,20,16.30,HYGIENE,05/12/13,
140472,LONDON PENSIONS FUND AUTHORITY,7049,1,"85,470.60",LOCAL GOVT PENSION SCHEME PAYM,05/12/13,"85,470.60"
021213D,CANON (UK) LTD===============,770443738,1,225.05,OFFICE EQUIPMENT,05/12/13,450.10
021213D,CANON (UK) LTD===============,770443738,2,225.05,OFFICE EQUIPMENT,05/12/13,
291113G,SHARPE PRITCHARD==============,77340,1,"18,289.00",GENERAL,05/12/13,"18,289.00"
271113C,SHARPE PRITCHARD==============,77341,1,405.00,CONSULTANTS,05/12/13,405.00
140472,THAMES WATER UTILITIES LTD====,79390-93283K,1,592.20,WATER & SEWERAGE RATES,05/12/13,592.20
140474,MR SIMON EDWARDS============,8181864,1,"1,715.00",COUNSELS FEES,05/12/13,"1,715.00"
021213D,EJT ASSOCIATES LIMITED========,868,1,400.00,CONSULTANTS,05/12/13,400.00
261113D,DRAEGER SAFETY UK LIMITED=====,90430432,1,54.10,PROTECTIVE EQUIPT - PARTS,05/12/13,"1,242.18"
261113D,DRAEGER SAFETY UK LIMITED=====,90430432,2,339.40,PROTECTIVE EQUIPT - PARTS,05/12/13,
261113D,DRAEGER SAFETY UK LIMITED=====,90430432,3,311.20,PROTECTIVE EQUIPT - PARTS,05/12/13,
261113D,DRAEGER SAFETY UK LIMITED=====,90430432,4,177.30,PROTECTIVE EQUIPT - PARTS,05/12/13,
261113D,DRAEGER SAFETY UK LIMITED=====,90430432,5,342.18,PROTECTIVE EQUIPT - PARTS,05/12/13,
261113D,DRAEGER SAFETY UK LIMITED=====,90430432,6,18.00,PROTECTIVE EQUIPT - PARTS,05/12/13,
291113G,DRAEGER SAFETY UK LIMITED=====,90430612,1,725.00,PROTECTIVE EQUIPT - PARTS,05/12/13,"1,064.00"
291113G,DRAEGER SAFETY UK LIMITED=====,90430612,2,339.00,PROTECTIVE EQUIPT - PARTS,05/12/13,
291113G,DRAEGER SAFETY UK LIMITED=====,90430621,1,381.90,PROTECTIVE EQUIPT - PARTS,05/12/13,432.70
291113G,DRAEGER SAFETY UK LIMITED=====,90430621,2,50.80,PROTECTIVE EQUIPT - PARTS,05/12/13,
291113C,NORTHUMBRIAN WATER LTD========,913057509,1,"1,194.55",CURRENT HYDRANT COSTS,05/12/13,"1,194.55"
291113C,NORTHUMBRIAN WATER LTD========,91305755X,1,893.00,CURRENT HYDRANT COSTS,05/12/13,893.00
291113C,NORTHUMBRIAN WATER LTD========,913057568,1,301.00,CURRENT HYDRANT COSTS,05/12/13,301.00
291113C,NORTHUMBRIAN WATER LTD========,913057576,1,301.00,CURRENT HYDRANT COSTS,05/12/13,301.00
291113C,NORTHUMBRIAN WATER LTD========,913057584,1,893.00,CURRENT HYDRANT COSTS,05/12/13,893.00
291113C,NORTHUMBRIAN WATER LTD========,913057614,1,893.00,CURRENT HYDRANT COSTS,05/12/13,893.00
291113C,NORTHUMBRIAN WATER LTD========,913057630,1,301.00,CURRENT HYDRANT COSTS,05/12/13,301.00
291113C,NORTHUMBRIAN WATER LTD========,913057657,1,893.00,CURRENT HYDRANT COSTS,05/12/13,893.00
291113C,NORTHUMBRIAN WATER LTD========,913057665,1,893.00,CURRENT HYDRANT COSTS,05/12/13,893.00
291113C,NORTHUMBRIAN WATER LTD========,913057673,1,"1,056.00",CURRENT HYDRANT COSTS,05/12/13,"1,056.00"
291113C,NORTHUMBRIAN WATER LTD========,913057681,1,893.00,CURRENT HYDRANT COSTS,05/12/13,893.00
291113C,NORTHUMBRIAN WATER LTD========,91305769X,1,316.00,CURRENT HYDRANT COSTS,05/12/13,316.00
140477,DANIEL WEBB,AD5787,1,300.00,REFRESHMENTS,05/12/13,300.00
291113G,PITNEY BOWES PURCHASE POWER,BB103390,1,"9,790.81",POSTAL SERVICES,05/12/13,"9,790.81"
291113G,CFOA (SERVICES) LTD===========,CSL13450,1,225.00,PROFESSIONAL DEVELOPMENT,05/12/13,787.50
291113G,CFOA (SERVICES) LTD===========,CSL13450,2,300.00,PROFESSIONAL DEVELOPMENT,05/12/13,
291113G,CFOA (SERVICES) LTD===========,CSL13450,3,112.50,PROFESSIONAL DEVELOPMENT,05/12/13,
291113G,CFOA (SERVICES) LTD===========,CSL13450,4,150.00,PROFESSIONAL DEVELOPMENT,05/12/13,
140472,LONDON PENSIONS FUND AUTHORITY,ER936,1,"80,027.50",LOCAL GOVT PENSION SCHEME PAYM,05/12/13,"80,027.50"
291113G,KIER BUILDING SERV ENGINEERS==,F00046120,1,446.65,TACTICAL DAY TO DAY,05/12/13,"6,725.13"
291113G,KIER BUILDING SERV ENGINEERS==,F00046120,2,496.47,TACTICAL DAY TO DAY,05/12/13,
291113G,KIER BUILDING SERV ENGINEERS==,F00046120,3,26.29,TACTICAL DAY TO DAY,05/12/13,
291113G,KIER BUILDING SERV ENGINEERS==,F00046120,4,116.55,TACTICAL DAY TO DAY,05/12/13,
291113G,KIER BUILDING SERV ENGINEERS==,F00046120,5,"1,441.70",TACTICAL DAY TO DAY,05/12/13,
291113G,KIER BUILDING SERV ENGINEERS==,F00046120,6,"1,236.94",TACTICAL DAY TO DAY,05/12/13,
291113G,KIER BUILDING SERV ENGINEERS==,F00046120,7,115.68,TACTICAL DAY TO DAY,05/12/13,
291113G,KIER BUILDING SERV ENGINEERS==,F00046120,8,184.05,TACTICAL DAY TO DAY,05/12/13,
291113G,KIER BUILDING SERV ENGINEERS==,F00046120,9,31.46,TACTICAL DAY TO DAY,05/12/13,
291113G,KIER BUILDING SERV ENGINEERS==,F00046120,10,205.07,TACTICAL DAY TO DAY,05/12/13,
291113G,KIER BUILDING SERV ENGINEERS==,F00046120,11,189.58,TACTICAL DAY TO DAY,05/12/13,
291113G,KIER BUILDING SERV ENGINEERS==,F00046120,12,144.27,TACTICAL DAY TO DAY,05/12/13,
291113G,KIER BUILDING SERV ENGINEERS==,F00046120,13,849.34,TACTICAL DAY TO DAY,05/12/13,
291113G,KIER BUILDING SERV ENGINEERS==,F00046120,14,189.55,TACTICAL DAY TO DAY,05/12/13,
291113G,KIER BUILDING SERV ENGINEERS==,F00046120,15,161.90,TACTICAL DAY TO DAY,05/12/13,
291113G,KIER BUILDING SERV ENGINEERS==,F00046120,16,190.31,TACTICAL DAY TO DAY,05/12/13,
291113G,KIER BUILDING SERV ENGINEERS==,F00046120,17,369.60,TACTICAL DAY TO DAY,05/12/13,
291113G,KIER BUILDING SERV ENGINEERS==,F00046120,18,52.52,TACTICAL DAY TO DAY,05/12/13,
291113G,KIER BUILDING SERV ENGINEERS==,F00046120,19,40.48,TACTICAL DAY TO DAY,05/12/13,
291113G,KIER BUILDING SERV ENGINEERS==,F00046120,20,183.95,TACTICAL DAY TO DAY,05/12/13,
291113G,KIER BUILDING SERV ENGINEERS==,F00046120,21,52.77,TACTICAL DAY TO DAY,05/12/13,
021213D,KIER BUILDING SERV ENGINEERS==,F00046140,1,115.00,DAY TO DAY MINOR IMPS,05/12/13,687.00
021213D,KIER BUILDING SERV ENGINEERS==,F00046140,2,114.00,STRATEGIC (NON CYCLICAL),05/12/13,
021213D,KIER BUILDING SERV ENGINEERS==,F00046140,3,115.00,DAY TO DAY MINOR IMPS,05/12/13,
021213D,KIER BUILDING SERV ENGINEERS==,F00046140,4,114.00,STRATEGIC (NON CYCLICAL),05/12/13,
021213D,KIER BUILDING SERV ENGINEERS==,F00046140,5,115.00,DAY TO DAY MINOR IMPS,05/12/13,
021213D,KIER BUILDING SERV ENGINEERS==,F00046140,6,114.00,STRATEGIC (NON CYCLICAL),05/12/13,
291113C,KIER BUILDING SERV ENGINEERS==,F00046142,1,740.44,STRATEGIC (CYCLICAL),05/12/13,740.44
291113C,KIER BUILDING SERV ENGINEERS==,F00046146,1,686.64,CATERING FIXTURES,05/12/13,686.64
291113C,KIER BUILDING SERV ENGINEERS==,F00046149,1,756.87,CATERING FIXTURES,05/12/13,756.87
291113C,KIER BUILDING SERV ENGINEERS==,F00046150,1,686.64,CATERING FIXTURES,05/12/13,686.64
291113C,KIER BUILDING SERV ENGINEERS==,F00046151,1,686.64,CATERING FIXTURES,05/12/13,686.64
291113C,KIER BUILDING SERV ENGINEERS==,F00046152,1,686.64,CATERING FIXTURES,05/12/13,686.64
291113C,KIER BUILDING SERV ENGINEERS==,F00046153,1,944.59,CATERING FIXTURES,05/12/13,944.59
291113C,KIER BUILDING SERV ENGINEERS==,F00046154,1,"2,314.37",STRATEGIC (CYCLICAL),05/12/13,"2,314.37"
291113C,KIER BUILDING SERV ENGINEERS==,F00046163,1,"2,699.62",STRATEGIC (CYCLICAL),05/12/13,"2,699.62"
140474,THOMPSONS=====================,G1360179,1,337.50,CLAIMANT COSTS AGREED,05/12/13,337.50
291113G,WM ENGINEERING SERVICES LTD===,I-4595,1,279.00,TACTICAL DAY TO DAY,05/12/13,279.00
140472,IMSERV,INV149320,1,70.44,ELECTRICITY,05/12/13,352.20
140472,IMSERV,INV149320,2,70.44,ELECTRICITY,05/12/13,
140472,IMSERV,INV149320,3,140.88,ELECTRICITY,05/12/13,
140472,IMSERV,INV149320,4,70.44,ELECTRICITY,05/12/13,
140472,IMSERV,INV149524,1,"2,069.10",ELECTRICITY,05/12/13,"2,069.10"
140474,THOMPSONS=====================,J12C0077,2,"3,250.00",CLAIMANT COSTS AGREED,05/12/13,"3,250.00"
291113G,THE METANOIA INSTITUTE,M140037,1,831.43,CONSULTANTS,05/12/13,831.43
291113G,CANNON'S MSA LTD,NV1067795,1,447.50,GENERAL CONSUMABLES,05/12/13,447.50
021213D,PHOENIX SOFTWARE LTD==========,OP/I710122,1,"1,359.00",MAINTENANCE & SUPPORT,05/12/13,"4,608.00"
021213D,PHOENIX SOFTWARE LTD==========,OP/I710122,2,"3,249.00",MAINTENANCE & SUPPORT,05/12/13,
800026581,ALLSTAR BUSINESS SOLUTIONS LTD,P2001962131,1,"1,080.13",FUEL,05/12/13,"20,270.18"
800026581,ALLSTAR BUSINESS SOLUTIONS LTD,P2001962131,2,635.03,FUEL,05/12/13,
800026581,ALLSTAR BUSINESS SOLUTIONS LTD,P2001962131,3,614.66,FUEL,05/12/13,
800026581,ALLSTAR BUSINESS SOLUTIONS LTD,P2001962131,4,602.39,FUEL,05/12/13,
800026581,ALLSTAR BUSINESS SOLUTIONS LTD,P2001962131,5,552.44,FUEL,05/12/13,
800026581,ALLSTAR BUSINESS SOLUTIONS LTD,P2001962131,6,479.60,FUEL,05/12/13,
800026581,ALLSTAR BUSINESS SOLUTIONS LTD,P2001962131,7,398.10,FUEL,05/12/13,
800026581,ALLSTAR BUSINESS SOLUTIONS LTD,P2001962131,8,392.91,FUEL,05/12/13,
800026581,ALLSTAR BUSINESS SOLUTIONS LTD,P2001962131,9,356.16,FUEL,05/12/13,
800026581,ALLSTAR BUSINESS SOLUTIONS LTD,P2001962131,10,339.54,FUEL,05/12/13,
800026581,ALLSTAR BUSINESS SOLUTIONS LTD,P2001962131,11,326.63,FUEL,05/12/13,
800026581,ALLSTAR BUSINESS SOLUTIONS LTD,P2001962131,12,321.29,FUEL,05/12/13,
800026581,ALLSTAR BUSINESS SOLUTIONS LTD,P2001962131,13,321.28,FUEL,05/12/13,
800026581,ALLSTAR BUSINESS SOLUTIONS LTD,P2001962131,14,320.14,FUEL,05/12/13,
800026581,ALLSTAR BUSINESS SOLUTIONS LTD,P2001962131,15,318.62,FUEL,05/12/13,
800026581,ALLSTAR BUSINESS SOLUTIONS LTD,P2001962131,16,304.51,FUEL,05/12/13,
800026581,ALLSTAR BUSINESS SOLUTIONS LTD,P2001962131,17,303.09,FUEL,05/12/13,
800026581,ALLSTAR BUSINESS SOLUTIONS LTD,P2001962131,18,298.17,FUEL,05/12/13,
800026581,ALLSTAR BUSINESS SOLUTIONS LTD,P2001962131,19,295.66,FUEL,05/12/13,
800026581,ALLSTAR BUSINESS SOLUTIONS LTD,P2001962131,20,288.36,FUEL,05/12/13,
800026581,ALLSTAR BUSINESS SOLUTIONS LTD,P2001962131,21,281.62,FUEL,05/12/13,
800026581,ALLSTAR BUSINESS SOLUTIONS LTD,P2001962131,22,265.01,FUEL,05/12/13,
800026581,ALLSTAR BUSINESS SOLUTIONS LTD,P2001962131,23,260.05,FUEL,05/12/13,
800026581,ALLSTAR BUSINESS SOLUTIONS LTD,P2001962131,24,256.08,FUEL,05/12/13,
800026581,ALLSTAR BUSINESS SOLUTIONS LTD,P2001962131,25,245.12,FUEL,05/12/13,
800026581,ALLSTAR BUSINESS SOLUTIONS LTD,P2001962131,26,234.97,FUEL,05/12/13,
800026581,ALLSTAR BUSINESS SOLUTIONS LTD,P2001962131,27,230.67,FUEL,05/12/13,
800026581,ALLSTAR BUSINESS SOLUTIONS LTD,P2001962131,28,228.62,FUEL,05/12/13,
800026581,ALLSTAR BUSINESS SOLUTIONS LTD,P2001962131,29,212.02,FUEL,05/12/13,
800026581,ALLSTAR BUSINESS SOLUTIONS LTD,P2001962131,30,204.18,FUEL,05/12/13,
800026581,ALLSTAR BUSINESS SOLUTIONS LTD,P2001962131,31,199.48,FUEL,05/12/13,
800026581,ALLSTAR BUSINESS SOLUTIONS LTD,P2001962131,32,198.43,FUEL,05/12/13,
800026581,ALLSTAR BUSINESS SOLUTIONS LTD,P2001962131,33,193.85,FUEL,05/12/13,
800026581,ALLSTAR BUSINESS SOLUTIONS LTD,P2001962131,34,193.21,FUEL,05/12/13,
800026581,ALLSTAR BUSINESS SOLUTIONS LTD,P2001962131,35,191.97,FUEL,05/12/13,
800026581,ALLSTAR BUSINESS SOLUTIONS LTD,P2001962131,36,185.18,FUEL,05/12/13,
800026581,ALLSTAR BUSINESS SOLUTIONS LTD,P2001962131,37,184.37,FUEL,05/12/13,
800026581,ALLSTAR BUSINESS SOLUTIONS LTD,P2001962131,38,182.56,FUEL,05/12/13,
800026581,ALLSTAR BUSINESS SOLUTIONS LTD,P2001962131,39,181.39,FUEL,05/12/13,
800026581,ALLSTAR BUSINESS SOLUTIONS LTD,P2001962131,40,177.72,FUEL,05/12/13,
800026581,ALLSTAR BUSINESS SOLUTIONS LTD,P2001962131,41,175.77,FUEL,05/12/13,
800026581,ALLSTAR BUSINESS SOLUTIONS LTD,P2001962131,42,174.03,FUEL,05/12/13,
800026581,ALLSTAR BUSINESS SOLUTIONS LTD,P2001962131,43,171.92,FUEL,05/12/13,
800026581,ALLSTAR BUSINESS SOLUTIONS LTD,P2001962131,44,168.95,FUEL,05/12/13,
800026581,ALLSTAR BUSINESS SOLUTIONS LTD,P2001962131,45,162.49,FUEL,05/12/13,
800026581,ALLSTAR BUSINESS SOLUTIONS LTD,P2001962131,46,157.81,FUEL,05/12/13,
800026581,ALLSTAR BUSINESS SOLUTIONS LTD,P2001962131,47,155.84,FUEL,05/12/13,
800026581,ALLSTAR BUSINESS SOLUTIONS LTD,P2001962131,48,155.43,FUEL,05/12/13,
800026581,ALLSTAR BUSINESS SOLUTIONS LTD,P2001962131,49,147.92,FUEL,05/12/13,
800026581,ALLSTAR BUSINESS SOLUTIONS LTD,P2001962131,50,146.64,FUEL,05/12/13,
800026581,ALLSTAR BUSINESS SOLUTIONS LTD,P2001962131,51,145.27,FUEL,05/12/13,
800026581,ALLSTAR BUSINESS SOLUTIONS LTD,P2001962131,52,144.51,FUEL,05/12/13,
800026581,ALLSTAR BUSINESS SOLUTIONS LTD,P2001962131,53,139.12,FUEL,05/12/13,
800026581,ALLSTAR BUSINESS SOLUTIONS LTD,P2001962131,54,138.33,FUEL,05/12/13,
800026581,ALLSTAR BUSINESS SOLUTIONS LTD,P2001962131,55,137.35,FUEL,05/12/13,
800026581,ALLSTAR BUSINESS SOLUTIONS LTD,P2001962131,56,135.89,FUEL,05/12/13,
800026581,ALLSTAR BUSINESS SOLUTIONS LTD,P2001962131,57,135.67,FUEL,05/12/13,
800026581,ALLSTAR BUSINESS SOLUTIONS LTD,P2001962131,58,133.78,FUEL,05/12/13,
800026581,ALLSTAR BUSINESS SOLUTIONS LTD,P2001962131,59,132.43,FUEL,05/12/13,
800026581,ALLSTAR BUSINESS SOLUTIONS LTD,P2001962131,60,131.91,FUEL,05/12/13,
800026581,ALLSTAR BUSINESS SOLUTIONS LTD,P2001962131,61,131.65,FUEL,05/12/13,
800026581,ALLSTAR BUSINESS SOLUTIONS LTD,P2001962131,62,131.00,FUEL,05/12/13,
800026581,ALLSTAR BUSINESS SOLUTIONS LTD,P2001962131,63,129.63,FUEL,05/12/13,
800026581,ALLSTAR BUSINESS SOLUTIONS LTD,P2001962131,64,128.45,FUEL,05/12/13,
800026581,ALLSTAR BUSINESS SOLUTIONS LTD,P2001962131,65,125.32,FUEL,05/12/13,
800026581,ALLSTAR BUSINESS SOLUTIONS LTD,P2001962131,66,121.46,FUEL,05/12/13,
800026581,ALLSTAR BUSINESS SOLUTIONS LTD,P2001962131,67,120.98,FUEL,05/12/13,
800026581,ALLSTAR BUSINESS SOLUTIONS LTD,P2001962131,68,118.09,FUEL,05/12/13,
800026581,ALLSTAR BUSINESS SOLUTIONS LTD,P2001962131,69,117.63,FUEL,05/12/13,
800026581,ALLSTAR BUSINESS SOLUTIONS LTD,P2001962131,70,115.81,FUEL,05/12/13,
800026581,ALLSTAR BUSINESS SOLUTIONS LTD,P2001962131,71,114.92,FUEL,05/12/13,
800026581,ALLSTAR BUSINESS SOLUTIONS LTD,P2001962131,72,113.80,FUEL,05/12/13,
800026581,ALLSTAR BUSINESS SOLUTIONS LTD,P2001962131,73,112.20,FUEL,05/12/13,
800026581,ALLSTAR BUSINESS SOLUTIONS LTD,P2001962131,74,111.70,FUEL,05/12/13,
800026581,ALLSTAR BUSINESS SOLUTIONS LTD,P2001962131,75,111.48,FUEL,05/12/13,
800026581,ALLSTAR BUSINESS SOLUTIONS LTD,P2001962131,76,109.65,FUEL,05/12/13,
800026581,ALLSTAR BUSINESS SOLUTIONS LTD,P2001962131,77,109.37,FUEL,05/12/13,
800026581,ALLSTAR BUSINESS SOLUTIONS LTD,P2001962131,78,109.33,FUEL,05/12/13,
800026581,ALLSTAR BUSINESS SOLUTIONS LTD,P2001962131,79,109.01,FUEL,05/12/13,
800026581,ALLSTAR BUSINESS SOLUTIONS LTD,P2001962131,80,106.46,FUEL,05/12/13,
800026581,ALLSTAR BUSINESS SOLUTIONS LTD,P2001962131,81,103.08,FUEL,05/12/13,
800026581,ALLSTAR BUSINESS SOLUTIONS LTD,P2001962131,82,102.02,FUEL,05/12/13,
800026581,ALLSTAR BUSINESS SOLUTIONS LTD,P2001962131,83,99.94,FUEL,05/12/13,
800026581,ALLSTAR BUSINESS SOLUTIONS LTD,P2001962131,84,98.59,FUEL,05/12/13,
800026581,ALLSTAR BUSINESS SOLUTIONS LTD,P2001962131,85,97.94,FUEL,05/12/13,
800026581,ALLSTAR BUSINESS SOLUTIONS LTD,P2001962131,86,97.82,FUEL,05/12/13,
800026581,ALLSTAR BUSINESS SOLUTIONS LTD,P2001962131,87,97.22,FUEL,05/12/13,
800026581,ALLSTAR BUSINESS SOLUTIONS LTD,P2001962131,88,95.17,FUEL,05/12/13,
800026581,ALLSTAR BUSINESS SOLUTIONS LTD,P2001962131,89,91.67,FUEL,05/12/13,
800026581,ALLSTAR BUSINESS SOLUTIONS LTD,P2001962131,90,86.71,FUEL,05/12/13,
800026581,ALLSTAR BUSINESS SOLUTIONS LTD,P2001962131,91,85.25,FUEL,05/12/13,
800026581,ALLSTAR BUSINESS SOLUTIONS LTD,P2001962131,92,85.11,FUEL,05/12/13,
800026581,ALLSTAR BUSINESS SOLUTIONS LTD,P2001962131,93,84.13,FUEL,05/12/13,
800026581,ALLSTAR BUSINESS SOLUTIONS LTD,P2001962131,94,83.44,FUEL,05/12/13,
800026581,ALLSTAR BUSINESS SOLUTIONS LTD,P2001962131,95,82.23,FUEL,05/12/13,
800026581,ALLSTAR BUSINESS SOLUTIONS LTD,P2001962131,96,74.07,FUEL,05/12/13,
800026581,ALLSTAR BUSINESS SOLUTIONS LTD,P2001962131,97,69.36,FUEL,05/12/13,
800026581,ALLSTAR BUSINESS SOLUTIONS LTD,P2001962131,98,65.05,FUEL,05/12/13,
800026581,ALLSTAR BUSINESS SOLUTIONS LTD,P2001962131,99,61.68,FUEL,05/12/13,
800026581,ALLSTAR BUSINESS SOLUTIONS LTD,P2001962131,100,60.00,FUEL,05/12/13,
800026581,ALLSTAR BUSINESS SOLUTIONS LTD,P2001962131,101,56.62,FUEL,05/12/13,
800026581,ALLSTAR BUSINESS SOLUTIONS LTD,P2001962131,102,53.37,FUEL,05/12/13,
800026581,ALLSTAR BUSINESS SOLUTIONS LTD,P2001962131,103,49.45,FUEL,05/12/13,
800026581,ALLSTAR BUSINESS SOLUTIONS LTD,P2001962131,104,43.96,FUEL,05/12/13,
800026581,ALLSTAR BUSINESS SOLUTIONS LTD,P2001962131,105,40.38,FUEL,05/12/13,
800026581,ALLSTAR BUSINESS SOLUTIONS LTD,P2001962131,106,34.66,FUEL,05/12/13,
800026581,ALLSTAR BUSINESS SOLUTIONS LTD,P2001962131,107,29.49,FUEL,05/12/13,
800026581,ALLSTAR BUSINESS SOLUTIONS LTD,P2001962131,108,26.08,FUEL,05/12/13,
800026581,ALLSTAR BUSINESS SOLUTIONS LTD,P2001962131,109,21.48,FUEL,05/12/13,
021213D,PILLINGER CONTROLS LTD========,PI72102,1,"2,069.42",STRATEGIC (NON CYCLICAL),05/12/13,"2,069.42"
021213D,PILLINGER CONTROLS LTD========,PI72103,1,"2,591.54",STRATEGIC (NON CYCLICAL),05/12/13,"2,591.54"
291113C,DODS PARLIAMENTARY COMM LTD==,PK073386,1,295.00,PROFESSIONAL DEVELOPMENT,05/12/13,295.00
271113C,SKYGUARD LTD,SI01129261,1,"1,870.00",GENERAL,05/12/13,"1,870.00"
251113G,MAYPLACE PROPERTY SERVICES LIM,SI1021,1,"1,450.00",STRATEGIC (NON CYCLICAL),05/12/13,"6,138.00"
251113G,MAYPLACE PROPERTY SERVICES LIM,SI1021,2,"3,513.00",STRATEGIC (NON CYCLICAL),05/12/13,
251113G,MAYPLACE PROPERTY SERVICES LIM,SI1021,3,350.00,STRATEGIC (NON CYCLICAL),05/12/13,
251113G,MAYPLACE PROPERTY SERVICES LIM,SI1021,4,825.00,STRATEGIC (NON CYCLICAL),05/12/13,
221113C,GROUND CONTROL UMITED,SIN026685,1,755.00,GROUNDS MAINTENANCE,05/12/13,755.00
221113C,GROUND CONTROL UMITED,SIN026686,1,"1,320.00",GROUNDS MAINTENANCE,05/12/13,"1,320.00"
251113C,BRITISH SAFETY COUNCIL,SIN033889,1,"1,695.00",PROFESSIONAL DEVELOPMENT,05/12/13,"1,695.00"
021213D,SPEAKERS TRUST,WEB/003572,1,"1,545.00",GENERAL,05/12/13,"1,545.00"
902351,BANK OF SCOTLAND,593.485.01.10800012/13,1,"229,381.86",VEHICLES,06/12/13,"229,381.86"
221113G,ADVANCED FURNITURE============,0000055811,1,540.00,OFFICE FURNITURE,09/12/13,540.00
140469,INSTITUTION OF FIRE ENGINEERS=,00040485/2014,1,405.00,SUBSCRIPTIONS,09/12/13,405.00
140475,OGILVIE FLEET LTD=============,00263343,1,347.11,LEASE CAR CHARGES,09/12/13,347.11
140475,OGILVIE FLEET LTD=============,00263343,2,-29.52,VAT CAR LEASING,09/12/13,
140475,OGILVIE FLEET LTD=============,00263343,3,29.52,LEASE CAR CHARGES,09/12/13,
251113C,HAYS ACCOUNTANCY & FINANCE====,1003779318,1,696.00,FRS STAFF AGENCY,09/12/13,696.00
221113G,SILVERSANDS LIMITED===========,120217,1,"16,535.00",MAINTENANCE & SUPPORT,09/12/13,"62,687.00"
221113G,SILVERSANDS LIMITED===========,120217,2,"15,144.00",MAINTENANCE & SUPPORT,09/12/13,
221113G,SILVERSANDS LIMITED===========,120217,3,"11,158.00",MAINTENANCE & SUPPORT,09/12/13,
221113G,SILVERSANDS LIMITED===========,120217,4,"14,500.00",MAINTENANCE & SUPPORT,09/12/13,
221113G,SILVERSANDS LIMITED===========,120217,5,"2,350.00",MAINTENANCE & SUPPORT,09/12/13,
221113G,SILVERSANDS LIMITED===========,120217,6,"3,000.00",MAINTENANCE & SUPPORT,09/12/13,
041213C,COMPUTER CAB PLC==============,130266,1,301.61,PUBLIC TRANSPORT,09/12/13,301.61
800026710,PRIMEPEACE LTD================,131102,1,"6,350.00",MAINTENANCE & SUPPORT,09/12/13,"12,500.00"
800026710,PRIMEPEACE LTD================,131102,2,950.00,MAINTENANCE & SUPPORT,09/12/13,
800026710,PRIMEPEACE LTD================,131102,3,"1,400.00",MAINTENANCE & SUPPORT,09/12/13,
800026710,PRIMEPEACE LTD================,131102,4,"2,300.00",MAINTENANCE & SUPPORT,09/12/13,
800026710,PRIMEPEACE LTD================,131102,5,"1,500.00",MAINTENANCE & SUPPORT,09/12/13,
041213C,GP CONTRACTS==================,14869,1,550.00,REMOVALS,09/12/13,550.00
291113G,TAVISTOCK & PORTMAN NHS TRUST=,16526693,1,600.00,CONSULTANTS,09/12/13,600.00
221113C,GREATER LONDON AUTHORITY======,1800003624,1,"12,939.32",LSP5 GLA SHARED SERVICES,09/12/13,"12,939.32"
031213C,B NOKES CONTRACTS LTD,1986,1,"1,029.50",STRATEGIC (NON CYCLICAL),09/12/13,"1,029.50"
271113C,SAFEGUARD PEST CON. & ENV.LTD,211819,1,300.00,PEST CONTROL,09/12/13,300.00
041213C,ARKAS LIMITED=================,24532,1,"2,232.46",STRATEGIC (CYCLICAL),09/12/13,"3,951.92"
041213C,ARKAS LIMITED=================,24532,2,734.16,STRATEGIC (CYCLICAL),09/12/13,
041213C,ARKAS LIMITED=================,24532,3,742.90,STRATEGIC (CYCLICAL),09/12/13,
041213C,ARKAS LIMITED=================,24532,4,242.40,TACTICAL DAY TO DAY,09/12/13,
041213C,ARKAS LIMITED=================,24533,1,256.42,STRATEGIC (CYCLICAL),09/12/13,"1,134.56"
041213C,ARKAS LIMITED=================,24533,2,512.39,STRATEGIC (CYCLICAL),09/12/13,
041213C,ARKAS LIMITED=================,24533,3,190.00,STRATEGIC (CYCLICAL),09/12/13,
041213C,ARKAS LIMITED=================,24533,4,175.75,STRATEGIC (CYCLICAL),09/12/13,
041213C,ARKAS LIMITED=================,24534,1,367.63,STRATEGIC (CYCLICAL),09/12/13,"1,957.80"
041213C,ARKAS LIMITED=================,24534,2,161.50,STRATEGIC (CYCLICAL),09/12/13,
041213C,ARKAS LIMITED=================,24534,3,175.75,STRATEGIC (CYCLICAL),09/12/13,
041213C,ARKAS LIMITED=================,24534,4,"1,252.92",STRATEGIC (CYCLICAL),09/12/13,
041213C,ARKAS LIMITED=================,24536,1,161.50,STRATEGIC (CYCLICAL),09/12/13,"1,336.63"
041213C,ARKAS LIMITED=================,24536,2,460.75,STRATEGIC (CYCLICAL),09/12/13,
041213C,ARKAS LIMITED=================,24536,3,218.50,STRATEGIC (CYCLICAL),09/12/13,
041213C,ARKAS LIMITED=================,24536,4,495.88,STRATEGIC (CYCLICAL),09/12/13,
041213C,ARKAS LIMITED=================,24538,1,204.25,STRATEGIC (CYCLICAL),09/12/13,916.75
041213C,ARKAS LIMITED=================,24538,2,304.00,TACTICAL DAY TO DAY,09/12/13,
041213C,ARKAS LIMITED=================,24538,3,161.50,STRATEGIC (CYCLICAL),09/12/13,
041213C,ARKAS LIMITED=================,24538,4,247.00,STRATEGIC (CYCLICAL),09/12/13,
041213C,ARKAS LIMITED=================,24539,1,161.50,STRATEGIC (CYCLICAL),09/12/13,837.11
041213C,ARKAS LIMITED=================,24539,2,252.86,STRATEGIC (CYCLICAL),09/12/13,
041213C,ARKAS LIMITED=================,24539,3,190.00,STRATEGIC (CYCLICAL),09/12/13,
041213C,ARKAS LIMITED=================,24539,4,232.75,STRATEGIC (CYCLICAL),09/12/13,
041213C,ARKAS LIMITED=================,24540,1,175.75,STRATEGIC (CYCLICAL),09/12/13,745.75
041213C,ARKAS LIMITED=================,24540,2,232.75,STRATEGIC (CYCLICAL),09/12/13,
041213C,ARKAS LIMITED=================,24540,3,161.50,STRATEGIC (CYCLICAL),09/12/13,
041213C,ARKAS LIMITED=================,24540,4,175.75,STRATEGIC (CYCLICAL),09/12/13,
041213C,ARKAS LIMITED=================,24638,1,532.00,STRATEGIC (NON CYCLICAL),09/12/13,532.00
800026268,ADECCO UK LIMITED=============,26604696,1,269.62,FRS STAFF AGENCY,09/12/13,269.62
800026509,ADECCO UK LIMITED=============,26612124,1,263.76,FRS STAFF AGENCY,09/12/13,263.76
800026522,ADECCO UK LIMITED=============,26612138,1,269.62,FRS STAFF AGENCY,09/12/13,269.62
800026679,ADECCO UK LIMITED=============,26619792,1,"1,105.30",FRS STAFF AGENCY,09/12/13,"1,105.30"
800026680,ADECCO UK LIMITED=============,26619793,1,"1,458.45",FRS STAFF AGENCY,09/12/13,"1,458.45"
800026681,ADECCO UK LIMITED=============,26619794,1,439.60,FRS STAFF AGENCY,09/12/13,439.60
800026682,ADECCO UK LIMITED=============,26619795,1,"2,500.00",FRS STAFF AGENCY,09/12/13,"2,500.00"
800026683,ADECCO UK LIMITED=============,26619796,1,376.92,FRS STAFF AGENCY,09/12/13,376.92
800026684,ADECCO UK LIMITED=============,26619797,1,594.65,FRS STAFF AGENCY,09/12/13,594.65
800026685,ADECCO UK LIMITED=============,26619798,1,594.65,FRS STAFF AGENCY,09/12/13,594.65
800026686,ADECCO UK LIMITED=============,26619799,1,594.65,FRS STAFF AGENCY,09/12/13,594.65
800026688,ADECCO UK LIMITED=============,26619801,1,857.85,FRS STAFF AGENCY,09/12/13,857.85
800026689,ADECCO UK LIMITED=============,26619802,1,439.60,FRS STAFF AGENCY,09/12/13,439.60
800026690,ADECCO UK LIMITED=============,26619803,1,577.66,FRS STAFF AGENCY,09/12/13,577.66
800026691,ADECCO UK LIMITED=============,26619804,1,"1,949.85",FRS STAFF AGENCY,09/12/13,"1,949.85"
800026692,ADECCO UK LIMITED=============,26619805,1,594.65,FRS STAFF AGENCY,09/12/13,594.65
800026693,ADECCO UK LIMITED=============,26619806,1,945.42,FRS STAFF AGENCY,09/12/13,945.42
800026694,ADECCO UK LIMITED=============,26619807,1,"1,450.89",FRS STAFF AGENCY,09/12/13,"1,450.89"
800026696,ADECCO UK LIMITED=============,26619809,1,475.72,FRS STAFF AGENCY,09/12/13,475.72
800026697,ADECCO UK LIMITED=============,26619810,1,439.60,FRS STAFF AGENCY,09/12/13,439.60
800026698,ADECCO UK LIMITED=============,26619811,1,269.62,FRS STAFF AGENCY,09/12/13,269.62
800026699,ADECCO UK LIMITED=============,26619812,1,"1,927.20",FRS STAFF AGENCY,09/12/13,"1,927.20"
800026702,ADECCO UK LIMITED=============,26619815,1,994.50,FRS STAFF AGENCY,09/12/13,994.50
800026703,ADECCO UK LIMITED=============,26619816,1,866.95,FRS STAFF AGENCY,09/12/13,866.95
800026705,ADECCO UK LIMITED=============,26623697,1,"1,104.00",FRS STAFF AGENCY,09/12/13,"1,104.00"
800026706,ADECCO UK LIMITED=============,26623698,1,883.20,FRS STAFF AGENCY,09/12/13,883.20
800026707,ADECCO UK LIMITED=============,26623699,1,883.20,FRS STAFF AGENCY,09/12/13,883.20
800026736,ADECCO UK LIMITED=============,26623700,1,439.95,FRS STAFF AGENCY,09/12/13,439.95
041213C,MACE LIMITED,26915/0413699,1,"5,709.01",PROF FEES-MISCELLANEOUS,09/12/13,"5,709.01"
041213C,MACE LIMITED,26915/1213073,1,"12,748.91",PROF FEES-MISCELLANEOUS,09/12/13,"12,748.91"
041213C,BISHOP CREIGHTON HSE SETTLEMNT,2880,1,665.00,COMMUNITY RELATIONS,09/12/13,665.00
041213C,EVOLUTION ENVIRONMENTAL LTD,2913,1,350.00,ASBESTOS,09/12/13,350.00
041213C,DRAIN CONTROL=================,32344,1,600.00,TACTICAL DAY TO DAY,09/12/13,600.00
800026453,*H-SQUARED ELECTRONICS LTD,339817,1,525.00,OPERATIONAL EQUIP-PURCHASE,09/12/13,525.00
041213C,KNIGHTON CLEANING SERVICES LTD,36838,1,"1,159.84",HYGIENE,09/12/13,"1,159.84"
221113C,COMPUTACENTRE================,3805224482,1,"1,274.80",ACQUISITIONS,09/12/13,"1,274.80"
221113C,COMPUTACENTRE================,3805224483,1,"1,912.20",ACQUISITIONS,09/12/13,"1,912.20"
041213C,MITIE SECURITY (LONDON) LTD===,45/538540,1,"4,130.00",PREMISES SECURITY,09/12/13,"4,130.00"
041213C,GRAHAM MALTBY,46,1,"11,000.00",CONSULTANTS,09/12/13,"11,849.18"
041213C,GRAHAM MALTBY,46,2,849.18,CONSULTANTS,09/12/13,
041213C,GRAHAM MALTBY,47,1,"1,700.00",CONSULTANTS,09/12/13,"1,700.00"
041213C,RICHCO LTD====================,4989,1,876.50,DEVELOPMENT  EXPENSES-CONTRACT,09/12/13,876.50
031213C,FAHEY BUILDERS LTD============,5180,1,"9,400.00",STRATEGIC (NON CYCLICAL),09/12/13,"9,400.00"
041213C,URS SCOTT WILSON LIMITED,5296481,1,"25,584.64",PROFESS FEES-CLERK OF WORKS,09/12/13,"25,584.64"
041213C,URS SCOTT WILSON LIMITED,5357360,1,189.29,PROFESS FEES-CLERK OF WORKS,09/12/13,"4,444.97"
041213C,URS SCOTT WILSON LIMITED,5357360,2,"4,255.68",PROFESS FEES-CLERK OF WORKS,09/12/13,
041213C,CONTRACT CATERING CONSULTANTS=,6206,1,500.00,CONSULTANTS,09/12/13,500.00
031213C,TWO SERVICES LTD==============,73770,1,60.00,CATERING EQUIPMENT,09/12/13,321.75
031213C,TWO SERVICES LTD==============,73770,2,261.75,CATERING EQUIPMENT,09/12/13,
291113G,DRAEGER SAFETY UK LIMITED=====,90430677,1,"4,173.00",PROTECTIVE EQUIPT - PARTS,09/12/13,"4,173.00"
041213C,NORTHUMBRIAN WATER LTD========,913057649,1,893.00,CURRENT HYDRANT COSTS,09/12/13,893.00
021213D,CAPITA SECURE INFO SOLUTIONS,93277802,1,"53,214.26",CAMS CONTRACT,09/12/13,"53,214.26"
041213C,BRISTOL UNIFORMS LTD==========,BC-11-13-S1199,1,273.77,CLOTHING,09/12/13,273.77
041213C,ERNST AND YOUNG,GB10100057278,1,"12,760.00",EXTERNAL AUDIT,09/12/13,"12,760.00"
041213C,ERNST AND YOUNG,GB10100057409,1,"2,259.00",EXTERNAL AUDIT,09/12/13,"2,259.00"
041213C,SERVOCA SECURE SOLUTIONS LTD,IN004847,1,"2,727.80",PREMISES SECURITY,09/12/13,"2,727.80"
041213C,SERVOCA SECURE SOLUTIONS LTD,IN004853,1,"2,729.60",PREMISES SECURITY,09/12/13,"2,729.60"
041213C,SERVOCA SECURE SOLUTIONS LTD,IN004854,1,400.00,PREMISES SECURITY,09/12/13,400.00
140475,JCT600 CONTRACTS LIMITED======,INV00049173,1,444.39,LEASE CAR CHARGES,09/12/13,444.39
140475,JCT600 CONTRACTS LIMITED======,INV00049173,2,-39.00,VAT CAR LEASING,09/12/13,
140475,JCT600 CONTRACTS LIMITED======,INV00049173,3,39.00,LEASE CAR CHARGES,09/12/13,
140475,JCT600 CONTRACTS LIMITED======,INV00049174,1,312.03,LEASE CAR CHARGES,09/12/13,312.03
140475,JCT600 CONTRACTS LIMITED======,INV00049174,2,-26.22,VAT CAR LEASING,09/12/13,
140475,JCT600 CONTRACTS LIMITED======,INV00049174,3,26.22,LEASE CAR CHARGES,09/12/13,
140475,JCT600 CONTRACTS LIMITED======,INV00049175,1,544.05,LEASE CAR CHARGES,09/12/13,544.05
140475,JCT600 CONTRACTS LIMITED======,INV00049175,2,-48.22,VAT CAR LEASING,09/12/13,
140475,JCT600 CONTRACTS LIMITED======,INV00049175,3,48.22,LEASE CAR CHARGES,09/12/13,
140475,JCT600 CONTRACTS LIMITED======,INV00049176,1,326.15,LEASE CAR CHARGES,09/12/13,326.15
140475,JCT600 CONTRACTS LIMITED======,INV00049176,2,-28.05,VAT CAR LEASING,09/12/13,
140475,JCT600 CONTRACTS LIMITED======,INV00049176,3,28.05,LEASE CAR CHARGES,09/12/13,
140475,JCT600 CONTRACTS LIMITED======,INV00049177,1,332.29,LEASE CAR CHARGES,09/12/13,332.29
140475,JCT600 CONTRACTS LIMITED======,INV00049177,2,-29.46,VAT CAR LEASING,09/12/13,
140475,JCT600 CONTRACTS LIMITED======,INV00049177,3,29.46,LEASE CAR CHARGES,09/12/13,
140475,JCT600 CONTRACTS LIMITED======,INV00049178,1,263.18,LEASE CAR CHARGES,09/12/13,263.18
140475,JCT600 CONTRACTS LIMITED======,INV00049178,2,-23.32,VAT CAR LEASING,09/12/13,
140475,JCT600 CONTRACTS LIMITED======,INV00049178,3,23.32,LEASE CAR CHARGES,09/12/13,
140475,JCT600 CONTRACTS LIMITED======,INV00049179,1,316.20,LEASE CAR CHARGES,09/12/13,316.20
140475,JCT600 CONTRACTS LIMITED======,INV00049179,2,-29.08,VAT CAR LEASING,09/12/13,
140475,JCT600 CONTRACTS LIMITED======,INV00049179,3,29.08,LEASE CAR CHARGES,09/12/13,
140475,JCT600 CONTRACTS LIMITED======,INV00049180,1,417.69,LEASE CAR CHARGES,09/12/13,417.69
140475,JCT600 CONTRACTS LIMITED======,INV00049180,2,-36.51,VAT CAR LEASING,09/12/13,
140475,JCT600 CONTRACTS LIMITED======,INV00049180,3,36.51,LEASE CAR CHARGES,09/12/13,
140475,JCT600 CONTRACTS LIMITED======,INV00049181,1,447.76,LEASE CAR CHARGES,09/12/13,447.76
140475,JCT600 CONTRACTS LIMITED======,INV00049181,2,-39.18,VAT CAR LEASING,09/12/13,
140475,JCT600 CONTRACTS LIMITED======,INV00049181,3,39.18,LEASE CAR CHARGES,09/12/13,
140475,JCT600 CONTRACTS LIMITED======,INV00049182,1,433.18,LEASE CAR CHARGES,09/12/13,433.18
140475,JCT600 CONTRACTS LIMITED======,INV00049182,2,-38.14,VAT CAR LEASING,09/12/13,
140475,JCT600 CONTRACTS LIMITED======,INV00049182,3,38.14,LEASE CAR CHARGES,09/12/13,
041213C,INTUITIVE SYSTEMS AND NETWORKS,ISN00010556,1,"2,550.00",CONSULTANTS,09/12/13,"2,550.00"
251113C,NEXUS PLANNING LIMITED,NP0000215,1,"1,094.50",PROF FEES-MISCELLANEOUS,09/12/13,"2,563.50"
251113C,NEXUS PLANNING LIMITED,NP0000215,2,"1,469.00",PROF FEES-MISCELLANEOUS,09/12/13,
221113C,HUNTER LODGE==================,SI-05391,1,"2,040.00",ADVERTISING,09/12/13,"2,040.00"
800026725,*XMA LTD,U332515,1,51.23,STATIONERY CONSUMABLES,09/12/13,267.57
800026725,*XMA LTD,U332515,2,54.55,STATIONERY CONSUMABLES,09/12/13,
800026725,*XMA LTD,U332515,3,51.23,STATIONERY CONSUMABLES,09/12/13,
800026725,*XMA LTD,U332515,4,55.28,STATIONERY CONSUMABLES,09/12/13,
800026725,*XMA LTD,U332515,5,55.28,STATIONERY CONSUMABLES,09/12/13,
800026727,*XMA LTD,U332518,1,55.28,STATIONERY CONSUMABLES,09/12/13,283.74
800026727,*XMA LTD,U332518,2,55.28,STATIONERY CONSUMABLES,09/12/13,
800026727,*XMA LTD,U332518,3,51.23,STATIONERY CONSUMABLES,09/12/13,
800026727,*XMA LTD,U332518,4,54.55,STATIONERY CONSUMABLES,09/12/13,
800026727,*XMA LTD,U332518,5,67.40,STATIONERY CONSUMABLES,09/12/13,
800026733,*XMA LTD,U334619,1,54.55,STATIONERY CONSUMABLES,09/12/13,362.24
800026733,*XMA LTD,U334619,2,54.55,STATIONERY CONSUMABLES,09/12/13,
800026733,*XMA LTD,U334619,3,54.55,STATIONERY CONSUMABLES,09/12/13,
800026733,*XMA LTD,U334619,4,51.23,STATIONERY CONSUMABLES,09/12/13,
800026733,*XMA LTD,U334619,5,55.28,STATIONERY CONSUMABLES,09/12/13,
800026733,*XMA LTD,U334619,6,55.28,STATIONERY CONSUMABLES,09/12/13,
800026733,*XMA LTD,U334619,7,36.80,STATIONERY CONSUMABLES,09/12/13,
902352,PLURALSIGHT LLC,0008810,1,325.97,PROFESSIONAL DEVELOPMENT,10/12/13,325.97
140478,OGILVIE FLEET LTD=============,00260223,1,"1,369.32",LEASE CAR CHARGES,12/12/13,"3,377.04"
140478,OGILVIE FLEET LTD=============,00260223,2,"2,007.72",P/PAYMTS-CAR LEASG-RENTAL,12/12/13,
140478,OGILVIE FLEET LTD=============,00260223,3,-279.80,VAT CAR LEASING,12/12/13,
140478,OGILVIE FLEET LTD=============,00260223,4,279.80,LEASE CAR CHARGES,12/12/13,
091213C,*PREMIER VANGUARD LTD,00678123/0013656,1,33.30,STATIONERY CONSUMABLES,12/12/13,326.30
091213C,*PREMIER VANGUARD LTD,00678123/0013656,2,33.30,STATIONERY CONSUMABLES,12/12/13,
091213C,*PREMIER VANGUARD LTD,00678123/0013656,3,66.60,STATIONERY CONSUMABLES,12/12/13,
091213C,*PREMIER VANGUARD LTD,00678123/0013656,4,26.60,STATIONERY CONSUMABLES,12/12/13,
091213C,*PREMIER VANGUARD LTD,00678123/0013656,5,133.20,STATIONERY CONSUMABLES,12/12/13,
091213C,*PREMIER VANGUARD LTD,00678123/0013656,6,33.30,STATIONERY CONSUMABLES,12/12/13,
271113C,AUTODATA LTD==================,01998,1,"26,108.00",MAINTENANCE & SUPPORT,12/12/13,"26,108.00"
140480,THAMES WATER UTILITIES LTD====,03247-35186K,1,323.35,WATER & SEWERAGE RATES,12/12/13,323.35
061213C,CHANGING YOUNG MINDS,061313,1,300.00,PROFESSIONAL DEVELOPMENT,12/12/13,300.00
061213C,BACP ENTERPRISES LTD==========,100260I,1,427.00,SUBSCRIPTIONS,12/12/13,427.00
061213C,*APTCO========================,101767,1,360.00,OPERATIONAL EQUIP-PURCHASE,12/12/13,360.00
061213C,*APTCO========================,101770,1,300.00,OPERATIONAL EQUIP-PURCHASE,12/12/13,300.00
101213E,*SPRUE SAFETY PRODUCTS LTD====,1052196,1,751.20,FIRE DETECTORS,12/12/13,751.20
061213C,*SPRUE SAFETY PRODUCTS LTD====,1053633,1,760.80,FIRE DETECTORS,12/12/13,760.80
021213D,*SPRUE SAFETY PRODUCTS LTD====,1054391,1,"3,708.00",FIRE DETECTORS,12/12/13,"3,708.00"
291113G,*SPRUE SAFETY PRODUCTS LTD====,1054392,1,988.80,FIRE DETECTORS,12/12/13,988.80
061213C,*SPRUE SAFETY PRODUCTS LTD====,1054394,1,370.80,FIRE DETECTORS,12/12/13,370.80
041213C,*SPRUE SAFETY PRODUCTS LTD====,1054396,1,"1,483.20",FIRE DETECTORS,12/12/13,"1,483.20"
021213D,*SPRUE SAFETY PRODUCTS LTD====,1054398,1,"6,180.00",FIRE DETECTORS,12/12/13,"6,180.00"
021213D,*SPRUE SAFETY PRODUCTS LTD====,1054399,1,"2,472.00",FIRE DETECTORS,12/12/13,"2,472.00"
800026786,*JAMES HUNTER (OUTFITTERS) LTD,107382,1,293.13,CLOTHING,12/12/13,293.13
091213C,BT GLOBAL SERVICES============,1128199,1,541.66,TELECOMMUNICATIONS,12/12/13,541.66
061213C,MARTIN LAVELL LTD=============,1237637,1,363.50,BOOKS & JOURNALS,12/12/13,363.50
291113G,H J HALL & SON================,126772,1,656.21,UNIFORMS - POMS,12/12/13,656.21
041213C,HAGEMEYER UK LTD==============,129873312,1,"2,217.80",FIRE DETECTORS,12/12/13,"2,217.80"
140479,BOURNE CONSTRUCTION COMPANY,13/485,1,"1,200.00",STRATEGIC (NON CYCLICAL),12/12/13,"1,925.00"
140479,BOURNE CONSTRUCTION COMPANY,13/485,2,725.00,STRATEGIC (NON CYCLICAL),12/12/13,
140479,BOURNE CONSTRUCTION COMPANY,13/486,1,"2,300.00",STRATEGIC (NON CYCLICAL),12/12/13,"3,650.00"
140479,BOURNE CONSTRUCTION COMPANY,13/486,2,"1,350.00",STRATEGIC (NON CYCLICAL),12/12/13,
140479,BOURNE CONSTRUCTION COMPANY,13/487,1,"2,950.00",STRATEGIC (NON CYCLICAL),12/12/13,"4,500.00"
140479,BOURNE CONSTRUCTION COMPANY,13/487,2,"1,550.00",STRATEGIC (NON CYCLICAL),12/12/13,
091213C,MANDO GROUP LTD,13261,1,"8,257.50",PROF FEES-SOFTWARE CONSULTANTS,12/12/13,"8,257.50"
061213C,DRON & WRIGHT=================,16785,1,"4,321.26",PROFESSIONAL SERVICES,12/12/13,"28,947.33"
061213C,DRON & WRIGHT=================,16785,2,450.00,PROFESSIONAL SERVICES,12/12/13,
061213C,DRON & WRIGHT=================,16785,3,362.50,PROFESSIONAL SERVICES,12/12/13,
061213C,DRON & WRIGHT=================,16785,4,"2,355.90",PROFESSIONAL SERVICES,12/12/13,
061213C,DRON & WRIGHT=================,16785,5,571.50,PROFESSIONAL SERVICES,12/12/13,
061213C,DRON & WRIGHT=================,16785,6,"1,175.60",DISPOSAL COSTS-ESTATES AGENTS,12/12/13,
061213C,DRON & WRIGHT=================,16785,7,613.50,DISPOSAL COSTS-ESTATES AGENTS,12/12/13,
061213C,DRON & WRIGHT=================,16785,8,751.40,DISPOSAL COSTS-ESTATES AGENTS,12/12/13,
061213C,DRON & WRIGHT=================,16785,9,613.40,DISPOSAL COSTS-ESTATES AGENTS,12/12/13,
061213C,DRON & WRIGHT=================,16785,10,751.40,DISPOSAL COSTS-ESTATES AGENTS,12/12/13,
061213C,DRON & WRIGHT=================,16785,11,961.40,DISPOSAL COSTS-ESTATES AGENTS,12/12/13,
061213C,DRON & WRIGHT=================,16785,12,613.40,DISPOSAL COSTS-ESTATES AGENTS,12/12/13,
061213C,DRON & WRIGHT=================,16785,13,430.40,DISPOSAL COSTS-ESTATES AGENTS,12/12/13,
061213C,DRON & WRIGHT=================,16785,14,"1,036.80",DISPOSAL COSTS-ESTATES AGENTS,12/12/13,
061213C,DRON & WRIGHT=================,16785,15,613.40,DISPOSAL COSTS-ESTATES AGENTS,12/12/13,
061213C,DRON & WRIGHT=================,16785,16,"3,309.70",PROFESSIONAL SERVICES,12/12/13,
061213C,DRON & WRIGHT=================,16785,17,"3,485.00",PROFESSIONAL SERVICES,12/12/13,
061213C,DRON & WRIGHT=================,16785,18,416.67,PROFESSIONAL SERVICES,12/12/13,
061213C,DRON & WRIGHT=================,16785,19,"4,031.50",DISPOSAL COSTS-ESTATES AGENTS,12/12/13,
061213C,DRON & WRIGHT=================,16785,20,520.70,DISPOSAL COSTS-ESTATES AGENTS,12/12/13,
061213C,DRON & WRIGHT=================,16785,21,280.00,PROF FEES-MISCELLANEOUS,12/12/13,
061213C,DRON & WRIGHT=================,16785,22,315.00,PROF FEES-MISCELLANEOUS,12/12/13,
061213C,DRON & WRIGHT=================,16785,23,298.50,PROF FEES-MISCELLANEOUS,12/12/13,
061213C,DRON & WRIGHT=================,16785,24,668.40,PROF FEES-MISCELLANEOUS,12/12/13,
140478,EDF ENERGY===================,1785676843,1,"1,105.13",ELECTRICITY,12/12/13,"1,105.13"
140478,EDF ENERGY===================,1785907938,1,"2,492.28",ELECTRICITY,12/12/13,"2,492.28"
140478,EDF ENERGY===================,1786209539,1,"8,342.49",ELECTRICITY,12/12/13,"8,342.49"
140478,EDF ENERGY===================,1786484439,1,237.36,ELECTRICITY,12/12/13,"4,747.27"
140478,EDF ENERGY===================,1786484439,2,"4,509.91",ELECTRICITY,12/12/13,
140478,EDF ENERGY===================,1793376236,1,"10,404.60",ELECTRICITY,12/12/13,"10,404.60"
091213C,BEAUMONT CONSTRUCTION SERVICES,1805,1,"5,784.39",DEVELOPMENT  EXPENSES-CONTRACT,12/12/13,"5,784.39"
140478,EDF ENERGY===================,1813823629,1,"17,099.84",ELECTRICITY,12/12/13,"17,099.84"
140481,MR JAMES TODD=================,181864A,1,"4,770.00",COUNSELS FEES,12/12/13,"4,770.00"
140481,MR WILLIAM NORRIS,185629*,1,"15,625.00",COUNSELS FEES,12/12/13,"15,625.00"
091213C,B NOKES CONTRACTS LTD,1977,1,"1,966.00",STRATEGIC (NON CYCLICAL),12/12/13,"1,966.00"
091213C,B NOKES CONTRACTS LTD,1978,1,891.50,STRATEGIC (NON CYCLICAL),12/12/13,891.50
061213C,B NOKES CONTRACTS LTD,1979,1,"1,058.00",REMOVALS,12/12/13,"1,058.00"
091213C,B NOKES CONTRACTS LTD,1980,1,"1,127.50",STRATEGIC (NON CYCLICAL),12/12/13,"1,127.50"
091213C,B NOKES CONTRACTS LTD,1981,1,"1,187.75",STRATEGIC (NON CYCLICAL),12/12/13,"1,187.75"
061213C,B NOKES CONTRACTS LTD,1982,1,"1,185.00",REMOVALS,12/12/13,"1,185.00"
061213C,B NOKES CONTRACTS LTD,1984,1,937.50,FIXTURES & FITTINGS,12/12/13,937.50
061213C,B NOKES CONTRACTS LTD,1985,1,802.50,REMOVALS,12/12/13,802.50
091213C,B NOKES CONTRACTS LTD,1987,1,"1,639.50",STRATEGIC (NON CYCLICAL),12/12/13,"1,639.50"
140480,THAMES WATER UTILITIES LTD====,2049465181Y,1,607.76,WATER & SEWERAGE RATES,12/12/13,607.76
061213C,SOUTHERN ASBESTOS SERVICES LTD,218016,1,940.00,ASBESTOS,12/12/13,940.00
140481,MISS KITTY ST AUBYN,229385,1,420.00,PROFESSIONAL FEES ENFORCEMENT,12/12/13,420.00
091213C,ARKAS LIMITED=================,24024,1,892.00,STRATEGIC (CYCLICAL),12/12/13,892.00
061213C,ARKAS LIMITED=================,24537,1,363.53,STRATEGIC (CYCLICAL),12/12/13,981.30
061213C,ARKAS LIMITED=================,24537,2,209.27,STRATEGIC (CYCLICAL),12/12/13,
061213C,ARKAS LIMITED=================,24537,3,232.75,STRATEGIC (CYCLICAL),12/12/13,
061213C,ARKAS LIMITED=================,24537,4,175.75,STRATEGIC (CYCLICAL),12/12/13,
140480,THAMES WATER UTILITIES LTD====,26102-11537K,1,885.60,WATER & SEWERAGE RATES,12/12/13,885.60
091213C,EUROLOOS LTD,26308,1,"1,495.00",OPERATIONAL EQUIP-PURCHASE,12/12/13,"1,495.00"
291113C,UNDERSTANDING RECRUITMENT=====,2698,1,"5,600.00",MAINTENANCE & SUPPORT,12/12/13,"5,600.00"
800026500,*BANNER BUSINESS SUPPLIES LTD=,27316209,1,39.00,STATIONERY CONSUMABLES,12/12/13,447.80
800026500,*BANNER BUSINESS SUPPLIES LTD=,27316209,2,226.20,STATIONERY CONSUMABLES,12/12/13,
800026500,*BANNER BUSINESS SUPPLIES LTD=,27316209,3,149.60,STATIONERY CONSUMABLES,12/12/13,
800026500,*BANNER BUSINESS SUPPLIES LTD=,27316209,4,17.00,STATIONERY CONSUMABLES,12/12/13,
800026500,*BANNER BUSINESS SUPPLIES LTD=,27316209,5,16.00,STATIONERY CONSUMABLES,12/12/13,
061213C,CIPFA BUSINESS,3090992,1,625.50,BOOKS & JOURNALS,12/12/13,625.50
061213C,KNIGHTON CLEANING SERVICES LTD,38169,1,"2,145.42",GENERAL CLEANS,12/12/13,"84,806.61"
061213C,KNIGHTON CLEANING SERVICES LTD,38169,2,"1,984.67",GENERAL CLEANS,12/12/13,
061213C,KNIGHTON CLEANING SERVICES LTD,38169,3,"1,401.30",GENERAL CLEANS,12/12/13,
061213C,KNIGHTON CLEANING SERVICES LTD,38169,4,965.38,GENERAL CLEANS,12/12/13,
061213C,KNIGHTON CLEANING SERVICES LTD,38169,5,"1,132.66",GENERAL CLEANS,12/12/13,
061213C,KNIGHTON CLEANING SERVICES LTD,38169,6,775.42,GENERAL CLEANS,12/12/13,
061213C,KNIGHTON CLEANING SERVICES LTD,38169,7,"1,185.30",GENERAL CLEANS,12/12/13,
061213C,KNIGHTON CLEANING SERVICES LTD,38169,8,"1,048.17",GENERAL CLEANS,12/12/13,
061213C,KNIGHTON CLEANING SERVICES LTD,38169,9,744.37,GENERAL CLEANS,12/12/13,
061213C,KNIGHTON CLEANING SERVICES LTD,38169,10,"1,920.64",GENERAL CLEANS,12/12/13,
061213C,KNIGHTON CLEANING SERVICES LTD,38169,11,"1,190.81",GENERAL CLEANS,12/12/13,
061213C,KNIGHTON CLEANING SERVICES LTD,38169,12,"1,239.98",GENERAL CLEANS,12/12/13,
061213C,KNIGHTON CLEANING SERVICES LTD,38169,13,"1,057.98",GENERAL CLEANS,12/12/13,
061213C,KNIGHTON CLEANING SERVICES LTD,38169,14,"1,864.82",GENERAL CLEANS,12/12/13,
061213C,KNIGHTON CLEANING SERVICES LTD,38169,15,"2,215.12",GENERAL CLEANS,12/12/13,
061213C,KNIGHTON CLEANING SERVICES LTD,38169,16,749.21,GENERAL CLEANS,12/12/13,
061213C,KNIGHTON CLEANING SERVICES LTD,38169,17,"1,420.93",GENERAL CLEANS,12/12/13,
061213C,KNIGHTON CLEANING SERVICES LTD,38169,18,748.61,GENERAL CLEANS,12/12/13,
061213C,KNIGHTON CLEANING SERVICES LTD,38169,19,"1,487.35",GENERAL CLEANS,12/12/13,
061213C,KNIGHTON CLEANING SERVICES LTD,38169,20,"1,718.38",GENERAL CLEANS,12/12/13,
061213C,KNIGHTON CLEANING SERVICES LTD,38169,21,764.49,GENERAL CLEANS,12/12/13,
061213C,KNIGHTON CLEANING SERVICES LTD,38169,22,"2,259.49",GENERAL CLEANS,12/12/13,
061213C,KNIGHTON CLEANING SERVICES LTD,38169,23,"1,791.41",GENERAL CLEANS,12/12/13,
061213C,KNIGHTON CLEANING SERVICES LTD,38169,24,913.70,GENERAL CLEANS,12/12/13,
061213C,KNIGHTON CLEANING SERVICES LTD,38169,25,914.93,GENERAL CLEANS,12/12/13,
061213C,KNIGHTON CLEANING SERVICES LTD,38169,26,"1,062.89",GENERAL CLEANS,12/12/13,
061213C,KNIGHTON CLEANING SERVICES LTD,38169,27,"1,733.68",GENERAL CLEANS,12/12/13,
061213C,KNIGHTON CLEANING SERVICES LTD,38169,28,"1,030.35",GENERAL CLEANS,12/12/13,
061213C,KNIGHTON CLEANING SERVICES LTD,38169,29,809.26,GENERAL CLEANS,12/12/13,
061213C,KNIGHTON CLEANING SERVICES LTD,38169,30,952.65,GENERAL CLEANS,12/12/13,
061213C,KNIGHTON CLEANING SERVICES LTD,38169,31,"1,309.47",GENERAL CLEANS,12/12/13,
061213C,KNIGHTON CLEANING SERVICES LTD,38169,32,757.11,GENERAL CLEANS,12/12/13,
061213C,KNIGHTON CLEANING SERVICES LTD,38169,33,"1,525.99",GENERAL CLEANS,12/12/13,
061213C,KNIGHTON CLEANING SERVICES LTD,38169,34,"1,249.50",GENERAL CLEANS,12/12/13,
061213C,KNIGHTON CLEANING SERVICES LTD,38169,35,"1,369.17",GENERAL CLEANS,12/12/13,
061213C,KNIGHTON CLEANING SERVICES LTD,38169,36,769.25,GENERAL CLEANS,12/12/13,
061213C,KNIGHTON CLEANING SERVICES LTD,38169,37,866.18,GENERAL CLEANS,12/12/13,
061213C,KNIGHTON CLEANING SERVICES LTD,38169,38,867.72,GENERAL CLEANS,12/12/13,
061213C,KNIGHTON CLEANING SERVICES LTD,38169,39,921.09,GENERAL CLEANS,12/12/13,
061213C,KNIGHTON CLEANING SERVICES LTD,38169,40,940.18,GENERAL CLEANS,12/12/13,
061213C,KNIGHTON CLEANING SERVICES LTD,38169,41,686.16,GENERAL CLEANS,12/12/13,
061213C,KNIGHTON CLEANING SERVICES LTD,38169,42,"1,485.42",GENERAL CLEANS,12/12/13,
061213C,KNIGHTON CLEANING SERVICES LTD,38169,43,"1,311.33",GENERAL CLEANS,12/12/13,
061213C,KNIGHTON CLEANING SERVICES LTD,38169,44,932.88,GENERAL CLEANS,12/12/13,
061213C,KNIGHTON CLEANING SERVICES LTD,38169,45,"2,744.76",GENERAL CLEANS,12/12/13,
061213C,KNIGHTON CLEANING SERVICES LTD,38169,46,"1,014.46",GENERAL CLEANS,12/12/13,
061213C,KNIGHTON CLEANING SERVICES LTD,38169,47,"1,061.55",GENERAL CLEANS,12/12/13,
061213C,KNIGHTON CLEANING SERVICES LTD,38169,48,"1,027.02",GENERAL CLEANS,12/12/13,
061213C,KNIGHTON CLEANING SERVICES LTD,38169,49,931.42,GENERAL CLEANS,12/12/13,
061213C,KNIGHTON CLEANING SERVICES LTD,38169,50,"1,272.47",GENERAL CLEANS,12/12/13,
061213C,KNIGHTON CLEANING SERVICES LTD,38169,51,"2,238.52",GENERAL CLEANS,12/12/13,
061213C,KNIGHTON CLEANING SERVICES LTD,38169,52,863.96,GENERAL CLEANS,12/12/13,
061213C,KNIGHTON CLEANING SERVICES LTD,38169,53,"1,822.05",GENERAL CLEANS,12/12/13,
061213C,KNIGHTON CLEANING SERVICES LTD,38169,54,"1,024.83",GENERAL CLEANS,12/12/13,
061213C,KNIGHTON CLEANING SERVICES LTD,38169,55,676.12,GENERAL CLEANS,12/12/13,
061213C,KNIGHTON CLEANING SERVICES LTD,38169,56,667.63,GENERAL CLEANS,12/12/13,
061213C,KNIGHTON CLEANING SERVICES LTD,38169,57,776.02,GENERAL CLEANS,12/12/13,
061213C,KNIGHTON CLEANING SERVICES LTD,38169,58,"2,277.54",GENERAL CLEANS,12/12/13,
061213C,KNIGHTON CLEANING SERVICES LTD,38169,59,902.35,GENERAL CLEANS,12/12/13,
061213C,KNIGHTON CLEANING SERVICES LTD,38169,60,"1,561.89",GENERAL CLEANS,12/12/13,
061213C,KNIGHTON CLEANING SERVICES LTD,38169,61,"2,575.91",GENERAL CLEANS,12/12/13,
061213C,KNIGHTON CLEANING SERVICES LTD,38169,62,754.42,GENERAL CLEANS,12/12/13,
061213C,KNIGHTON CLEANING SERVICES LTD,38169,63,771.12,GENERAL CLEANS,12/12/13,
061213C,KNIGHTON CLEANING SERVICES LTD,38169,64,"1,483.56",GENERAL CLEANS,12/12/13,
061213C,KNIGHTON CLEANING SERVICES LTD,38169,65,"1,048.52",GENERAL CLEANS,12/12/13,
061213C,KNIGHTON CLEANING SERVICES LTD,38169,66,796.65,GENERAL CLEANS,12/12/13,
061213C,KNIGHTON CLEANING SERVICES LTD,38169,67,"1,035.93",GENERAL CLEANS,12/12/13,
061213C,KNIGHTON CLEANING SERVICES LTD,38169,68,"1,257.09",GENERAL CLEANS,12/12/13,
061213C,KNIGHTON CLEANING SERVICES LTD,38170,1,972.90,GENERAL CLEANS,12/12/13,"73,446.18"
061213C,KNIGHTON CLEANING SERVICES LTD,38170,2,"1,072.79",GENERAL CLEANS,12/12/13,
061213C,KNIGHTON CLEANING SERVICES LTD,38170,3,"1,006.42",GENERAL CLEANS,12/12/13,
061213C,KNIGHTON CLEANING SERVICES LTD,38170,4,"1,212.03",GENERAL CLEANS,12/12/13,
061213C,KNIGHTON CLEANING SERVICES LTD,38170,5,588.44,GENERAL CLEANS,12/12/13,
061213C,KNIGHTON CLEANING SERVICES LTD,38170,6,"1,352.92",GENERAL CLEANS,12/12/13,
061213C,KNIGHTON CLEANING SERVICES LTD,38170,7,"1,962.26",GENERAL CLEANS,12/12/13,
061213C,KNIGHTON CLEANING SERVICES LTD,38170,8,"2,019.86",GENERAL CLEANS,12/12/13,
061213C,KNIGHTON CLEANING SERVICES LTD,38170,9,"3,162.88",GENERAL CLEANS,12/12/13,
061213C,KNIGHTON CLEANING SERVICES LTD,38170,10,995.59,GENERAL CLEANS,12/12/13,
061213C,KNIGHTON CLEANING SERVICES LTD,38170,11,879.86,GENERAL CLEANS,12/12/13,
061213C,KNIGHTON CLEANING SERVICES LTD,38170,12,"1,061.47",GENERAL CLEANS,12/12/13,
061213C,KNIGHTON CLEANING SERVICES LTD,38170,13,"1,208.43",GENERAL CLEANS,12/12/13,
061213C,KNIGHTON CLEANING SERVICES LTD,38170,14,"1,003.19",GENERAL CLEANS,12/12/13,
061213C,KNIGHTON CLEANING SERVICES LTD,38170,15,"1,048.85",GENERAL CLEANS,12/12/13,
061213C,KNIGHTON CLEANING SERVICES LTD,38170,16,"1,071.34",GENERAL CLEANS,12/12/13,
061213C,KNIGHTON CLEANING SERVICES LTD,38170,17,"1,333.85",GENERAL CLEANS,12/12/13,
061213C,KNIGHTON CLEANING SERVICES LTD,38170,18,"1,214.66",GENERAL CLEANS,12/12/13,
061213C,KNIGHTON CLEANING SERVICES LTD,38170,19,581.88,GENERAL CLEANS,12/12/13,
061213C,KNIGHTON CLEANING SERVICES LTD,38170,20,"12,111.60",GENERAL CLEANS,12/12/13,
061213C,KNIGHTON CLEANING SERVICES LTD,38170,21,"1,167.31",GENERAL CLEANS,12/12/13,
061213C,KNIGHTON CLEANING SERVICES LTD,38170,22,390.32,GENERAL CLEANS,12/12/13,
061213C,KNIGHTON CLEANING SERVICES LTD,38170,23,"1,480.68",GENERAL CLEANS,12/12/13,
061213C,KNIGHTON CLEANING SERVICES LTD,38170,24,"3,106.56",GENERAL CLEANS,12/12/13,
061213C,KNIGHTON CLEANING SERVICES LTD,38170,25,620.95,GENERAL CLEANS,12/12/13,
061213C,KNIGHTON CLEANING SERVICES LTD,38170,26,"1,694.87",GENERAL CLEANS,12/12/13,
061213C,KNIGHTON CLEANING SERVICES LTD,38170,27,837.31,GENERAL CLEANS,12/12/13,
061213C,KNIGHTON CLEANING SERVICES LTD,38170,28,"1,277.50",GENERAL CLEANS,12/12/13,
061213C,KNIGHTON CLEANING SERVICES LTD,38170,29,891.43,GENERAL CLEANS,12/12/13,
061213C,KNIGHTON CLEANING SERVICES LTD,38170,30,"1,883.42",GENERAL CLEANS,12/12/13,
061213C,KNIGHTON CLEANING SERVICES LTD,38170,31,"1,218.44",GENERAL CLEANS,12/12/13,
061213C,KNIGHTON CLEANING SERVICES LTD,38170,32,884.34,GENERAL CLEANS,12/12/13,
061213C,KNIGHTON CLEANING SERVICES LTD,38170,33,"1,177.51",GENERAL CLEANS,12/12/13,
061213C,KNIGHTON CLEANING SERVICES LTD,38170,34,"1,203.19",GENERAL CLEANS,12/12/13,
061213C,KNIGHTON CLEANING SERVICES LTD,38170,35,"7,662.97",GENERAL CLEANS,12/12/13,
061213C,KNIGHTON CLEANING SERVICES LTD,38170,36,718.82,GENERAL CLEANS,12/12/13,
061213C,KNIGHTON CLEANING SERVICES LTD,38170,37,897.31,GENERAL CLEANS,12/12/13,
061213C,KNIGHTON CLEANING SERVICES LTD,38170,38,"1,806.36",GENERAL CLEANS,12/12/13,
061213C,KNIGHTON CLEANING SERVICES LTD,38170,39,"1,050.32",GENERAL CLEANS,12/12/13,
061213C,KNIGHTON CLEANING SERVICES LTD,38170,40,797.40,GENERAL CLEANS,12/12/13,
061213C,KNIGHTON CLEANING SERVICES LTD,38170,41,"1,584.60",GENERAL CLEANS,12/12/13,
061213C,KNIGHTON CLEANING SERVICES LTD,38170,42,"1,288.59",GENERAL CLEANS,12/12/13,
061213C,KNIGHTON CLEANING SERVICES LTD,38170,43,"1,283.46",GENERAL CLEANS,12/12/13,
061213C,KNIGHTON CLEANING SERVICES LTD,38170,44,"1,188.30",GENERAL CLEANS,12/12/13,
061213C,KNIGHTON CLEANING SERVICES LTD,38170,45,"1,002.57",GENERAL CLEANS,12/12/13,
061213C,KNIGHTON CLEANING SERVICES LTD,38170,46,470.43,GENERAL CLEANS,12/12/13,
061213C,OPEN UNIVERSITY===============,385459,1,890.00,PROFESSIONAL DEVELOPMENT,12/12/13,890.00
800026817,*BURLINGTON UNIFORMS LTD,423779,1,191.87,CLOTHING,12/12/13,383.74
800026817,*BURLINGTON UNIFORMS LTD,423779,2,191.87,CLOTHING,12/12/13,
271113C,GLOBAL TO LOCAL LTD,437/11/AF179,1,350.00,CONSULTANTS,12/12/13,"2,037.21"
271113C,GLOBAL TO LOCAL LTD,437/11/AF179,2,"1,000.00",CONSULTANTS,12/12/13,
271113C,GLOBAL TO LOCAL LTD,437/11/AF179,3,687.21,CONSULTANTS,12/12/13,
140480,THAMES WATER UTILITIES LTD====,54858-88145=,1,282.46,WATER & SEWERAGE RATES,12/12/13,282.46
061213C,URS SCOTT WILSON LIMITED,5719568,1,"2,564.62",PROF FEES-MISCELLANEOUS,12/12/13,"2,564.62"
140480,THAMES WATER UTILITIES LTD====,65149-96346X,1,270.04,WATER & SEWERAGE RATES,12/12/13,270.04
021213D,VODAFONE LIMITED==============,69884675,1,"61,527.38",CELLULAR TELEPHONES,12/12/13,"61,527.38"
021213D,VODAFONE LIMITED==============,69884687,1,"1,264.01",CELLULAR TELEPHONES,12/12/13,"1,264.01"
091213C,SWEETT  UK LTD,7026071,1,940.00,STRATEGIC (NON CYCLICAL),12/12/13,940.00
101213E,SWEETT  UK LTD,7028938,1,"1,060.00",DEVELOPMENT  EXPENSES-CONTRACT,12/12/13,"1,060.00"
091213C,SWEETT  UK LTD,7028939,1,"1,534.67",PROF FEES-MISCELLANEOUS,12/12/13,"1,534.67"
021213D,BSRIA LTD=====================,70534,1,945.00,BOOKS & JOURNALS,12/12/13,945.00
140478,DEFENCE BUSINESS SERVICES,7344463,1,"19,335.00",HIRE OF FACILITIES,12/12/13,"19,335.00"
140480,THAMES WATER UTILITIES LTD====,7851512767J,1,"1,111.66",WATER & SEWERAGE RATES,12/12/13,"1,111.66"
140480,THAMES WATER UTILITIES LTD====,8111515030C,1,747.71,WATER & SEWERAGE RATES,12/12/13,747.71
140478,SUTTON & EAST SURREY WATER PLC,8590609K,1,"1,935.95",WATER & SEWERAGE RATES,12/12/13,"1,935.95"
061213C,VCG KESTREL LIMITED===========,88600,1,"1,847.50",PRINTING,12/12/13,"1,847.50"
061213C,DRAEGER SAFETY UK LIMITED=====,90431190,1,1.80,REPAIR & MAINTENANCE,12/12/13,705.31
061213C,DRAEGER SAFETY UK LIMITED=====,90431190,2,213.30,REPAIR & MAINTENANCE,12/12/13,
061213C,DRAEGER SAFETY UK LIMITED=====,90431190,3,364.21,REPAIR & MAINTENANCE,12/12/13,
061213C,DRAEGER SAFETY UK LIMITED=====,90431190,4,120.00,REPAIR & MAINTENANCE,12/12/13,
061213C,DRAEGER SAFETY UK LIMITED=====,90431190,5,6.00,REPAIR & MAINTENANCE,12/12/13,
061213C,DRAEGER SAFETY UK LIMITED=====,90431656,1,543.75,PROTECTIVE EQUIPT - PARTS,12/12/13,543.75
091213C,FIRE SERVICE COLLEGE LTD======,93312454,1,680.01,PROFESSIONAL DEVELOPMENT,12/12/13,680.01
140480,THAMES WATER UTILITIES LTD====,96378-41572K,1,877.10,WATER & SEWERAGE RATES,12/12/13,877.10
061213C,ASTEC SURVEYS LIMITED=========,ASL-13-238,1,445.00,ASBESTOS,12/12/13,445.00
061213C,THAMES WATER UTILITIES LTD====,CBA1313403,1,"1,185.00",CURRENT HYDRANT COSTS,12/12/13,"1,185.00"
061213C,THAMES WATER UTILITIES LTD====,CBA1313405,1,"1,185.00",CURRENT HYDRANT COSTS,12/12/13,"1,185.00"
021213D,HALL FUELS,I06481950,1,"3,301.80",FUEL,12/12/13,"3,301.80"
061213C,GREEN BROTHERS SIGNS LTD,INV48889,1,"1,020.48",OPERATIONAL EQUIP-PURCHASE,12/12/13,"2,040.96"
061213C,GREEN BROTHERS SIGNS LTD,INV48889,2,"1,020.48",OPERATIONAL EQUIP-PURCHASE,12/12/13,
061213C,PHOENIX SOFTWARE LTD==========,OP/I713643,1,"2,400.00",MAINTENANCE & SUPPORT,12/12/13,"4,120.00"
061213C,PHOENIX SOFTWARE LTD==========,OP/I713643,2,"1,720.00",MAINTENANCE & SUPPORT,12/12/13,
800026783,ALLSTAR BUSINESS SOLUTIONS LTD,P2001981785,1,943.03,FUEL,12/12/13,"21,996.84"
800026783,ALLSTAR BUSINESS SOLUTIONS LTD,P2001981785,2,709.39,FUEL,12/12/13,
800026783,ALLSTAR BUSINESS SOLUTIONS LTD,P2001981785,3,697.57,FUEL,12/12/13,
800026783,ALLSTAR BUSINESS SOLUTIONS LTD,P2001981785,4,458.24,FUEL,12/12/13,
800026783,ALLSTAR BUSINESS SOLUTIONS LTD,P2001981785,5,457.09,FUEL,12/12/13,
800026783,ALLSTAR BUSINESS SOLUTIONS LTD,P2001981785,6,449.48,FUEL,12/12/13,
800026783,ALLSTAR BUSINESS SOLUTIONS LTD,P2001981785,7,437.53,FUEL,12/12/13,
800026783,ALLSTAR BUSINESS SOLUTIONS LTD,P2001981785,8,400.01,FUEL,12/12/13,
800026783,ALLSTAR BUSINESS SOLUTIONS LTD,P2001981785,9,379.43,FUEL,12/12/13,
800026783,ALLSTAR BUSINESS SOLUTIONS LTD,P2001981785,10,379.30,FUEL,12/12/13,
800026783,ALLSTAR BUSINESS SOLUTIONS LTD,P2001981785,11,369.26,FUEL,12/12/13,
800026783,ALLSTAR BUSINESS SOLUTIONS LTD,P2001981785,12,362.57,FUEL,12/12/13,
800026783,ALLSTAR BUSINESS SOLUTIONS LTD,P2001981785,13,351.06,FUEL,12/12/13,
800026783,ALLSTAR BUSINESS SOLUTIONS LTD,P2001981785,14,340.87,FUEL,12/12/13,
800026783,ALLSTAR BUSINESS SOLUTIONS LTD,P2001981785,15,332.33,FUEL,12/12/13,
800026783,ALLSTAR BUSINESS SOLUTIONS LTD,P2001981785,16,330.17,FUEL,12/12/13,
800026783,ALLSTAR BUSINESS SOLUTIONS LTD,P2001981785,17,329.05,FUEL,12/12/13,
800026783,ALLSTAR BUSINESS SOLUTIONS LTD,P2001981785,18,323.14,FUEL,12/12/13,
800026783,ALLSTAR BUSINESS SOLUTIONS LTD,P2001981785,19,316.78,FUEL,12/12/13,
800026783,ALLSTAR BUSINESS SOLUTIONS LTD,P2001981785,20,308.73,FUEL,12/12/13,
800026783,ALLSTAR BUSINESS SOLUTIONS LTD,P2001981785,21,305.30,FUEL,12/12/13,
800026783,ALLSTAR BUSINESS SOLUTIONS LTD,P2001981785,22,294.00,FUEL,12/12/13,
800026783,ALLSTAR BUSINESS SOLUTIONS LTD,P2001981785,23,289.58,FUEL,12/12/13,
800026783,ALLSTAR BUSINESS SOLUTIONS LTD,P2001981785,24,280.50,FUEL,12/12/13,
800026783,ALLSTAR BUSINESS SOLUTIONS LTD,P2001981785,25,280.44,FUEL,12/12/13,
800026783,ALLSTAR BUSINESS SOLUTIONS LTD,P2001981785,26,268.10,FUEL,12/12/13,
800026783,ALLSTAR BUSINESS SOLUTIONS LTD,P2001981785,27,261.97,FUEL,12/12/13,
800026783,ALLSTAR BUSINESS SOLUTIONS LTD,P2001981785,28,261.60,FUEL,12/12/13,
800026783,ALLSTAR BUSINESS SOLUTIONS LTD,P2001981785,29,250.46,FUEL,12/12/13,
800026783,ALLSTAR BUSINESS SOLUTIONS LTD,P2001981785,30,248.46,FUEL,12/12/13,
800026783,ALLSTAR BUSINESS SOLUTIONS LTD,P2001981785,31,248.39,FUEL,12/12/13,
800026783,ALLSTAR BUSINESS SOLUTIONS LTD,P2001981785,32,240.42,FUEL,12/12/13,
800026783,ALLSTAR BUSINESS SOLUTIONS LTD,P2001981785,33,237.99,FUEL,12/12/13,
800026783,ALLSTAR BUSINESS SOLUTIONS LTD,P2001981785,34,230.75,FUEL,12/12/13,
800026783,ALLSTAR BUSINESS SOLUTIONS LTD,P2001981785,35,219.55,FUEL,12/12/13,
800026783,ALLSTAR BUSINESS SOLUTIONS LTD,P2001981785,36,215.73,FUEL,12/12/13,
800026783,ALLSTAR BUSINESS SOLUTIONS LTD,P2001981785,37,212.14,FUEL,12/12/13,
800026783,ALLSTAR BUSINESS SOLUTIONS LTD,P2001981785,38,204.21,FUEL,12/12/13,
800026783,ALLSTAR BUSINESS SOLUTIONS LTD,P2001981785,39,201.76,FUEL,12/12/13,
800026783,ALLSTAR BUSINESS SOLUTIONS LTD,P2001981785,40,200.49,FUEL,12/12/13,
800026783,ALLSTAR BUSINESS SOLUTIONS LTD,P2001981785,41,198.42,FUEL,12/12/13,
800026783,ALLSTAR BUSINESS SOLUTIONS LTD,P2001981785,42,197.78,FUEL,12/12/13,
800026783,ALLSTAR BUSINESS SOLUTIONS LTD,P2001981785,43,196.91,FUEL,12/12/13,
800026783,ALLSTAR BUSINESS SOLUTIONS LTD,P2001981785,44,189.88,FUEL,12/12/13,
800026783,ALLSTAR BUSINESS SOLUTIONS LTD,P2001981785,45,188.99,FUEL,12/12/13,
800026783,ALLSTAR BUSINESS SOLUTIONS LTD,P2001981785,46,182.93,FUEL,12/12/13,
800026783,ALLSTAR BUSINESS SOLUTIONS LTD,P2001981785,47,179.74,FUEL,12/12/13,
800026783,ALLSTAR BUSINESS SOLUTIONS LTD,P2001981785,48,177.03,FUEL,12/12/13,
800026783,ALLSTAR BUSINESS SOLUTIONS LTD,P2001981785,49,174.52,FUEL,12/12/13,
800026783,ALLSTAR BUSINESS SOLUTIONS LTD,P2001981785,50,172.22,FUEL,12/12/13,
800026783,ALLSTAR BUSINESS SOLUTIONS LTD,P2001981785,51,171.78,FUEL,12/12/13,
800026783,ALLSTAR BUSINESS SOLUTIONS LTD,P2001981785,52,171.36,FUEL,12/12/13,
800026783,ALLSTAR BUSINESS SOLUTIONS LTD,P2001981785,53,169.38,FUEL,12/12/13,
800026783,ALLSTAR BUSINESS SOLUTIONS LTD,P2001981785,54,165.27,FUEL,12/12/13,
800026783,ALLSTAR BUSINESS SOLUTIONS LTD,P2001981785,55,163.43,FUEL,12/12/13,
800026783,ALLSTAR BUSINESS SOLUTIONS LTD,P2001981785,56,162.88,FUEL,12/12/13,
800026783,ALLSTAR BUSINESS SOLUTIONS LTD,P2001981785,57,161.80,FUEL,12/12/13,
800026783,ALLSTAR BUSINESS SOLUTIONS LTD,P2001981785,58,161.65,FUEL,12/12/13,
800026783,ALLSTAR BUSINESS SOLUTIONS LTD,P2001981785,59,157.18,FUEL,12/12/13,
800026783,ALLSTAR BUSINESS SOLUTIONS LTD,P2001981785,60,155.55,FUEL,12/12/13,
800026783,ALLSTAR BUSINESS SOLUTIONS LTD,P2001981785,61,153.96,FUEL,12/12/13,
800026783,ALLSTAR BUSINESS SOLUTIONS LTD,P2001981785,62,149.49,FUEL,12/12/13,
800026783,ALLSTAR BUSINESS SOLUTIONS LTD,P2001981785,63,148.96,FUEL,12/12/13,
800026783,ALLSTAR BUSINESS SOLUTIONS LTD,P2001981785,64,148.64,FUEL,12/12/13,
800026783,ALLSTAR BUSINESS SOLUTIONS LTD,P2001981785,65,144.08,FUEL,12/12/13,
800026783,ALLSTAR BUSINESS SOLUTIONS LTD,P2001981785,66,144.04,FUEL,12/12/13,
800026783,ALLSTAR BUSINESS SOLUTIONS LTD,P2001981785,67,142.11,FUEL,12/12/13,
800026783,ALLSTAR BUSINESS SOLUTIONS LTD,P2001981785,68,138.78,FUEL,12/12/13,
800026783,ALLSTAR BUSINESS SOLUTIONS LTD,P2001981785,69,135.99,FUEL,12/12/13,
800026783,ALLSTAR BUSINESS SOLUTIONS LTD,P2001981785,70,135.85,FUEL,12/12/13,
800026783,ALLSTAR BUSINESS SOLUTIONS LTD,P2001981785,71,134.44,FUEL,12/12/13,
800026783,ALLSTAR BUSINESS SOLUTIONS LTD,P2001981785,72,133.96,FUEL,12/12/13,
800026783,ALLSTAR BUSINESS SOLUTIONS LTD,P2001981785,73,128.11,FUEL,12/12/13,
800026783,ALLSTAR BUSINESS SOLUTIONS LTD,P2001981785,74,128.04,FUEL,12/12/13,
800026783,ALLSTAR BUSINESS SOLUTIONS LTD,P2001981785,75,123.12,FUEL,12/12/13,
800026783,ALLSTAR BUSINESS SOLUTIONS LTD,P2001981785,76,123.09,FUEL,12/12/13,
800026783,ALLSTAR BUSINESS SOLUTIONS LTD,P2001981785,77,121.65,FUEL,12/12/13,
800026783,ALLSTAR BUSINESS SOLUTIONS LTD,P2001981785,78,119.04,FUEL,12/12/13,
800026783,ALLSTAR BUSINESS SOLUTIONS LTD,P2001981785,79,118.54,FUEL,12/12/13,
800026783,ALLSTAR BUSINESS SOLUTIONS LTD,P2001981785,80,118.16,FUEL,12/12/13,
800026783,ALLSTAR BUSINESS SOLUTIONS LTD,P2001981785,81,117.71,FUEL,12/12/13,
800026783,ALLSTAR BUSINESS SOLUTIONS LTD,P2001981785,82,114.29,FUEL,12/12/13,
800026783,ALLSTAR BUSINESS SOLUTIONS LTD,P2001981785,83,113.80,FUEL,12/12/13,
800026783,ALLSTAR BUSINESS SOLUTIONS LTD,P2001981785,84,111.25,FUEL,12/12/13,
800026783,ALLSTAR BUSINESS SOLUTIONS LTD,P2001981785,85,111.16,FUEL,12/12/13,
800026783,ALLSTAR BUSINESS SOLUTIONS LTD,P2001981785,86,110.20,FUEL,12/12/13,
800026783,ALLSTAR BUSINESS SOLUTIONS LTD,P2001981785,87,109.88,FUEL,12/12/13,
800026783,ALLSTAR BUSINESS SOLUTIONS LTD,P2001981785,88,109.66,FUEL,12/12/13,
800026783,ALLSTAR BUSINESS SOLUTIONS LTD,P2001981785,89,105.60,FUEL,12/12/13,
800026783,ALLSTAR BUSINESS SOLUTIONS LTD,P2001981785,90,105.03,FUEL,12/12/13,
800026783,ALLSTAR BUSINESS SOLUTIONS LTD,P2001981785,91,96.96,FUEL,12/12/13,
800026783,ALLSTAR BUSINESS SOLUTIONS LTD,P2001981785,92,96.23,FUEL,12/12/13,
800026783,ALLSTAR BUSINESS SOLUTIONS LTD,P2001981785,93,91.62,FUEL,12/12/13,
800026783,ALLSTAR BUSINESS SOLUTIONS LTD,P2001981785,94,89.36,FUEL,12/12/13,
800026783,ALLSTAR BUSINESS SOLUTIONS LTD,P2001981785,95,84.02,FUEL,12/12/13,
800026783,ALLSTAR BUSINESS SOLUTIONS LTD,P2001981785,96,82.82,FUEL,12/12/13,
800026783,ALLSTAR BUSINESS SOLUTIONS LTD,P2001981785,97,75.58,FUEL,12/12/13,
800026783,ALLSTAR BUSINESS SOLUTIONS LTD,P2001981785,98,74.23,FUEL,12/12/13,
800026783,ALLSTAR BUSINESS SOLUTIONS LTD,P2001981785,99,64.30,FUEL,12/12/13,
800026783,ALLSTAR BUSINESS SOLUTIONS LTD,P2001981785,100,48.31,FUEL,12/12/13,
800026783,ALLSTAR BUSINESS SOLUTIONS LTD,P2001981785,101,47.77,FUEL,12/12/13,
800026783,ALLSTAR BUSINESS SOLUTIONS LTD,P2001981785,102,46.95,FUEL,12/12/13,
800026783,ALLSTAR BUSINESS SOLUTIONS LTD,P2001981785,103,44.55,FUEL,12/12/13,
800026783,ALLSTAR BUSINESS SOLUTIONS LTD,P2001981785,104,39.76,FUEL,12/12/13,
800026783,ALLSTAR BUSINESS SOLUTIONS LTD,P2001981785,105,34.62,FUEL,12/12/13,
800026783,ALLSTAR BUSINESS SOLUTIONS LTD,P2001981785,106,32.26,FUEL,12/12/13,
800026783,ALLSTAR BUSINESS SOLUTIONS LTD,P2001981785,107,9.82,FUEL,12/12/13,
800026783,ALLSTAR BUSINESS SOLUTIONS LTD,P2001981785,108,8.66,FUEL,12/12/13,
800026783,ALLSTAR BUSINESS SOLUTIONS LTD,P2001981785,109,4.82,FUEL,12/12/13,
101213E,DODS PARLIAMENTARY COMM LTD==,PK073383,1,295.00,PROFESSIONAL DEVELOPMENT,12/12/13,295.00
061213C,SAFETYNET SOLUTIONS LIMITED===,PSI-0016116,1,"1,366.00",PREMISES SECURITY,12/12/13,"1,366.00"
291113G,THE UTILITIES EXCHANGE LTD====,RM00097,1,"2,243.75",CONSULTANTS,12/12/13,"2,243.75"
091213C,SECURITAS SECURITY SERVICES LT,S-SIN0189664,1,"185,617.90",GENERAL,12/12/13,"185,617.90"
091213C,HUNTER LODGE==================,SI-05384,1,"21,400.00",ADVERTISING,12/12/13,"21,400.00"
101213E,EDM GROUP LIMITED,SI13408,1,440.00,STATIONERY CONSUMABLES,12/12/13,440.00
091213D,MFD INTERNATIONAL LTD=========,SIN009285,1,"5,100.00",STRATEGIC (NON CYCLICAL),12/12/13,"5,100.00"
111213C,GOVNET COMMUNICATIONS=========,0000061172,1,355.00,PROFESSIONAL DEVELOPMENT,17/12/13,355.00
041213C,HEALTH MANAGEMENT LIMITED=====,0000106220,1,250.00,THIRD PARTY REPORTS,17/12/13,"1,921.95"
041213C,HEALTH MANAGEMENT LIMITED=====,0000106220,2,"1,671.95",THIRD PARTY REPORTS,17/12/13,
111213E,*OCS GROUP UK LTD,0000212393,1,"3,144.92",CATERING,17/12/13,"3,992.09"
111213E,*OCS GROUP UK LTD,0000212393,2,181.67,CATERING,17/12/13,
111213E,*OCS GROUP UK LTD,0000212393,3,665.50,CATERING,17/12/13,
111213E,APPLUS LLT,00199,1,"3,750.00",GENERAL,17/12/13,"3,750.00"
140483,OGILVIE FLEET LTD=============,00262859,1,361.13,LEASE CAR CHARGES,17/12/13,361.13
140483,OGILVIE FLEET LTD=============,00262859,2,-31.07,VAT CAR LEASING,17/12/13,
140483,OGILVIE FLEET LTD=============,00262859,3,31.07,LEASE CAR CHARGES,17/12/13,
140483,CB RICHARD ELLIS==============,010114311214,1,"10,000.00",RENTS,17/12/13,"10,000.00"
140483,BAA BUSINESS SUPPORT CENTRE===,100009781,1,"27,500.00",RENTS,17/12/13,"27,500.00"
111213D,OPERATIONAL RESEARCH IN HEALTH,104X/LFB1/39,1,"11,566.67",CONSULTANTS,17/12/13,"11,566.67"
111213C,INFOR (UNITED KINGDOM) LIMITED,11308196-GB04G,1,"1,605.00",DAY TO DAY MINOR IMPS,17/12/13,"1,605.00"
111213C,INFOR (UNITED KINGDOM) LIMITED,11308198-GB04G,1,"2,710.67",MAINTENANCE & SUPPORT,17/12/13,"2,710.67"
111213C,INFOR (UNITED KINGDOM) LIMITED,11308201-GB04G,1,"1,150.00",MAINTENANCE & SUPPORT,17/12/13,"1,150.00"
091213D,BDO LLP,1231669,1,"2,999.00",PROFESSIONAL SERVICES,17/12/13,"2,999.00"
800027005,*NPS (SHOES) LTD,12362,1,30.05,CLOTHING,17/12/13,"2,648.05"
800027005,*NPS (SHOES) LTD,12362,2,30.05,CLOTHING,17/12/13,
800027005,*NPS (SHOES) LTD,12362,3,30.05,CLOTHING,17/12/13,
800027005,*NPS (SHOES) LTD,12362,4,30.05,CLOTHING,17/12/13,
800027005,*NPS (SHOES) LTD,12362,5,30.05,CLOTHING,17/12/13,
800027005,*NPS (SHOES) LTD,12362,6,30.05,CLOTHING,17/12/13,
800027005,*NPS (SHOES) LTD,12362,7,30.05,CLOTHING,17/12/13,
800027005,*NPS (SHOES) LTD,12362,8,30.05,CLOTHING,17/12/13,
800027005,*NPS (SHOES) LTD,12362,9,30.05,CLOTHING,17/12/13,
800027005,*NPS (SHOES) LTD,12362,10,30.05,CLOTHING,17/12/13,
800027005,*NPS (SHOES) LTD,12362,11,30.05,CLOTHING,17/12/13,
800027005,*NPS (SHOES) LTD,12362,12,30.05,CLOTHING,17/12/13,
800027005,*NPS (SHOES) LTD,12362,13,30.05,CLOTHING,17/12/13,
800027005,*NPS (SHOES) LTD,12362,14,30.05,CLOTHING,17/12/13,
800027005,*NPS (SHOES) LTD,12362,15,30.05,CLOTHING,17/12/13,
800027005,*NPS (SHOES) LTD,12362,16,30.05,CLOTHING,17/12/13,
800027005,*NPS (SHOES) LTD,12362,17,30.05,CLOTHING,17/12/13,
800027005,*NPS (SHOES) LTD,12362,18,29.45,CLOTHING,17/12/13,
800027005,*NPS (SHOES) LTD,12362,19,29.45,CLOTHING,17/12/13,
800027005,*NPS (SHOES) LTD,12362,20,29.45,CLOTHING,17/12/13,
800027005,*NPS (SHOES) LTD,12362,21,29.45,CLOTHING,17/12/13,
800027005,*NPS (SHOES) LTD,12362,22,29.45,CLOTHING,17/12/13,
800027005,*NPS (SHOES) LTD,12362,23,29.45,CLOTHING,17/12/13,
800027005,*NPS (SHOES) LTD,12362,24,29.45,CLOTHING,17/12/13,
800027005,*NPS (SHOES) LTD,12362,25,29.45,CLOTHING,17/12/13,
800027005,*NPS (SHOES) LTD,12362,26,29.45,CLOTHING,17/12/13,
800027005,*NPS (SHOES) LTD,12362,27,29.45,CLOTHING,17/12/13,
800027005,*NPS (SHOES) LTD,12362,28,29.45,CLOTHING,17/12/13,
800027005,*NPS (SHOES) LTD,12362,29,29.45,CLOTHING,17/12/13,
800027005,*NPS (SHOES) LTD,12362,30,30.05,CLOTHING,17/12/13,
800027005,*NPS (SHOES) LTD,12362,31,30.05,CLOTHING,17/12/13,
800027005,*NPS (SHOES) LTD,12362,32,30.05,CLOTHING,17/12/13,
800027005,*NPS (SHOES) LTD,12362,33,30.05,CLOTHING,17/12/13,
800027005,*NPS (SHOES) LTD,12362,34,30.05,CLOTHING,17/12/13,
800027005,*NPS (SHOES) LTD,12362,35,30.05,CLOTHING,17/12/13,
800027005,*NPS (SHOES) LTD,12362,36,30.05,CLOTHING,17/12/13,
800027005,*NPS (SHOES) LTD,12362,37,30.05,CLOTHING,17/12/13,
800027005,*NPS (SHOES) LTD,12362,38,30.05,CLOTHING,17/12/13,
800027005,*NPS (SHOES) LTD,12362,39,30.05,CLOTHING,17/12/13,
800027005,*NPS (SHOES) LTD,12362,40,30.05,CLOTHING,17/12/13,
800027005,*NPS (SHOES) LTD,12362,41,30.05,CLOTHING,17/12/13,
800027005,*NPS (SHOES) LTD,12362,42,30.05,CLOTHING,17/12/13,
800027005,*NPS (SHOES) LTD,12362,43,30.05,CLOTHING,17/12/13,
800027005,*NPS (SHOES) LTD,12362,44,30.05,CLOTHING,17/12/13,
800027005,*NPS (SHOES) LTD,12362,45,30.05,CLOTHING,17/12/13,
800027005,*NPS (SHOES) LTD,12362,46,29.45,CLOTHING,17/12/13,
800027005,*NPS (SHOES) LTD,12362,47,29.45,CLOTHING,17/12/13,
800027005,*NPS (SHOES) LTD,12362,48,29.45,CLOTHING,17/12/13,
800027005,*NPS (SHOES) LTD,12362,49,29.45,CLOTHING,17/12/13,
800027005,*NPS (SHOES) LTD,12362,50,29.45,CLOTHING,17/12/13,
800027005,*NPS (SHOES) LTD,12362,51,29.45,CLOTHING,17/12/13,
800027005,*NPS (SHOES) LTD,12362,52,29.45,CLOTHING,17/12/13,
800027005,*NPS (SHOES) LTD,12362,53,29.45,CLOTHING,17/12/13,
800027005,*NPS (SHOES) LTD,12362,54,29.45,CLOTHING,17/12/13,
800027005,*NPS (SHOES) LTD,12362,55,29.45,CLOTHING,17/12/13,
800027005,*NPS (SHOES) LTD,12362,56,29.45,CLOTHING,17/12/13,
800027005,*NPS (SHOES) LTD,12362,57,29.45,CLOTHING,17/12/13,
800027005,*NPS (SHOES) LTD,12362,58,29.45,CLOTHING,17/12/13,
800027005,*NPS (SHOES) LTD,12362,59,29.45,CLOTHING,17/12/13,
800027005,*NPS (SHOES) LTD,12362,60,29.45,CLOTHING,17/12/13,
800027005,*NPS (SHOES) LTD,12362,61,29.45,CLOTHING,17/12/13,
800027005,*NPS (SHOES) LTD,12362,62,29.45,CLOTHING,17/12/13,
800027005,*NPS (SHOES) LTD,12362,63,29.45,CLOTHING,17/12/13,
800027005,*NPS (SHOES) LTD,12362,64,29.45,CLOTHING,17/12/13,
800027005,*NPS (SHOES) LTD,12362,65,29.45,CLOTHING,17/12/13,
800027005,*NPS (SHOES) LTD,12362,66,30.05,CLOTHING,17/12/13,
800027005,*NPS (SHOES) LTD,12362,67,30.05,CLOTHING,17/12/13,
800027005,*NPS (SHOES) LTD,12362,68,30.05,CLOTHING,17/12/13,
800027005,*NPS (SHOES) LTD,12362,69,30.05,CLOTHING,17/12/13,
800027005,*NPS (SHOES) LTD,12362,70,30.05,CLOTHING,17/12/13,
800027005,*NPS (SHOES) LTD,12362,71,30.05,CLOTHING,17/12/13,
800027005,*NPS (SHOES) LTD,12362,72,30.05,CLOTHING,17/12/13,
800027005,*NPS (SHOES) LTD,12362,73,30.05,CLOTHING,17/12/13,
800027005,*NPS (SHOES) LTD,12362,74,30.05,CLOTHING,17/12/13,
800027005,*NPS (SHOES) LTD,12362,75,30.05,CLOTHING,17/12/13,
800027005,*NPS (SHOES) LTD,12362,76,30.05,CLOTHING,17/12/13,
800027005,*NPS (SHOES) LTD,12362,77,30.05,CLOTHING,17/12/13,
800027005,*NPS (SHOES) LTD,12362,78,29.45,CLOTHING,17/12/13,
800027005,*NPS (SHOES) LTD,12362,79,29.45,CLOTHING,17/12/13,
800027005,*NPS (SHOES) LTD,12362,80,29.45,CLOTHING,17/12/13,
800027005,*NPS (SHOES) LTD,12362,81,29.45,CLOTHING,17/12/13,
800027005,*NPS (SHOES) LTD,12362,82,29.45,CLOTHING,17/12/13,
800027005,*NPS (SHOES) LTD,12362,83,29.45,CLOTHING,17/12/13,
800027005,*NPS (SHOES) LTD,12362,84,29.45,CLOTHING,17/12/13,
800027005,*NPS (SHOES) LTD,12362,85,29.45,CLOTHING,17/12/13,
800027005,*NPS (SHOES) LTD,12362,86,29.45,CLOTHING,17/12/13,
800027005,*NPS (SHOES) LTD,12362,87,29.45,CLOTHING,17/12/13,
800027005,*NPS (SHOES) LTD,12362,88,29.45,CLOTHING,17/12/13,
800027005,*NPS (SHOES) LTD,12362,89,29.45,CLOTHING,17/12/13,
800027006,*NPS (SHOES) LTD,12431,1,41.10,CLOTHING,17/12/13,"1,427.05"
800027006,*NPS (SHOES) LTD,12431,2,41.10,CLOTHING,17/12/13,
800027006,*NPS (SHOES) LTD,12431,3,41.10,CLOTHING,17/12/13,
800027006,*NPS (SHOES) LTD,12431,4,41.10,CLOTHING,17/12/13,
800027006,*NPS (SHOES) LTD,12431,5,30.05,CLOTHING,17/12/13,
800027006,*NPS (SHOES) LTD,12431,6,41.10,CLOTHING,17/12/13,
800027006,*NPS (SHOES) LTD,12431,7,41.10,CLOTHING,17/12/13,
800027006,*NPS (SHOES) LTD,12431,8,41.10,CLOTHING,17/12/13,
800027006,*NPS (SHOES) LTD,12431,9,41.10,CLOTHING,17/12/13,
800027006,*NPS (SHOES) LTD,12431,10,41.10,CLOTHING,17/12/13,
800027006,*NPS (SHOES) LTD,12431,11,41.10,CLOTHING,17/12/13,
800027006,*NPS (SHOES) LTD,12431,12,41.10,CLOTHING,17/12/13,
800027006,*NPS (SHOES) LTD,12431,13,41.10,CLOTHING,17/12/13,
800027006,*NPS (SHOES) LTD,12431,14,41.10,CLOTHING,17/12/13,
800027006,*NPS (SHOES) LTD,12431,15,41.10,CLOTHING,17/12/13,
800027006,*NPS (SHOES) LTD,12431,16,28.45,CLOTHING,17/12/13,
800027006,*NPS (SHOES) LTD,12431,17,30.05,CLOTHING,17/12/13,
800027006,*NPS (SHOES) LTD,12431,18,30.05,CLOTHING,17/12/13,
800027006,*NPS (SHOES) LTD,12431,19,30.05,CLOTHING,17/12/13,
800027006,*NPS (SHOES) LTD,12431,20,30.05,CLOTHING,17/12/13,
800027006,*NPS (SHOES) LTD,12431,21,30.05,CLOTHING,17/12/13,
800027006,*NPS (SHOES) LTD,12431,22,30.05,CLOTHING,17/12/13,
800027006,*NPS (SHOES) LTD,12431,23,30.05,CLOTHING,17/12/13,
800027006,*NPS (SHOES) LTD,12431,24,30.05,CLOTHING,17/12/13,
800027006,*NPS (SHOES) LTD,12431,25,30.05,CLOTHING,17/12/13,
800027006,*NPS (SHOES) LTD,12431,26,34.40,CLOTHING,17/12/13,
800027006,*NPS (SHOES) LTD,12431,27,34.40,CLOTHING,17/12/13,
800027006,*NPS (SHOES) LTD,12431,28,34.40,CLOTHING,17/12/13,
800027006,*NPS (SHOES) LTD,12431,29,34.40,CLOTHING,17/12/13,
800027006,*NPS (SHOES) LTD,12431,30,34.40,CLOTHING,17/12/13,
800027006,*NPS (SHOES) LTD,12431,31,34.40,CLOTHING,17/12/13,
800027006,*NPS (SHOES) LTD,12431,32,34.40,CLOTHING,17/12/13,
800027006,*NPS (SHOES) LTD,12431,33,34.40,CLOTHING,17/12/13,
800027006,*NPS (SHOES) LTD,12431,34,34.40,CLOTHING,17/12/13,
800027006,*NPS (SHOES) LTD,12431,35,34.40,CLOTHING,17/12/13,
800027006,*NPS (SHOES) LTD,12431,36,34.40,CLOTHING,17/12/13,
800027006,*NPS (SHOES) LTD,12431,37,34.40,CLOTHING,17/12/13,
800027006,*NPS (SHOES) LTD,12431,38,34.40,CLOTHING,17/12/13,
800027006,*NPS (SHOES) LTD,12431,39,34.40,CLOTHING,17/12/13,
800027006,*NPS (SHOES) LTD,12431,40,41.10,CLOTHING,17/12/13,
121213C,SURREY BLIND & CURTAIN CO=====,14003,1,"2,837.00",FIXTURES & FITTINGS,17/12/13,"2,837.00"
140483,PORT OF LONDON AUTHORITY======,15121314314,1,"6,031.25",RENTS,17/12/13,"6,031.25"
121213C,B NOKES CONTRACTS LTD,2002,1,799.50,STRATEGIC (NON CYCLICAL),17/12/13,799.50
121213C,B NOKES CONTRACTS LTD,2003,1,"2,404.00",STRATEGIC (NON CYCLICAL),17/12/13,"2,404.00"
121213C,B NOKES CONTRACTS LTD,2004,1,822.00,STRATEGIC (NON CYCLICAL),17/12/13,822.00
121213C,B NOKES CONTRACTS LTD,2005,1,"2,720.00",STRATEGIC (NON CYCLICAL),17/12/13,"2,720.00"
121213C,B NOKES CONTRACTS LTD,2006,1,"2,119.25",STRATEGIC (NON CYCLICAL),17/12/13,"2,119.25"
121213C,B NOKES CONTRACTS LTD,2007,1,420.00,STRATEGIC (NON CYCLICAL),17/12/13,569.50
121213C,B NOKES CONTRACTS LTD,2007,2,149.50,STRATEGIC (NON CYCLICAL),17/12/13,
041213C,SAFEGUARD PEST CON. & ENV.LTD,211878,1,300.00,PEST CONTROL,17/12/13,300.00
091213C,SAFEGUARD PEST CON. & ENV.LTD,211932,1,300.00,PEST CONTROL,17/12/13,300.00
111213E,ARKAS LIMITED=================,24004,1,"1,472.50",STRATEGIC (CYCLICAL),17/12/13,"1,472.50"
021213D,STORM TECHNOLOGIES============,249382,1,850.00,ACQUISITIONS,17/12/13,850.00
140483,TRANSPORT FOR LONDON==========,25-12-13/24-3-14,1,"52,851.74",RENTS,17/12/13,"52,851.74"
111213C,STORM TECHNOLOGIES============,250661,1,350.00,ACQUISITIONS,17/12/13,350.00
140483,L B OF BARKING & DAGENHAM=====,251213240314,1,"1,500.00",RENTS,17/12/13,"1,500.00"
800027013,ADECCO UK LIMITED=============,26627892,1,439.60,FRS STAFF AGENCY,17/12/13,439.60
800027014,ADECCO UK LIMITED=============,26627893,1,"2,500.00",FRS STAFF AGENCY,17/12/13,"2,500.00"
800027015,ADECCO UK LIMITED=============,26627894,1,594.65,FRS STAFF AGENCY,17/12/13,594.65
800027016,ADECCO UK LIMITED=============,26627895,1,594.65,FRS STAFF AGENCY,17/12/13,594.65
800027017,ADECCO UK LIMITED=============,26627896,1,475.72,FRS STAFF AGENCY,17/12/13,475.72
800027019,ADECCO UK LIMITED=============,26627898,1,686.28,FRS STAFF AGENCY,17/12/13,686.28
800027020,ADECCO UK LIMITED=============,26627899,1,439.60,FRS STAFF AGENCY,17/12/13,439.60
800027021,ADECCO UK LIMITED=============,26627900,1,594.65,FRS STAFF AGENCY,17/12/13,594.65
800027022,ADECCO UK LIMITED=============,26627901,1,"1,949.85",FRS STAFF AGENCY,17/12/13,"1,949.85"
800027023,ADECCO UK LIMITED=============,26627902,1,356.79,FRS STAFF AGENCY,17/12/13,356.79
800027025,ADECCO UK LIMITED=============,26627904,1,"1,450.89",FRS STAFF AGENCY,17/12/13,"1,450.89"
800027026,ADECCO UK LIMITED=============,26627905,1,263.76,FRS STAFF AGENCY,17/12/13,263.76
800027027,ADECCO UK LIMITED=============,26627906,1,594.65,FRS STAFF AGENCY,17/12/13,594.65
800027031,ADECCO UK LIMITED=============,26627910,1,401.92,FRS STAFF AGENCY,17/12/13,401.92
800027035,ADECCO UK LIMITED=============,26627914,1,994.50,FRS STAFF AGENCY,17/12/13,994.50
800027036,ADECCO UK LIMITED=============,26627915,1,439.60,FRS STAFF AGENCY,17/12/13,439.60
800027037,ADECCO UK LIMITED=============,26627916,1,"1,541.79",FRS STAFF AGENCY,17/12/13,"1,541.79"
800027011,ADECCO UK LIMITED=============,26631230,1,"1,212.00",FRS STAFF AGENCY,17/12/13,"1,212.00"
800027041,ADECCO UK LIMITED=============,26631231,1,969.60,FRS STAFF AGENCY,17/12/13,969.60
800027012,ADECCO UK LIMITED=============,26631232,1,"1,405.92",FRS STAFF AGENCY,17/12/13,"1,405.92"
800027042,ADECCO UK LIMITED=============,26631233,1,586.25,FRS STAFF AGENCY,17/12/13,586.25
800027043,ADECCO UK LIMITED=============,26631234,1,385.25,FRS STAFF AGENCY,17/12/13,385.25
800027039,ADECCO UK LIMITED=============,26631235,1,764.05,FRS STAFF AGENCY,17/12/13,764.05
800027040,ADECCO UK LIMITED=============,26631236,1,460.25,FRS STAFF AGENCY,17/12/13,460.25
800027010,ADECCO UK LIMITED=============,26631237,1,282.73,FRS STAFF AGENCY,17/12/13,282.73
091213C,APM===========================,293889,1,450.00,SUBSCRIPTIONS,17/12/13,450.00
061213C,CK DIRECT,3173,1,"9,995.00",STRATEGIC (NON CYCLICAL),17/12/13,"9,995.00"
091213C,COMPUTACENTRE================,3700819595,1,87.00,ACQUISITIONS,17/12/13,267.00
091213C,COMPUTACENTRE================,3700819595,2,180.00,ACQUISITIONS,17/12/13,
140482,FOCUS & VISION TECHNOLOGY LTD,37471,1,273.30,MEDICAL EXPENSES,17/12/13,273.30
140482,FOCUS & VISION TECHNOLOGY LTD,37503,1,454.28,MEDICAL EXPENSES,17/12/13,454.28
140482,FOCUS & VISION TECHNOLOGY LTD,37539,1,544.00,MEDICAL EXPENSES,17/12/13,544.00
140482,FOCUS & VISION TECHNOLOGY LTD,37593,1,278.50,MEDICAL EXPENSES,17/12/13,278.50
140482,FOCUS & VISION TECHNOLOGY LTD,37639,1,326.40,MEDICAL EXPENSES,17/12/13,326.40
140483,FOCUS & VISION TECHNOLOGY LTD,37668,1,"1,067.34",MEDICAL EXPENSES,17/12/13,"1,067.34"
140482,FOCUS & VISION TECHNOLOGY LTD,37764,1,424.68,MEDICAL EXPENSES,17/12/13,424.68
111213C,KNIGHTON CLEANING SERVICES LTD,37814,1,768.00,SPECIAL CLEANS,17/12/13,768.00
021213D,COMPUTACENTRE================,3805251908,1,"1,874.24",MAINTENANCE & SUPPORT,17/12/13,"1,874.24"
111213D,J & B BRAIDWAY LTD,389,1,139.30,CLOTHING,17/12/13,304.30
111213D,J & B BRAIDWAY LTD,389,2,11.15,CLOTHING,17/12/13,
111213D,J & B BRAIDWAY LTD,389,3,3.40,CLOTHING,17/12/13,
111213D,J & B BRAIDWAY LTD,389,4,139.30,CLOTHING,17/12/13,
111213D,J & B BRAIDWAY LTD,389,5,11.15,CLOTHING,17/12/13,
111213C,SPORTSAFE UK LTD==============,451782,1,125.00,GYM EQUIPMENT,17/12/13,"1,150.29"
111213C,SPORTSAFE UK LTD==============,451782,2,236.00,GYM EQUIPMENT,17/12/13,
111213C,SPORTSAFE UK LTD==============,451782,3,165.61,GYM EQUIPMENT,17/12/13,
111213C,SPORTSAFE UK LTD==============,451782,4,172.42,GYM EQUIPMENT,17/12/13,
111213C,SPORTSAFE UK LTD==============,451782,5,207.76,GYM EQUIPMENT,17/12/13,
111213C,SPORTSAFE UK LTD==============,451782,6,51.94,GYM EQUIPMENT,17/12/13,
111213C,SPORTSAFE UK LTD==============,451782,7,102.56,GYM EQUIPMENT,17/12/13,
111213C,SPORTSAFE UK LTD==============,451782,8,89.00,GYM EQUIPMENT,17/12/13,
140483,RESIDENTIAL PARTNERS,51900,1,"7,700.00",RENTS,17/12/13,"7,700.00"
111213D,PRESSURE COOLERS LTD==========,528135,1,8.25,CATERING FIXTURES,17/12/13,"1,311.00"
111213D,PRESSURE COOLERS LTD==========,528135,2,8.25,CATERING FIXTURES,17/12/13,
111213D,PRESSURE COOLERS LTD==========,528135,3,8.25,CATERING FIXTURES,17/12/13,
111213D,PRESSURE COOLERS LTD==========,528135,4,8.25,CATERING FIXTURES,17/12/13,
111213D,PRESSURE COOLERS LTD==========,528135,5,8.00,CATERING FIXTURES,17/12/13,
111213D,PRESSURE COOLERS LTD==========,528135,6,8.25,CATERING FIXTURES,17/12/13,
111213D,PRESSURE COOLERS LTD==========,528135,7,8.00,CATERING FIXTURES,17/12/13,
111213D,PRESSURE COOLERS LTD==========,528135,8,8.25,CATERING FIXTURES,17/12/13,
111213D,PRESSURE COOLERS LTD==========,528135,9,8.25,CATERING FIXTURES,17/12/13,
111213D,PRESSURE COOLERS LTD==========,528135,10,8.25,CATERING FIXTURES,17/12/13,
111213D,PRESSURE COOLERS LTD==========,528135,11,8.25,CATERING EQUIPMENT,17/12/13,
111213D,PRESSURE COOLERS LTD==========,528135,12,8.00,CATERING FIXTURES,17/12/13,
111213D,PRESSURE COOLERS LTD==========,528135,13,8.25,CATERING FIXTURES,17/12/13,
111213D,PRESSURE COOLERS LTD==========,528135,14,8.25,CATERING FIXTURES,17/12/13,
111213D,PRESSURE COOLERS LTD==========,528135,15,8.25,CATERING FIXTURES,17/12/13,
111213D,PRESSURE COOLERS LTD==========,528135,16,8.25,CATERING FIXTURES,17/12/13,
111213D,PRESSURE COOLERS LTD==========,528135,17,8.00,CATERING FIXTURES,17/12/13,
111213D,PRESSURE COOLERS LTD==========,528135,18,8.25,CATERING FIXTURES,17/12/13,
111213D,PRESSURE COOLERS LTD==========,528135,19,8.00,CATERING FIXTURES,17/12/13,
111213D,PRESSURE COOLERS LTD==========,528135,20,8.25,CATERING FIXTURES,17/12/13,
111213D,PRESSURE COOLERS LTD==========,528135,21,8.25,CATERING FIXTURES,17/12/13,
111213D,PRESSURE COOLERS LTD==========,528135,22,8.00,CATERING FIXTURES,17/12/13,
111213D,PRESSURE COOLERS LTD==========,528135,23,8.25,CATERING FIXTURES,17/12/13,
111213D,PRESSURE COOLERS LTD==========,528135,24,8.25,CATERING FIXTURES,17/12/13,
111213D,PRESSURE COOLERS LTD==========,528135,25,8.25,CATERING FIXTURES,17/12/13,
111213D,PRESSURE COOLERS LTD==========,528135,26,8.00,CATERING FIXTURES,17/12/13,
111213D,PRESSURE COOLERS LTD==========,528135,27,8.00,CATERING FIXTURES,17/12/13,
111213D,PRESSURE COOLERS LTD==========,528135,28,8.25,CATERING FIXTURES,17/12/13,
111213D,PRESSURE COOLERS LTD==========,528135,29,8.00,CATERING FIXTURES,17/12/13,
111213D,PRESSURE COOLERS LTD==========,528135,30,8.25,CATERING FIXTURES,17/12/13,
111213D,PRESSURE COOLERS LTD==========,528135,31,8.25,CATERING FIXTURES,17/12/13,
111213D,PRESSURE COOLERS LTD==========,528135,32,8.25,CATERING EQUIPMENT,17/12/13,
111213D,PRESSURE COOLERS LTD==========,528135,33,8.25,CATERING FIXTURES,17/12/13,
111213D,PRESSURE COOLERS LTD==========,528135,34,8.25,CATERING EQUIPMENT,17/12/13,
111213D,PRESSURE COOLERS LTD==========,528135,35,8.25,CATERING FIXTURES,17/12/13,
111213D,PRESSURE COOLERS LTD==========,528135,36,8.25,CATERING FIXTURES,17/12/13,
111213D,PRESSURE COOLERS LTD==========,528135,37,8.25,CATERING FIXTURES,17/12/13,
111213D,PRESSURE COOLERS LTD==========,528135,38,8.25,CATERING FIXTURES,17/12/13,
111213D,PRESSURE COOLERS LTD==========,528135,39,8.00,OFFICE EQUIPMENT,17/12/13,
111213D,PRESSURE COOLERS LTD==========,528135,40,8.25,CATERING FIXTURES,17/12/13,
111213D,PRESSURE COOLERS LTD==========,528135,41,8.25,CATERING FIXTURES,17/12/13,
111213D,PRESSURE COOLERS LTD==========,528135,42,8.25,CATERING FIXTURES,17/12/13,
111213D,PRESSURE COOLERS LTD==========,528135,43,8.25,CATERING FIXTURES,17/12/13,
111213D,PRESSURE COOLERS LTD==========,528135,44,8.00,CATERING FIXTURES,17/12/13,
111213D,PRESSURE COOLERS LTD==========,528135,45,8.00,CATERING FIXTURES,17/12/13,
111213D,PRESSURE COOLERS LTD==========,528135,46,8.25,CATERING FIXTURES,17/12/13,
111213D,PRESSURE COOLERS LTD==========,528135,47,8.25,CATERING FIXTURES,17/12/13,
111213D,PRESSURE COOLERS LTD==========,528135,48,8.25,CATERING FIXTURES,17/12/13,
111213D,PRESSURE COOLERS LTD==========,528135,49,8.25,CATERING FIXTURES,17/12/13,
111213D,PRESSURE COOLERS LTD==========,528135,50,8.00,CATERING FIXTURES,17/12/13,
111213D,PRESSURE COOLERS LTD==========,528135,51,8.25,CATERING FIXTURES,17/12/13,
111213D,PRESSURE COOLERS LTD==========,528135,52,8.25,CATERING FIXTURES,17/12/13,
111213D,PRESSURE COOLERS LTD==========,528135,53,8.25,CATERING FIXTURES,17/12/13,
111213D,PRESSURE COOLERS LTD==========,528135,54,8.25,CATERING FIXTURES,17/12/13,
111213D,PRESSURE COOLERS LTD==========,528135,55,8.25,CATERING FIXTURES,17/12/13,
111213D,PRESSURE COOLERS LTD==========,528135,56,8.25,CATERING FIXTURES,17/12/13,
111213D,PRESSURE COOLERS LTD==========,528135,57,8.00,CATERING FIXTURES,17/12/13,
111213D,PRESSURE COOLERS LTD==========,528135,58,8.25,CATERING FIXTURES,17/12/13,
111213D,PRESSURE COOLERS LTD==========,528135,59,8.25,CATERING EQUIPMENT,17/12/13,
111213D,PRESSURE COOLERS LTD==========,528135,60,8.25,CATERING FIXTURES,17/12/13,
111213D,PRESSURE COOLERS LTD==========,528135,61,8.25,CATERING FIXTURES,17/12/13,
111213D,PRESSURE COOLERS LTD==========,528135,62,8.25,CATERING FIXTURES,17/12/13,
111213D,PRESSURE COOLERS LTD==========,528135,63,8.25,CATERING FIXTURES,17/12/13,
111213D,PRESSURE COOLERS LTD==========,528135,64,8.25,CATERING FIXTURES,17/12/13,
111213D,PRESSURE COOLERS LTD==========,528135,65,8.25,CATERING FIXTURES,17/12/13,
111213D,PRESSURE COOLERS LTD==========,528135,66,8.25,CATERING FIXTURES,17/12/13,
111213D,PRESSURE COOLERS LTD==========,528135,67,8.00,CATERING FIXTURES,17/12/13,
111213D,PRESSURE COOLERS LTD==========,528135,68,8.25,CATERING FIXTURES,17/12/13,
111213D,PRESSURE COOLERS LTD==========,528135,69,8.25,CATERING FIXTURES,17/12/13,
111213D,PRESSURE COOLERS LTD==========,528135,70,8.25,CATERING FIXTURES,17/12/13,
111213D,PRESSURE COOLERS LTD==========,528135,71,8.25,CATERING FIXTURES,17/12/13,
111213D,PRESSURE COOLERS LTD==========,528135,72,8.25,CATERING FIXTURES,17/12/13,
111213D,PRESSURE COOLERS LTD==========,528135,73,8.25,CATERING FIXTURES,17/12/13,
111213D,PRESSURE COOLERS LTD==========,528135,74,8.25,CATERING FIXTURES,17/12/13,
111213D,PRESSURE COOLERS LTD==========,528135,75,8.25,CATERING FIXTURES,17/12/13,
111213D,PRESSURE COOLERS LTD==========,528135,76,8.25,CATERING FIXTURES,17/12/13,
111213D,PRESSURE COOLERS LTD==========,528135,77,8.25,CATERING FIXTURES,17/12/13,
111213D,PRESSURE COOLERS LTD==========,528135,78,8.25,CATERING FIXTURES,17/12/13,
111213D,PRESSURE COOLERS LTD==========,528135,79,8.25,CATERING FIXTURES,17/12/13,
111213D,PRESSURE COOLERS LTD==========,528135,80,8.25,CATERING FIXTURES,17/12/13,
111213D,PRESSURE COOLERS LTD==========,528135,81,8.25,CATERING FIXTURES,17/12/13,
111213D,PRESSURE COOLERS LTD==========,528135,82,8.25,CATERING FIXTURES,17/12/13,
111213D,PRESSURE COOLERS LTD==========,528135,83,8.25,OFFICE EQUIPMENT,17/12/13,
111213D,PRESSURE COOLERS LTD==========,528135,84,8.25,CATERING FIXTURES,17/12/13,
111213D,PRESSURE COOLERS LTD==========,528135,85,8.00,CATERING FIXTURES,17/12/13,
111213D,PRESSURE COOLERS LTD==========,528135,86,8.00,CATERING FIXTURES,17/12/13,
111213D,PRESSURE COOLERS LTD==========,528135,87,8.25,CATERING FIXTURES,17/12/13,
111213D,PRESSURE COOLERS LTD==========,528135,88,8.00,CATERING FIXTURES,17/12/13,
111213D,PRESSURE COOLERS LTD==========,528135,89,8.00,OFFICE EQUIPMENT,17/12/13,
111213D,PRESSURE COOLERS LTD==========,528135,90,8.25,CATERING FIXTURES,17/12/13,
111213D,PRESSURE COOLERS LTD==========,528135,91,8.00,CATERING FIXTURES,17/12/13,
111213D,PRESSURE COOLERS LTD==========,528135,92,8.25,CATERING FIXTURES,17/12/13,
111213D,PRESSURE COOLERS LTD==========,528135,93,8.25,CATERING FIXTURES,17/12/13,
111213D,PRESSURE COOLERS LTD==========,528135,94,8.00,CATERING FIXTURES,17/12/13,
111213D,PRESSURE COOLERS LTD==========,528135,95,8.25,CATERING FIXTURES,17/12/13,
111213D,PRESSURE COOLERS LTD==========,528135,96,8.25,CATERING FIXTURES,17/12/13,
111213D,PRESSURE COOLERS LTD==========,528135,97,8.00,CATERING FIXTURES,17/12/13,
111213D,PRESSURE COOLERS LTD==========,528135,98,8.25,CATERING FIXTURES,17/12/13,
111213D,PRESSURE COOLERS LTD==========,528135,99,8.25,CATERING FIXTURES,17/12/13,
111213D,PRESSURE COOLERS LTD==========,528135,100,8.25,CATERING FIXTURES,17/12/13,
111213D,PRESSURE COOLERS LTD==========,528135,101,8.25,CATERING FIXTURES,17/12/13,
111213D,PRESSURE COOLERS LTD==========,528135,102,8.25,CATERING FIXTURES,17/12/13,
111213D,PRESSURE COOLERS LTD==========,528135,103,8.25,CATERING FIXTURES,17/12/13,
111213D,PRESSURE COOLERS LTD==========,528135,104,8.00,CATERING FIXTURES,17/12/13,
111213D,PRESSURE COOLERS LTD==========,528135,105,8.25,CATERING FIXTURES,17/12/13,
111213D,PRESSURE COOLERS LTD==========,528135,106,8.00,CATERING FIXTURES,17/12/13,
111213D,PRESSURE COOLERS LTD==========,528135,107,8.25,CATERING FIXTURES,17/12/13,
111213D,PRESSURE COOLERS LTD==========,528135,108,8.25,CATERING FIXTURES,17/12/13,
111213D,PRESSURE COOLERS LTD==========,528135,109,8.25,CATERING FIXTURES,17/12/13,
111213D,PRESSURE COOLERS LTD==========,528135,110,8.00,CATERING FIXTURES,17/12/13,
111213D,PRESSURE COOLERS LTD==========,528135,111,8.00,CATERING FIXTURES,17/12/13,
111213D,PRESSURE COOLERS LTD==========,528135,112,8.25,CATERING FIXTURES,17/12/13,
111213D,PRESSURE COOLERS LTD==========,528135,113,8.25,CATERING FIXTURES,17/12/13,
111213D,PRESSURE COOLERS LTD==========,528135,114,8.00,CATERING FIXTURES,17/12/13,
111213D,PRESSURE COOLERS LTD==========,528135,115,8.25,CATERING FIXTURES,17/12/13,
111213D,PRESSURE COOLERS LTD==========,528135,116,8.25,RADIO,17/12/13,
111213D,PRESSURE COOLERS LTD==========,528135,117,8.25,CATERING FIXTURES,17/12/13,
111213D,PRESSURE COOLERS LTD==========,528135,118,8.25,CATERING FIXTURES,17/12/13,
111213D,PRESSURE COOLERS LTD==========,528135,119,8.25,CATERING FIXTURES,17/12/13,
111213D,PRESSURE COOLERS LTD==========,528135,120,8.00,CATERING FIXTURES,17/12/13,
111213D,PRESSURE COOLERS LTD==========,528135,121,8.25,CATERING FIXTURES,17/12/13,
111213D,PRESSURE COOLERS LTD==========,528135,122,8.25,CATERING FIXTURES,17/12/13,
111213D,PRESSURE COOLERS LTD==========,528135,123,8.25,CATERING FIXTURES,17/12/13,
111213D,PRESSURE COOLERS LTD==========,528135,124,8.25,CATERING FIXTURES,17/12/13,
111213D,PRESSURE COOLERS LTD==========,528135,125,8.25,CATERING FIXTURES,17/12/13,
111213D,PRESSURE COOLERS LTD==========,528135,126,8.25,CATERING FIXTURES,17/12/13,
111213D,PRESSURE COOLERS LTD==========,528135,127,8.25,CATERING FIXTURES,17/12/13,
111213D,PRESSURE COOLERS LTD==========,528135,128,8.00,CATERING EQUIPMENT,17/12/13,
111213D,PRESSURE COOLERS LTD==========,528135,129,8.25,CATERING FIXTURES,17/12/13,
111213D,PRESSURE COOLERS LTD==========,528135,130,8.25,CATERING FIXTURES,17/12/13,
111213D,PRESSURE COOLERS LTD==========,528135,131,8.25,CATERING FIXTURES,17/12/13,
111213D,PRESSURE COOLERS LTD==========,528135,132,8.25,CATERING FIXTURES,17/12/13,
111213D,PRESSURE COOLERS LTD==========,528135,133,8.25,STATIONERY CONSUMABLES,17/12/13,
111213D,PRESSURE COOLERS LTD==========,528135,134,8.25,CATERING FIXTURES,17/12/13,
111213D,PRESSURE COOLERS LTD==========,528135,135,8.25,CATERING FIXTURES,17/12/13,
111213D,PRESSURE COOLERS LTD==========,528135,136,8.00,CATERING FIXTURES,17/12/13,
111213D,PRESSURE COOLERS LTD==========,528135,137,8.25,CATERING FIXTURES,17/12/13,
111213D,PRESSURE COOLERS LTD==========,528135,138,8.25,CATERING FIXTURES,17/12/13,
111213D,PRESSURE COOLERS LTD==========,528135,139,8.25,CATERING FIXTURES,17/12/13,
111213D,PRESSURE COOLERS LTD==========,528135,140,8.25,CATERING FIXTURES,17/12/13,
111213D,PRESSURE COOLERS LTD==========,528135,141,8.25,CATERING FIXTURES,17/12/13,
111213D,PRESSURE COOLERS LTD==========,528135,142,8.25,CATERING FIXTURES,17/12/13,
111213D,PRESSURE COOLERS LTD==========,528135,143,8.00,CATERING FIXTURES,17/12/13,
111213D,PRESSURE COOLERS LTD==========,528135,144,8.00,CATERING FIXTURES,17/12/13,
111213D,PRESSURE COOLERS LTD==========,528135,145,8.25,CATERING FIXTURES,17/12/13,
111213D,PRESSURE COOLERS LTD==========,528135,146,8.25,CATERING FIXTURES,17/12/13,
111213D,PRESSURE COOLERS LTD==========,528135,147,8.00,CATERING FIXTURES,17/12/13,
111213D,PRESSURE COOLERS LTD==========,528135,148,8.25,CATERING FIXTURES,17/12/13,
111213D,PRESSURE COOLERS LTD==========,528135,149,8.00,CATERING FIXTURES,17/12/13,
111213D,PRESSURE COOLERS LTD==========,528135,150,8.00,CATERING FIXTURES,17/12/13,
111213D,PRESSURE COOLERS LTD==========,528135,151,8.25,CATERING FIXTURES,17/12/13,
111213D,PRESSURE COOLERS LTD==========,528135,152,8.25,CATERING FIXTURES,17/12/13,
111213D,PRESSURE COOLERS LTD==========,528135,153,8.25,CATERING FIXTURES,17/12/13,
111213D,PRESSURE COOLERS LTD==========,528135,154,8.25,CATERING FIXTURES,17/12/13,
111213D,PRESSURE COOLERS LTD==========,528135,155,8.25,CATERING FIXTURES,17/12/13,
111213D,PRESSURE COOLERS LTD==========,528135,156,8.25,CATERING FIXTURES,17/12/13,
111213D,PRESSURE COOLERS LTD==========,528135,157,8.00,CATERING FIXTURES,17/12/13,
111213D,PRESSURE COOLERS LTD==========,528135,158,8.25,CATERING FIXTURES,17/12/13,
111213D,PRESSURE COOLERS LTD==========,528135,159,8.25,OPERATIONAL EQUIP-PURCHASE,17/12/13,
111213D,PRESSURE COOLERS LTD==========,528135,160,8.25,OPERATIONAL DIRECT STANDBY,17/12/13,
111213D,PRESSURE COOLERS LTD==========,531387,1,8.25,CATERING FIXTURES,17/12/13,"1,303.00"
111213D,PRESSURE COOLERS LTD==========,531387,2,8.25,CATERING FIXTURES,17/12/13,
111213D,PRESSURE COOLERS LTD==========,531387,3,8.25,CATERING FIXTURES,17/12/13,
111213D,PRESSURE COOLERS LTD==========,531387,4,8.25,CATERING FIXTURES,17/12/13,
111213D,PRESSURE COOLERS LTD==========,531387,5,8.00,CATERING FIXTURES,17/12/13,
111213D,PRESSURE COOLERS LTD==========,531387,6,8.25,CATERING FIXTURES,17/12/13,
111213D,PRESSURE COOLERS LTD==========,531387,7,8.00,CATERING FIXTURES,17/12/13,
111213D,PRESSURE COOLERS LTD==========,531387,8,8.25,CATERING FIXTURES,17/12/13,
111213D,PRESSURE COOLERS LTD==========,531387,9,8.25,CATERING FIXTURES,17/12/13,
111213D,PRESSURE COOLERS LTD==========,531387,10,8.25,CATERING FIXTURES,17/12/13,
111213D,PRESSURE COOLERS LTD==========,531387,11,8.25,CATERING EQUIPMENT,17/12/13,
111213D,PRESSURE COOLERS LTD==========,531387,12,8.00,CATERING FIXTURES,17/12/13,
111213D,PRESSURE COOLERS LTD==========,531387,13,8.25,CATERING FIXTURES,17/12/13,
111213D,PRESSURE COOLERS LTD==========,531387,14,8.25,CATERING FIXTURES,17/12/13,
111213D,PRESSURE COOLERS LTD==========,531387,15,8.25,CATERING FIXTURES,17/12/13,
111213D,PRESSURE COOLERS LTD==========,531387,16,8.25,CATERING FIXTURES,17/12/13,
111213D,PRESSURE COOLERS LTD==========,531387,17,8.00,CATERING FIXTURES,17/12/13,
111213D,PRESSURE COOLERS LTD==========,531387,18,8.25,CATERING FIXTURES,17/12/13,
111213D,PRESSURE COOLERS LTD==========,531387,19,8.00,CATERING FIXTURES,17/12/13,
111213D,PRESSURE COOLERS LTD==========,531387,20,8.25,CATERING FIXTURES,17/12/13,
111213D,PRESSURE COOLERS LTD==========,531387,21,8.25,CATERING FIXTURES,17/12/13,
111213D,PRESSURE COOLERS LTD==========,531387,22,8.00,CATERING FIXTURES,17/12/13,
111213D,PRESSURE COOLERS LTD==========,531387,23,8.25,CATERING FIXTURES,17/12/13,
111213D,PRESSURE COOLERS LTD==========,531387,24,8.25,CATERING FIXTURES,17/12/13,
111213D,PRESSURE COOLERS LTD==========,531387,25,8.25,CATERING FIXTURES,17/12/13,
111213D,PRESSURE COOLERS LTD==========,531387,26,8.00,CATERING FIXTURES,17/12/13,
111213D,PRESSURE COOLERS LTD==========,531387,27,8.00,CATERING FIXTURES,17/12/13,
111213D,PRESSURE COOLERS LTD==========,531387,28,8.25,CATERING FIXTURES,17/12/13,
111213D,PRESSURE COOLERS LTD==========,531387,29,8.00,CATERING FIXTURES,17/12/13,
111213D,PRESSURE COOLERS LTD==========,531387,30,8.25,CATERING FIXTURES,17/12/13,
111213D,PRESSURE COOLERS LTD==========,531387,31,8.25,CATERING FIXTURES,17/12/13,
111213D,PRESSURE COOLERS LTD==========,531387,32,8.25,CATERING EQUIPMENT,17/12/13,
111213D,PRESSURE COOLERS LTD==========,531387,33,8.25,CATERING FIXTURES,17/12/13,
111213D,PRESSURE COOLERS LTD==========,531387,34,8.25,CATERING EQUIPMENT,17/12/13,
111213D,PRESSURE COOLERS LTD==========,531387,35,8.25,CATERING FIXTURES,17/12/13,
111213D,PRESSURE COOLERS LTD==========,531387,36,8.25,CATERING FIXTURES,17/12/13,
111213D,PRESSURE COOLERS LTD==========,531387,37,8.25,CATERING FIXTURES,17/12/13,
111213D,PRESSURE COOLERS LTD==========,531387,38,8.25,CATERING FIXTURES,17/12/13,
111213D,PRESSURE COOLERS LTD==========,531387,39,8.00,OFFICE EQUIPMENT,17/12/13,
111213D,PRESSURE COOLERS LTD==========,531387,40,8.25,CATERING FIXTURES,17/12/13,
111213D,PRESSURE COOLERS LTD==========,531387,41,8.25,CATERING FIXTURES,17/12/13,
111213D,PRESSURE COOLERS LTD==========,531387,42,8.25,CATERING FIXTURES,17/12/13,
111213D,PRESSURE COOLERS LTD==========,531387,43,8.25,CATERING FIXTURES,17/12/13,
111213D,PRESSURE COOLERS LTD==========,531387,44,8.00,CATERING FIXTURES,17/12/13,
111213D,PRESSURE COOLERS LTD==========,531387,45,8.00,CATERING FIXTURES,17/12/13,
111213D,PRESSURE COOLERS LTD==========,531387,46,8.25,CATERING FIXTURES,17/12/13,
111213D,PRESSURE COOLERS LTD==========,531387,47,8.25,CATERING FIXTURES,17/12/13,
111213D,PRESSURE COOLERS LTD==========,531387,48,8.25,CATERING FIXTURES,17/12/13,
111213D,PRESSURE COOLERS LTD==========,531387,49,8.25,CATERING FIXTURES,17/12/13,
111213D,PRESSURE COOLERS LTD==========,531387,50,8.00,CATERING FIXTURES,17/12/13,
111213D,PRESSURE COOLERS LTD==========,531387,51,8.25,CATERING FIXTURES,17/12/13,
111213D,PRESSURE COOLERS LTD==========,531387,52,8.25,CATERING FIXTURES,17/12/13,
111213D,PRESSURE COOLERS LTD==========,531387,53,8.25,CATERING FIXTURES,17/12/13,
111213D,PRESSURE COOLERS LTD==========,531387,54,8.25,CATERING FIXTURES,17/12/13,
111213D,PRESSURE COOLERS LTD==========,531387,55,8.25,CATERING FIXTURES,17/12/13,
111213D,PRESSURE COOLERS LTD==========,531387,56,8.25,CATERING FIXTURES,17/12/13,
111213D,PRESSURE COOLERS LTD==========,531387,57,8.00,CATERING FIXTURES,17/12/13,
111213D,PRESSURE COOLERS LTD==========,531387,58,8.25,CATERING FIXTURES,17/12/13,
111213D,PRESSURE COOLERS LTD==========,531387,59,8.25,CATERING EQUIPMENT,17/12/13,
111213D,PRESSURE COOLERS LTD==========,531387,60,8.25,CATERING FIXTURES,17/12/13,
111213D,PRESSURE COOLERS LTD==========,531387,61,8.25,CATERING FIXTURES,17/12/13,
111213D,PRESSURE COOLERS LTD==========,531387,62,8.25,CATERING FIXTURES,17/12/13,
111213D,PRESSURE COOLERS LTD==========,531387,63,8.25,CATERING FIXTURES,17/12/13,
111213D,PRESSURE COOLERS LTD==========,531387,64,8.25,CATERING FIXTURES,17/12/13,
111213D,PRESSURE COOLERS LTD==========,531387,65,8.25,CATERING FIXTURES,17/12/13,
111213D,PRESSURE COOLERS LTD==========,531387,66,8.25,CATERING FIXTURES,17/12/13,
111213D,PRESSURE COOLERS LTD==========,531387,67,8.00,CATERING FIXTURES,17/12/13,
111213D,PRESSURE COOLERS LTD==========,531387,68,8.25,CATERING FIXTURES,17/12/13,
111213D,PRESSURE COOLERS LTD==========,531387,69,8.25,CATERING FIXTURES,17/12/13,
111213D,PRESSURE COOLERS LTD==========,531387,70,8.25,CATERING FIXTURES,17/12/13,
111213D,PRESSURE COOLERS LTD==========,531387,71,8.25,CATERING FIXTURES,17/12/13,
111213D,PRESSURE COOLERS LTD==========,531387,72,8.25,CATERING FIXTURES,17/12/13,
111213D,PRESSURE COOLERS LTD==========,531387,73,8.25,CATERING FIXTURES,17/12/13,
111213D,PRESSURE COOLERS LTD==========,531387,74,8.25,CATERING FIXTURES,17/12/13,
111213D,PRESSURE COOLERS LTD==========,531387,75,8.25,CATERING FIXTURES,17/12/13,
111213D,PRESSURE COOLERS LTD==========,531387,76,8.25,CATERING FIXTURES,17/12/13,
111213D,PRESSURE COOLERS LTD==========,531387,77,8.25,CATERING FIXTURES,17/12/13,
111213D,PRESSURE COOLERS LTD==========,531387,78,8.25,CATERING FIXTURES,17/12/13,
111213D,PRESSURE COOLERS LTD==========,531387,79,8.25,CATERING FIXTURES,17/12/13,
111213D,PRESSURE COOLERS LTD==========,531387,80,8.25,CATERING FIXTURES,17/12/13,
111213D,PRESSURE COOLERS LTD==========,531387,81,8.25,CATERING FIXTURES,17/12/13,
111213D,PRESSURE COOLERS LTD==========,531387,82,8.25,CATERING FIXTURES,17/12/13,
111213D,PRESSURE COOLERS LTD==========,531387,83,8.25,OFFICE EQUIPMENT,17/12/13,
111213D,PRESSURE COOLERS LTD==========,531387,84,8.25,CATERING FIXTURES,17/12/13,
111213D,PRESSURE COOLERS LTD==========,531387,85,8.00,CATERING FIXTURES,17/12/13,
111213D,PRESSURE COOLERS LTD==========,531387,86,8.00,CATERING FIXTURES,17/12/13,
111213D,PRESSURE COOLERS LTD==========,531387,87,8.25,CATERING FIXTURES,17/12/13,
111213D,PRESSURE COOLERS LTD==========,531387,88,8.00,CATERING FIXTURES,17/12/13,
111213D,PRESSURE COOLERS LTD==========,531387,89,8.00,OFFICE EQUIPMENT,17/12/13,
111213D,PRESSURE COOLERS LTD==========,531387,90,8.25,CATERING FIXTURES,17/12/13,
111213D,PRESSURE COOLERS LTD==========,531387,91,8.00,CATERING FIXTURES,17/12/13,
111213D,PRESSURE COOLERS LTD==========,531387,92,8.25,CATERING FIXTURES,17/12/13,
111213D,PRESSURE COOLERS LTD==========,531387,93,8.25,CATERING FIXTURES,17/12/13,
111213D,PRESSURE COOLERS LTD==========,531387,94,8.00,CATERING FIXTURES,17/12/13,
111213D,PRESSURE COOLERS LTD==========,531387,95,8.25,CATERING FIXTURES,17/12/13,
111213D,PRESSURE COOLERS LTD==========,531387,96,8.25,CATERING FIXTURES,17/12/13,
111213D,PRESSURE COOLERS LTD==========,531387,97,8.00,CATERING FIXTURES,17/12/13,
111213D,PRESSURE COOLERS LTD==========,531387,98,8.25,CATERING FIXTURES,17/12/13,
111213D,PRESSURE COOLERS LTD==========,531387,99,8.25,CATERING FIXTURES,17/12/13,
111213D,PRESSURE COOLERS LTD==========,531387,100,8.25,CATERING FIXTURES,17/12/13,
111213D,PRESSURE COOLERS LTD==========,531387,101,8.25,CATERING FIXTURES,17/12/13,
111213D,PRESSURE COOLERS LTD==========,531387,102,8.25,CATERING FIXTURES,17/12/13,
111213D,PRESSURE COOLERS LTD==========,531387,103,8.25,CATERING FIXTURES,17/12/13,
111213D,PRESSURE COOLERS LTD==========,531387,104,8.25,CATERING FIXTURES,17/12/13,
111213D,PRESSURE COOLERS LTD==========,531387,105,8.00,CATERING FIXTURES,17/12/13,
111213D,PRESSURE COOLERS LTD==========,531387,106,8.25,CATERING FIXTURES,17/12/13,
111213D,PRESSURE COOLERS LTD==========,531387,107,8.25,CATERING FIXTURES,17/12/13,
111213D,PRESSURE COOLERS LTD==========,531387,108,8.25,CATERING FIXTURES,17/12/13,
111213D,PRESSURE COOLERS LTD==========,531387,109,8.00,CATERING FIXTURES,17/12/13,
111213D,PRESSURE COOLERS LTD==========,531387,110,8.00,CATERING FIXTURES,17/12/13,
111213D,PRESSURE COOLERS LTD==========,531387,111,8.25,CATERING FIXTURES,17/12/13,
111213D,PRESSURE COOLERS LTD==========,531387,112,8.25,CATERING FIXTURES,17/12/13,
111213D,PRESSURE COOLERS LTD==========,531387,113,8.00,CATERING FIXTURES,17/12/13,
111213D,PRESSURE COOLERS LTD==========,531387,114,8.25,CATERING FIXTURES,17/12/13,
111213D,PRESSURE COOLERS LTD==========,531387,115,8.25,RADIO,17/12/13,
111213D,PRESSURE COOLERS LTD==========,531387,116,8.25,CATERING FIXTURES,17/12/13,
111213D,PRESSURE COOLERS LTD==========,531387,117,8.25,CATERING FIXTURES,17/12/13,
111213D,PRESSURE COOLERS LTD==========,531387,118,8.25,CATERING FIXTURES,17/12/13,
111213D,PRESSURE COOLERS LTD==========,531387,119,8.00,CATERING FIXTURES,17/12/13,
111213D,PRESSURE COOLERS LTD==========,531387,120,8.25,CATERING FIXTURES,17/12/13,
111213D,PRESSURE COOLERS LTD==========,531387,121,8.25,CATERING FIXTURES,17/12/13,
111213D,PRESSURE COOLERS LTD==========,531387,122,8.25,CATERING FIXTURES,17/12/13,
111213D,PRESSURE COOLERS LTD==========,531387,123,8.25,CATERING FIXTURES,17/12/13,
111213D,PRESSURE COOLERS LTD==========,531387,124,8.25,CATERING FIXTURES,17/12/13,
111213D,PRESSURE COOLERS LTD==========,531387,125,8.25,CATERING FIXTURES,17/12/13,
111213D,PRESSURE COOLERS LTD==========,531387,126,8.25,CATERING FIXTURES,17/12/13,
111213D,PRESSURE COOLERS LTD==========,531387,127,8.00,CATERING EQUIPMENT,17/12/13,
111213D,PRESSURE COOLERS LTD==========,531387,128,8.25,CATERING FIXTURES,17/12/13,
111213D,PRESSURE COOLERS LTD==========,531387,129,8.25,CATERING FIXTURES,17/12/13,
111213D,PRESSURE COOLERS LTD==========,531387,130,8.25,CATERING FIXTURES,17/12/13,
111213D,PRESSURE COOLERS LTD==========,531387,131,8.25,CATERING FIXTURES,17/12/13,
111213D,PRESSURE COOLERS LTD==========,531387,132,8.25,STATIONERY CONSUMABLES,17/12/13,
111213D,PRESSURE COOLERS LTD==========,531387,133,8.25,CATERING FIXTURES,17/12/13,
111213D,PRESSURE COOLERS LTD==========,531387,134,8.25,CATERING FIXTURES,17/12/13,
111213D,PRESSURE COOLERS LTD==========,531387,135,8.00,CATERING FIXTURES,17/12/13,
111213D,PRESSURE COOLERS LTD==========,531387,136,8.25,CATERING FIXTURES,17/12/13,
111213D,PRESSURE COOLERS LTD==========,531387,137,8.25,CATERING FIXTURES,17/12/13,
111213D,PRESSURE COOLERS LTD==========,531387,138,8.25,CATERING FIXTURES,17/12/13,
111213D,PRESSURE COOLERS LTD==========,531387,139,8.25,CATERING FIXTURES,17/12/13,
111213D,PRESSURE COOLERS LTD==========,531387,140,8.25,CATERING FIXTURES,17/12/13,
111213D,PRESSURE COOLERS LTD==========,531387,141,8.25,CATERING FIXTURES,17/12/13,
111213D,PRESSURE COOLERS LTD==========,531387,142,8.00,CATERING FIXTURES,17/12/13,
111213D,PRESSURE COOLERS LTD==========,531387,143,8.00,CATERING FIXTURES,17/12/13,
111213D,PRESSURE COOLERS LTD==========,531387,144,8.25,CATERING FIXTURES,17/12/13,
111213D,PRESSURE COOLERS LTD==========,531387,145,8.25,CATERING FIXTURES,17/12/13,
111213D,PRESSURE COOLERS LTD==========,531387,146,8.00,CATERING FIXTURES,17/12/13,
111213D,PRESSURE COOLERS LTD==========,531387,147,8.25,CATERING FIXTURES,17/12/13,
111213D,PRESSURE COOLERS LTD==========,531387,148,8.00,CATERING FIXTURES,17/12/13,
111213D,PRESSURE COOLERS LTD==========,531387,149,8.00,CATERING FIXTURES,17/12/13,
111213D,PRESSURE COOLERS LTD==========,531387,150,8.25,CATERING FIXTURES,17/12/13,
111213D,PRESSURE COOLERS LTD==========,531387,151,8.25,CATERING FIXTURES,17/12/13,
111213D,PRESSURE COOLERS LTD==========,531387,152,8.25,CATERING FIXTURES,17/12/13,
111213D,PRESSURE COOLERS LTD==========,531387,153,8.25,CATERING FIXTURES,17/12/13,
111213D,PRESSURE COOLERS LTD==========,531387,154,8.25,CATERING FIXTURES,17/12/13,
111213D,PRESSURE COOLERS LTD==========,531387,155,8.25,CATERING FIXTURES,17/12/13,
111213D,PRESSURE COOLERS LTD==========,531387,156,8.00,CATERING FIXTURES,17/12/13,
111213D,PRESSURE COOLERS LTD==========,531387,157,8.25,CATERING FIXTURES,17/12/13,
111213D,PRESSURE COOLERS LTD==========,531387,158,8.25,OPERATIONAL EQUIP-PURCHASE,17/12/13,
111213D,PRESSURE COOLERS LTD==========,531387,159,8.25,OPERATIONAL DIRECT STANDBY,17/12/13,
111213E,*LYRECO,6721556461,1,59.95,STATIONERY CONSUMABLES,17/12/13,367.30
111213E,*LYRECO,6721556461,2,307.35,STATIONERY CONSUMABLES,17/12/13,
061213C,*LYRECO,6721557551,1,414.90,STATIONERY CONSUMABLES,17/12/13,414.90
111213E,MOORE STEPHENS CONSULTING LTD=,673296,1,"14,172.50",PROF FEES-MISCELLANEOUS,17/12/13,"14,172.50"
111213E,MOORE STEPHENS CONSULTING LTD=,673297,1,"6,480.00",PROF FEES-MISCELLANEOUS,17/12/13,"6,480.00"
111213E,MOORE STEPHENS CONSULTING LTD=,673298,1,"10,740.00",PROF FEES-MISCELLANEOUS,17/12/13,"10,740.00"
111213E,MOORE STEPHENS CONSULTING LTD=,673343,1,"4,435.00",PROF FEES-MISCELLANEOUS,17/12/13,"18,970.00"
111213E,MOORE STEPHENS CONSULTING LTD=,673343,2,"7,375.00",PROF FEES-MISCELLANEOUS,17/12/13,
111213E,MOORE STEPHENS CONSULTING LTD=,673343,3,"7,160.00",PROF FEES-MISCELLANEOUS,17/12/13,
111213C,MOORE STEPHENS CONSULTING LTD=,673356,1,"9,000.00",MAINTENANCE & SUPPORT,17/12/13,"9,000.00"
061213C,SWEETT  UK LTD,7030899,1,546.42,PROF FEES-MISCELLANEOUS,17/12/13,546.42
061213C,SWEETT  UK LTD,7030902,1,"1,800.00",STRATEGIC (NON CYCLICAL),17/12/13,"1,800.00"
121213C,SWEETT  UK LTD,7030903,1,779.30,PROF FEES-MISCELLANEOUS,17/12/13,779.30
121213C,SWEETT  UK LTD,7030904,1,689.06,PROF FEES-MISCELLANEOUS,17/12/13,689.06
111213E,ANGUS FIRE LIMITED,8023672,1,"3,024.50",OPERATIONAL EQUIP-PURCHASE,17/12/13,"3,103.50"
111213E,ANGUS FIRE LIMITED,8023672,2,79.00,OPERATIONAL EQUIP-PURCHASE,17/12/13,
111213C,LE MAITRE LTD=================,81580,1,327.00,PROTECTIVE EQUIPT - PARTS,17/12/13,327.00
121213C,WOOD & WOOD INTERNATIONL SIGNS,82860,1,253.00,STRATEGIC (NON CYCLICAL),17/12/13,253.00
111213C,WOOD & WOOD INTERNATIONL SIGNS,82874,1,316.00,TACTICAL DAY TO DAY,17/12/13,316.00
111213E,VCG KESTREL LIMITED===========,88515,1,610.00,PRINTING,17/12/13,610.00
111213E,VCG KESTREL LIMITED===========,88516,1,"1,142.00",PRINTING,17/12/13,"1,142.00"
021213D,RS COMPONENTS LTD=============,89528910,1,65.28,PROTECTIVE EQUIPT - PARTS,17/12/13,270.64
021213D,RS COMPONENTS LTD=============,89528910,2,92.76,PROTECTIVE EQUIPT - PARTS,17/12/13,
021213D,RS COMPONENTS LTD=============,89528910,3,41.01,PURCHASE,17/12/13,
021213D,RS COMPONENTS LTD=============,89528910,4,64.70,PURCHASE,17/12/13,
021213D,RS COMPONENTS LTD=============,89528910,5,6.89,PURCHASE,17/12/13,
111213C,DRAEGER SAFETY UK LIMITED=====,90431686,1,4.70,PROTECTIVE EQUIPT - PARTS,17/12/13,"2,616.72"
111213C,DRAEGER SAFETY UK LIMITED=====,90431686,2,258.12,PROTECTIVE EQUIPT - PARTS,17/12/13,
111213C,DRAEGER SAFETY UK LIMITED=====,90431686,3,213.90,PROTECTIVE EQUIPT - PARTS,17/12/13,
111213C,DRAEGER SAFETY UK LIMITED=====,90431686,4,"2,140.00",PROTECTIVE EQUIPT - PARTS,17/12/13,
111213C,DRAEGER SAFETY UK LIMITED=====,90431688,1,851.10,PROTECTIVE EQUIPT - PARTS,17/12/13,"1,010.40"
111213C,DRAEGER SAFETY UK LIMITED=====,90431688,2,159.30,PROTECTIVE EQUIPT - PARTS,17/12/13,
111213C,DRAEGER SAFETY UK LIMITED=====,90431690,1,851.10,PROTECTIVE EQUIPT - PARTS,17/12/13,851.10
111213C,DRAEGER SAFETY UK LIMITED=====,90431716,1,725.00,PROTECTIVE EQUIPT - PARTS,17/12/13,725.00
111213C,DRAEGER SAFETY UK LIMITED=====,90431720,1,512.37,PROTECTIVE EQUIPT - PARTS,17/12/13,512.37
111213C,DRAEGER SAFETY UK LIMITED=====,90431780,1,159.12,PURCHASE,17/12/13,442.82
111213C,DRAEGER SAFETY UK LIMITED=====,90431780,2,283.70,PROTECTIVE EQUIPT - PARTS,17/12/13,
111213E,NORTHUMBRIAN WATER LTD========,913040894,1,369.00,HYDRANTS,17/12/13,369.00
140482,THAMES WATER UTILITIES LTD====,9870962314\,1,397.39,WATER & SEWERAGE RATES,17/12/13,397.39
061213C,A&A ELECTRICAL DISTRIBUTORS===,991938,1,"1,350.00",GENERAL CONSUMABLES,17/12/13,"1,350.00"
061213C,OPEN UNIVERSITY===============,B0592,1,990.00,PROFESSIONAL DEVELOPMENT,17/12/13,990.00
121213C,THAMES WATER UTILITIES LTD====,CBA1303763,1,"1,082.00",CURRENT HYDRANT COSTS,17/12/13,"1,082.00"
111213E,THAMES WATER UTILITIES LTD====,CBA1313726,1,"1,120.00",CURRENT HYDRANT COSTS,17/12/13,"1,120.00"
111213E,THAMES WATER UTILITIES LTD====,CBA1313729,1,477.00,CURRENT HYDRANT COSTS,17/12/13,477.00
111213E,THAMES WATER UTILITIES LTD====,CBA1313731,1,"1,185.00",CURRENT HYDRANT COSTS,17/12/13,"1,185.00"
111213E,THAMES WATER UTILITIES LTD====,CBA1313732,1,477.00,CURRENT HYDRANT COSTS,17/12/13,477.00
111213E,THAMES WATER UTILITIES LTD====,CBA1313734,1,"1,120.00",CURRENT HYDRANT COSTS,17/12/13,"1,120.00"
111213E,THAMES WATER UTILITIES LTD====,CBA1313735,1,"1,185.00",CURRENT HYDRANT COSTS,17/12/13,"1,185.00"
111213E,THAMES WATER UTILITIES LTD====,CBA1313740,1,"1,185.00",CURRENT HYDRANT COSTS,17/12/13,"1,185.00"
111213E,THAMES WATER UTILITIES LTD====,CBA1313744,1,"1,185.00",CURRENT HYDRANT COSTS,17/12/13,"1,185.00"
111213E,THAMES WATER UTILITIES LTD====,CBA1313746,1,"1,185.00",CURRENT HYDRANT COSTS,17/12/13,"1,185.00"
111213E,THAMES WATER UTILITIES LTD====,CBA1313747,1,"1,185.00",CURRENT HYDRANT COSTS,17/12/13,"1,185.00"
111213E,THAMES WATER UTILITIES LTD====,CBA1313748,1,"1,185.00",CURRENT HYDRANT COSTS,17/12/13,"1,185.00"
111213E,THAMES WATER UTILITIES LTD====,CBA1313753,1,"1,185.00",CURRENT HYDRANT COSTS,17/12/13,"1,185.00"
111213E,THAMES WATER UTILITIES LTD====,CBA1313754,1,"1,185.00",CURRENT HYDRANT COSTS,17/12/13,"1,185.00"
111213E,THAMES WATER UTILITIES LTD====,CBA1313758,1,"1,185.00",CURRENT HYDRANT COSTS,17/12/13,"1,185.00"
111213E,THAMES WATER UTILITIES LTD====,CBA1313761,1,"1,185.00",CURRENT HYDRANT COSTS,17/12/13,"1,185.00"
111213E,THAMES WATER UTILITIES LTD====,CBA1313774,1,"1,390.00",CURRENT HYDRANT COSTS,17/12/13,"1,390.00"
111213E,THAMES WATER UTILITIES LTD====,CBA1313777,1,"1,185.00",CURRENT HYDRANT COSTS,17/12/13,"1,185.00"
111213E,THAMES WATER UTILITIES LTD====,CBA1313780,1,"1,185.00",CURRENT HYDRANT COSTS,17/12/13,"1,185.00"
111213E,THAMES WATER UTILITIES LTD====,CBA1313791,1,"1,185.00",CURRENT HYDRANT COSTS,17/12/13,"1,185.00"
111213E,THAMES WATER UTILITIES LTD====,CBA1313796,1,"1,185.00",CURRENT HYDRANT COSTS,17/12/13,"1,185.00"
111213E,THAMES WATER UTILITIES LTD====,CBA1313797,1,"1,185.00",CURRENT HYDRANT COSTS,17/12/13,"1,185.00"
121213C,THAMES WATER UTILITIES LTD====,CBA1313820,1,"1,082.00",CURRENT HYDRANT COSTS,17/12/13,"1,082.00"
021213D,INFRAGISTICS EUROPE LLC,EUINV000000030120,1,655.00,MAINTENANCE & SUPPORT,17/12/13,655.00
121213C,KIER BUILDING SERV ENGINEERS==,F00046346,1,315.68,PURCHASES-IT COMMUNICATIONS,17/12/13,315.68
121213C,KIER BUILDING SERV ENGINEERS==,F00046350,1,830.43,STRATEGIC (NON CYCLICAL),17/12/13,830.43
121213C,KIER BUILDING SERV ENGINEERS==,F00046351,1,"3,135.92",STRATEGIC (CYCLICAL),17/12/13,"3,135.92"
140482,KEMSLEY LLP=================,FALC0008-30,1,845.03,RENTS,17/12/13,845.03
140482,KEMSLEY LLP=================,FALC0009-30,1,764.55,RENTS,17/12/13,764.55
140482,KEMSLEY LLP=================,FALC007-30,1,768.03,RENTS,17/12/13,768.03
061213C,METEOROLOGICAL OFFICE=========,I0089414,1,515.15,CONSULTANTS,17/12/13,515.15
121213C,CHILDCARE VOUCHERS LTD========,INS08048698/144969,1,654.04,CHILDCARE,17/12/13,654.04
111213E,BLUESKY SHAREPOINT CONSULTING,INV-1261,1,850.00,CONSULTANTS,17/12/13,850.00
111213E,BRISSCO SIGNS & GRAPHICS======,INV80700,1,"2,190.00",HYDRANTS,17/12/13,"2,190.00"
121213C,SMITH O'SULLIVAN LTD.=========,LFB/HFS/002A,1,"16,137.56",STRATEGIC (NON CYCLICAL),17/12/13,"16,137.56"
111213C,E&S B DAVIS LTD,LTD/45000,1,360.00,OPERATIONAL EQUIP-PURCHASE,17/12/13,360.00
140488,CILEX=========================,MEMBERSHIP,1,299.00,PROFESSIONAL DEVELOPMENT,17/12/13,299.00
121213C,CANNON'S MSA LTD,NV1068283,1,279.75,PROTECTIVE EQUIPMENT R & D,17/12/13,279.75
111213C,ESTEEM SYSTEMS LTD============,OP/I074904,1,"91,775.00",MAINTENANCE & SUPPORT,17/12/13,"93,923.00"
111213C,ESTEEM SYSTEMS LTD============,OP/I074904,2,146.00,MAINTENANCE & SUPPORT,17/12/13,
111213C,ESTEEM SYSTEMS LTD============,OP/I074904,3,"2,002.00",MAINTENANCE & SUPPORT,17/12/13,
121213C,PHOENIX SOFTWARE LTD==========,OP/I714093,1,"4,250.00",ACQUISITIONS,17/12/13,"14,250.00"
121213C,PHOENIX SOFTWARE LTD==========,OP/I714093,2,"4,250.00",ACQUISITIONS,17/12/13,
121213C,PHOENIX SOFTWARE LTD==========,OP/I714093,3,"4,250.00",ACQUISITIONS,17/12/13,
121213C,PHOENIX SOFTWARE LTD==========,OP/I714093,4,"1,500.00",ACQUISITIONS,17/12/13,
111213E,PEGASUS COURIERS - LONDON=====,PL014462,1,284.31,POSTAL SERVICES,17/12/13,284.31
902354,BABCOCK TRAINING LTD,PTSI009888,1,"1,539,087.38",OUTSOURCED TRAINING,17/12/13,"1,539,087.38"
111213C,PULLMAN MOTORS================,PULL199,1,400.00,OPERATIONAL EQUIP-PURCHASE,17/12/13,400.00
902356,SECURITAS SECURITY SERVICES LT,S-SIN0192841,1,"257,909.12",GENERAL,17/12/13,"257,909.12"
111213E,SUTTON & EAST SURREY WATER PLC,SI029996,1,384.00,CURRENT HYDRANT COSTS,17/12/13,384.00
111213E,SUTTON & EAST SURREY WATER PLC,SI030000,1,"1,071.00",CURRENT HYDRANT COSTS,17/12/13,"1,071.00"
111213E,SUTTON & EAST SURREY WATER PLC,SI030003,1,384.00,CURRENT HYDRANT COSTS,17/12/13,384.00
111213E,SUTTON & EAST SURREY WATER PLC,SI030004,1,"1,071.00",CURRENT HYDRANT COSTS,17/12/13,"1,071.00"
111213E,UNIVERSITY OF CENT LANCASHIRE=,TUI182200004,1,"1,530.00",PROFESSIONAL DEVELOPMENT,17/12/13,"1,530.00"
111213E,UNIVERSITY OF CENT LANCASHIRE=,TUI182200140,1,"2,362.50",PROFESSIONAL DEVELOPMENT,17/12/13,"2,362.50"
111213E,UNIVERSITY OF CENT LANCASHIRE=,TUI182200141,1,"2,362.50",PROFESSIONAL DEVELOPMENT,17/12/13,"2,362.50"
041213C,ARTELIA,000000006402,1,"6,599.63",CONSULTANTS,19/12/13,"6,599.63"
041213C,HEALTH MANAGEMENT LIMITED=====,0000106221,1,"107,035.75",OHS CONTRACT,19/12/13,"107,035.75"
161213C,TURNER & TOWNSEND PROJECT MNGT,000541035,1,"48,890.51",PROF FEES-MISCELLANEOUS,19/12/13,"48,890.51"
091213D,LYNN WICKINS,0053,1,"1,696.50",PROFESSIONAL SERVICES,19/12/13,"1,696.50"
161213C,DRON & WRIGHT=================,016811,1,545.00,PROFESSIONAL SERVICES,19/12/13,545.00
111213C,*SPRUE SAFETY PRODUCTS LTD====,1054964,1,528.00,FIRE DETECTORS,19/12/13,"10,824.00"
111213C,*SPRUE SAFETY PRODUCTS LTD====,1054964,2,528.00,FIRE DETECTORS,19/12/13,
111213C,*SPRUE SAFETY PRODUCTS LTD====,1054964,3,264.00,FIRE DETECTORS,19/12/13,
111213C,*SPRUE SAFETY PRODUCTS LTD====,1054964,4,"4,752.00",FIRE DETECTORS,19/12/13,
111213C,*SPRUE SAFETY PRODUCTS LTD====,1054964,5,"4,752.00",FIRE DETECTORS,19/12/13,
131213C,SILVERSANDS LIMITED===========,120266,1,475.00,PURCHASES-SOFTWARE,19/12/13,"1,900.00"
131213C,SILVERSANDS LIMITED===========,120266,2,"1,425.00",PURCHASES-SOFTWARE,19/12/13,
091213C,SAFEGUARD PEST CON. & ENV.LTD,121425,1,185.00,PEST CONTROL,19/12/13,925.00
091213C,SAFEGUARD PEST CON. & ENV.LTD,121425,2,185.00,PEST CONTROL,19/12/13,
091213C,SAFEGUARD PEST CON. & ENV.LTD,121425,3,185.00,PEST CONTROL,19/12/13,
091213C,SAFEGUARD PEST CON. & ENV.LTD,121425,4,185.00,PEST CONTROL,19/12/13,
091213C,SAFEGUARD PEST CON. & ENV.LTD,121425,5,185.00,PEST CONTROL,19/12/13,
091213C,SAFEGUARD PEST CON. & ENV.LTD,121428,1,42.00,PEST CONTROL,19/12/13,294.00
091213C,SAFEGUARD PEST CON. & ENV.LTD,121428,2,42.00,PEST CONTROL,19/12/13,
091213C,SAFEGUARD PEST CON. & ENV.LTD,121428,3,42.00,PEST CONTROL,19/12/13,
091213C,SAFEGUARD PEST CON. & ENV.LTD,121428,4,42.00,PEST CONTROL,19/12/13,
091213C,SAFEGUARD PEST CON. & ENV.LTD,121428,5,42.00,PEST CONTROL,19/12/13,
091213C,SAFEGUARD PEST CON. & ENV.LTD,121428,6,42.00,PEST CONTROL,19/12/13,
091213C,SAFEGUARD PEST CON. & ENV.LTD,121428,7,42.00,PEST CONTROL,19/12/13,
140488,ARTESIAN LAW,123793,1,"6,358.55",PROFESSIONAL FEES GENERAL,19/12/13,"6,358.55"
800027007,*NPS (SHOES) LTD,12494,1,30.05,CLOTHING,19/12/13,"2,987.05"
800027007,*NPS (SHOES) LTD,12494,2,41.10,CLOTHING,19/12/13,
800027007,*NPS (SHOES) LTD,12494,3,30.05,CLOTHING,19/12/13,
800027007,*NPS (SHOES) LTD,12494,4,41.10,CLOTHING,19/12/13,
800027007,*NPS (SHOES) LTD,12494,5,30.05,CLOTHING,19/12/13,
800027007,*NPS (SHOES) LTD,12494,6,30.05,CLOTHING,19/12/13,
800027007,*NPS (SHOES) LTD,12494,7,30.05,CLOTHING,19/12/13,
800027007,*NPS (SHOES) LTD,12494,8,30.05,CLOTHING,19/12/13,
800027007,*NPS (SHOES) LTD,12494,9,30.05,CLOTHING,19/12/13,
800027007,*NPS (SHOES) LTD,12494,10,30.05,CLOTHING,19/12/13,
800027007,*NPS (SHOES) LTD,12494,11,30.05,CLOTHING,19/12/13,
800027007,*NPS (SHOES) LTD,12494,12,30.05,CLOTHING,19/12/13,
800027007,*NPS (SHOES) LTD,12494,13,29.45,CLOTHING,19/12/13,
800027007,*NPS (SHOES) LTD,12494,14,29.45,CLOTHING,19/12/13,
800027007,*NPS (SHOES) LTD,12494,15,29.45,CLOTHING,19/12/13,
800027007,*NPS (SHOES) LTD,12494,16,29.45,CLOTHING,19/12/13,
800027007,*NPS (SHOES) LTD,12494,17,29.45,CLOTHING,19/12/13,
800027007,*NPS (SHOES) LTD,12494,18,29.45,CLOTHING,19/12/13,
800027007,*NPS (SHOES) LTD,12494,19,29.45,CLOTHING,19/12/13,
800027007,*NPS (SHOES) LTD,12494,20,29.45,CLOTHING,19/12/13,
800027007,*NPS (SHOES) LTD,12494,21,29.45,CLOTHING,19/12/13,
800027007,*NPS (SHOES) LTD,12494,22,29.45,CLOTHING,19/12/13,
800027007,*NPS (SHOES) LTD,12494,23,29.45,CLOTHING,19/12/13,
800027007,*NPS (SHOES) LTD,12494,24,29.45,CLOTHING,19/12/13,
800027007,*NPS (SHOES) LTD,12494,25,29.45,CLOTHING,19/12/13,
800027007,*NPS (SHOES) LTD,12494,26,29.45,CLOTHING,19/12/13,
800027007,*NPS (SHOES) LTD,12494,27,29.45,CLOTHING,19/12/13,
800027007,*NPS (SHOES) LTD,12494,28,29.45,CLOTHING,19/12/13,
800027007,*NPS (SHOES) LTD,12494,29,29.45,CLOTHING,19/12/13,
800027007,*NPS (SHOES) LTD,12494,30,41.10,CLOTHING,19/12/13,
800027007,*NPS (SHOES) LTD,12494,31,41.10,CLOTHING,19/12/13,
800027007,*NPS (SHOES) LTD,12494,32,41.10,CLOTHING,19/12/13,
800027007,*NPS (SHOES) LTD,12494,33,28.45,CLOTHING,19/12/13,
800027007,*NPS (SHOES) LTD,12494,34,28.45,CLOTHING,19/12/13,
800027007,*NPS (SHOES) LTD,12494,35,30.05,CLOTHING,19/12/13,
800027007,*NPS (SHOES) LTD,12494,36,30.05,CLOTHING,19/12/13,
800027007,*NPS (SHOES) LTD,12494,37,30.05,CLOTHING,19/12/13,
800027007,*NPS (SHOES) LTD,12494,38,30.05,CLOTHING,19/12/13,
800027007,*NPS (SHOES) LTD,12494,39,30.05,CLOTHING,19/12/13,
800027007,*NPS (SHOES) LTD,12494,40,30.05,CLOTHING,19/12/13,
800027007,*NPS (SHOES) LTD,12494,41,30.05,CLOTHING,19/12/13,
800027007,*NPS (SHOES) LTD,12494,42,30.05,CLOTHING,19/12/13,
800027007,*NPS (SHOES) LTD,12494,43,30.05,CLOTHING,19/12/13,
800027007,*NPS (SHOES) LTD,12494,44,30.05,CLOTHING,19/12/13,
800027007,*NPS (SHOES) LTD,12494,45,30.05,CLOTHING,19/12/13,
800027007,*NPS (SHOES) LTD,12494,46,30.05,CLOTHING,19/12/13,
800027007,*NPS (SHOES) LTD,12494,47,30.05,CLOTHING,19/12/13,
800027007,*NPS (SHOES) LTD,12494,48,30.05,CLOTHING,19/12/13,
800027007,*NPS (SHOES) LTD,12494,49,29.45,CLOTHING,19/12/13,
800027007,*NPS (SHOES) LTD,12494,50,29.45,CLOTHING,19/12/13,
800027007,*NPS (SHOES) LTD,12494,51,29.45,CLOTHING,19/12/13,
800027007,*NPS (SHOES) LTD,12494,52,29.45,CLOTHING,19/12/13,
800027007,*NPS (SHOES) LTD,12494,53,29.45,CLOTHING,19/12/13,
800027007,*NPS (SHOES) LTD,12494,54,29.45,CLOTHING,19/12/13,
800027007,*NPS (SHOES) LTD,12494,55,29.45,CLOTHING,19/12/13,
800027007,*NPS (SHOES) LTD,12494,56,29.45,CLOTHING,19/12/13,
800027007,*NPS (SHOES) LTD,12494,57,29.45,CLOTHING,19/12/13,
800027007,*NPS (SHOES) LTD,12494,58,29.45,CLOTHING,19/12/13,
800027007,*NPS (SHOES) LTD,12494,59,29.45,CLOTHING,19/12/13,
800027007,*NPS (SHOES) LTD,12494,60,29.45,CLOTHING,19/12/13,
800027007,*NPS (SHOES) LTD,12494,61,29.45,CLOTHING,19/12/13,
800027007,*NPS (SHOES) LTD,12494,62,29.45,CLOTHING,19/12/13,
800027007,*NPS (SHOES) LTD,12494,63,29.45,CLOTHING,19/12/13,
800027007,*NPS (SHOES) LTD,12494,64,29.45,CLOTHING,19/12/13,
800027007,*NPS (SHOES) LTD,12494,65,29.45,CLOTHING,19/12/13,
800027007,*NPS (SHOES) LTD,12494,66,29.45,CLOTHING,19/12/13,
800027007,*NPS (SHOES) LTD,12494,67,41.10,CLOTHING,19/12/13,
800027007,*NPS (SHOES) LTD,12494,68,28.45,CLOTHING,19/12/13,
800027007,*NPS (SHOES) LTD,12494,69,30.05,CLOTHING,19/12/13,
800027007,*NPS (SHOES) LTD,12494,70,30.05,CLOTHING,19/12/13,
800027007,*NPS (SHOES) LTD,12494,71,30.05,CLOTHING,19/12/13,
800027007,*NPS (SHOES) LTD,12494,72,30.05,CLOTHING,19/12/13,
800027007,*NPS (SHOES) LTD,12494,73,30.05,CLOTHING,19/12/13,
800027007,*NPS (SHOES) LTD,12494,74,30.05,CLOTHING,19/12/13,
800027007,*NPS (SHOES) LTD,12494,75,30.05,CLOTHING,19/12/13,
800027007,*NPS (SHOES) LTD,12494,76,30.05,CLOTHING,19/12/13,
800027007,*NPS (SHOES) LTD,12494,77,30.05,CLOTHING,19/12/13,
800027007,*NPS (SHOES) LTD,12494,78,30.05,CLOTHING,19/12/13,
800027007,*NPS (SHOES) LTD,12494,79,30.05,CLOTHING,19/12/13,
800027007,*NPS (SHOES) LTD,12494,80,30.05,CLOTHING,19/12/13,
800027007,*NPS (SHOES) LTD,12494,81,30.05,CLOTHING,19/12/13,
800027007,*NPS (SHOES) LTD,12494,82,30.05,CLOTHING,19/12/13,
800027007,*NPS (SHOES) LTD,12494,83,30.05,CLOTHING,19/12/13,
800027007,*NPS (SHOES) LTD,12494,84,29.45,CLOTHING,19/12/13,
800027007,*NPS (SHOES) LTD,12494,85,29.45,CLOTHING,19/12/13,
800027007,*NPS (SHOES) LTD,12494,86,29.45,CLOTHING,19/12/13,
800027007,*NPS (SHOES) LTD,12494,87,29.45,CLOTHING,19/12/13,
800027007,*NPS (SHOES) LTD,12494,88,29.45,CLOTHING,19/12/13,
800027007,*NPS (SHOES) LTD,12494,89,29.45,CLOTHING,19/12/13,
800027007,*NPS (SHOES) LTD,12494,90,29.45,CLOTHING,19/12/13,
800027007,*NPS (SHOES) LTD,12494,91,29.45,CLOTHING,19/12/13,
800027007,*NPS (SHOES) LTD,12494,92,29.45,CLOTHING,19/12/13,
800027007,*NPS (SHOES) LTD,12494,93,29.45,CLOTHING,19/12/13,
800027007,*NPS (SHOES) LTD,12494,94,29.45,CLOTHING,19/12/13,
800027007,*NPS (SHOES) LTD,12494,95,29.45,CLOTHING,19/12/13,
800027007,*NPS (SHOES) LTD,12494,96,29.45,CLOTHING,19/12/13,
800027007,*NPS (SHOES) LTD,12494,97,41.10,CLOTHING,19/12/13,
800027007,*NPS (SHOES) LTD,12494,98,28.45,CLOTHING,19/12/13,
111213D,HAGEMEYER UK LTD==============,129922985,1,"2,217.80",FIRE DETECTORS,19/12/13,"2,217.80"
131213C,TORQUE CALIBRATION LTD,131198,1,350.00,REPAIR & MAINTENANCE,19/12/13,365.00
131213C,TORQUE CALIBRATION LTD,131198,2,15.00,REPAIR & MAINTENANCE,19/12/13,
131213C,RESPIREX======================,144671,1,"8,250.00",PROTECTIVE EQUIPMENT,19/12/13,"8,250.00"
111213C,IRON MOUNTAIN (UK) LTD========,16180610,1,"3,291.75",MAINTENANCE & SUPPORT,19/12/13,"3,291.75"
131213C,MAJESTIC WINE WAREHOUSES LTD==,164/2130507,1,293.48,PUBLIC RELATIONS,19/12/13,293.48
161213C,GRADIENT CONSULTANTS LLP======,1940,1,243.61,ASBESTOS,19/12/13,"2,192.49"
161213C,GRADIENT CONSULTANTS LLP======,1940,2,243.61,ASBESTOS,19/12/13,
161213C,GRADIENT CONSULTANTS LLP======,1940,3,243.61,ASBESTOS,19/12/13,
161213C,GRADIENT CONSULTANTS LLP======,1940,4,243.61,ASBESTOS,19/12/13,
161213C,GRADIENT CONSULTANTS LLP======,1940,5,243.61,ASBESTOS,19/12/13,
161213C,GRADIENT CONSULTANTS LLP======,1940,6,243.61,ASBESTOS,19/12/13,
161213C,GRADIENT CONSULTANTS LLP======,1940,7,243.61,ASBESTOS,19/12/13,
161213C,GRADIENT CONSULTANTS LLP======,1940,8,243.61,ASBESTOS,19/12/13,
161213C,GRADIENT CONSULTANTS LLP======,1940,9,243.61,ASBESTOS,19/12/13,
161213C,GRADIENT CONSULTANTS LLP======,1945,1,290.00,ASBESTOS,19/12/13,"6,756.25"
161213C,GRADIENT CONSULTANTS LLP======,1945,2,125.00,ASBESTOS,19/12/13,
161213C,GRADIENT CONSULTANTS LLP======,1945,3,62.50,ASBESTOS,19/12/13,
161213C,GRADIENT CONSULTANTS LLP======,1945,4,55.00,ASBESTOS,19/12/13,
161213C,GRADIENT CONSULTANTS LLP======,1945,5,97.50,ASBESTOS,19/12/13,
161213C,GRADIENT CONSULTANTS LLP======,1945,6,195.00,ASBESTOS,19/12/13,
161213C,GRADIENT CONSULTANTS LLP======,1945,7,97.50,ASBESTOS,19/12/13,
161213C,GRADIENT CONSULTANTS LLP======,1945,8,490.00,ASBESTOS,19/12/13,
161213C,GRADIENT CONSULTANTS LLP======,1945,9,55.00,ASBESTOS,19/12/13,
161213C,GRADIENT CONSULTANTS LLP======,1945,10,195.00,ASBESTOS,19/12/13,
161213C,GRADIENT CONSULTANTS LLP======,1945,11,62.50,ASBESTOS,19/12/13,
161213C,GRADIENT CONSULTANTS LLP======,1945,12,195.00,ASBESTOS,19/12/13,
161213C,GRADIENT CONSULTANTS LLP======,1945,13,97.50,ASBESTOS,19/12/13,
161213C,GRADIENT CONSULTANTS LLP======,1945,14,245.00,ASBESTOS,19/12/13,
161213C,GRADIENT CONSULTANTS LLP======,1945,15,300.00,ASBESTOS,19/12/13,
161213C,GRADIENT CONSULTANTS LLP======,1945,16,48.75,ASBESTOS,19/12/13,
161213C,GRADIENT CONSULTANTS LLP======,1945,17,97.50,ASBESTOS,19/12/13,
161213C,GRADIENT CONSULTANTS LLP======,1945,18,300.00,ASBESTOS,19/12/13,
161213C,GRADIENT CONSULTANTS LLP======,1945,19,195.00,ASBESTOS,19/12/13,
161213C,GRADIENT CONSULTANTS LLP======,1945,20,97.50,ASBESTOS,19/12/13,
161213C,GRADIENT CONSULTANTS LLP======,1945,21,295.00,ASBESTOS,19/12/13,
161213C,GRADIENT CONSULTANTS LLP======,1945,22,62.50,ASBESTOS,19/12/13,
161213C,GRADIENT CONSULTANTS LLP======,1945,23,97.50,ASBESTOS,19/12/13,
161213C,GRADIENT CONSULTANTS LLP======,1945,24,187.50,ASBESTOS,19/12/13,
161213C,GRADIENT CONSULTANTS LLP======,1945,25,125.00,ASBESTOS,19/12/13,
161213C,GRADIENT CONSULTANTS LLP======,1945,26,97.50,ASBESTOS,19/12/13,
161213C,GRADIENT CONSULTANTS LLP======,1945,27,425.00,ASBESTOS,19/12/13,
161213C,GRADIENT CONSULTANTS LLP======,1945,28,195.00,ASBESTOS,19/12/13,
161213C,GRADIENT CONSULTANTS LLP======,1945,29,97.50,ASBESTOS,19/12/13,
161213C,GRADIENT CONSULTANTS LLP======,1945,30,97.50,ASBESTOS,19/12/13,
161213C,GRADIENT CONSULTANTS LLP======,1945,31,245.00,ASBESTOS,19/12/13,
161213C,GRADIENT CONSULTANTS LLP======,1945,32,97.50,ASBESTOS,19/12/13,
161213C,GRADIENT CONSULTANTS LLP======,1945,33,97.50,ASBESTOS,19/12/13,
161213C,GRADIENT CONSULTANTS LLP======,1945,34,445.00,ASBESTOS,19/12/13,
161213C,GRADIENT CONSULTANTS LLP======,1945,35,445.00,ASBESTOS,19/12/13,
161213C,GRADIENT CONSULTANTS LLP======,1945,36,445.00,ASBESTOS,19/12/13,
161213C,GRADIENT CONSULTANTS LLP======,1946,1,375.00,PROF FEES-MISCELLANEOUS,19/12/13,665.00
161213C,GRADIENT CONSULTANTS LLP======,1946,2,290.00,PROF FEES-MISCELLANEOUS,19/12/13,
061213C,B NOKES CONTRACTS LTD,1976,1,420.00,TACTICAL DAY TO DAY,19/12/13,420.00
161213C,B NOKES CONTRACTS LTD,1991,1,"1,532.00",STRATEGIC (NON CYCLICAL),19/12/13,"3,064.00"
161213C,B NOKES CONTRACTS LTD,1991,2,"1,532.00",STRATEGIC (NON CYCLICAL),19/12/13,
161213C,B NOKES CONTRACTS LTD,1992,1,627.00,STRATEGIC (NON CYCLICAL),19/12/13,627.00
161213C,B NOKES CONTRACTS LTD,1993,1,"1,711.00",STRATEGIC (NON CYCLICAL),19/12/13,"1,711.00"
161213C,B NOKES CONTRACTS LTD,1994,1,420.00,STRATEGIC (NON CYCLICAL),19/12/13,420.00
161213C,B NOKES CONTRACTS LTD,1995,1,792.75,STRATEGIC (NON CYCLICAL),19/12/13,792.75
161213C,B NOKES CONTRACTS LTD,1996,1,325.00,STRATEGIC (NON CYCLICAL),19/12/13,325.00
161213C,B NOKES CONTRACTS LTD,1997,1,592.00,STRATEGIC (NON CYCLICAL),19/12/13,592.00
161213C,B NOKES CONTRACTS LTD,1998,1,"5,551.15",STRATEGIC (NON CYCLICAL),19/12/13,"5,551.15"
161213C,B NOKES CONTRACTS LTD,1999,1,"5,440.00",STRATEGIC (NON CYCLICAL),19/12/13,"5,440.00"
161213C,B NOKES CONTRACTS LTD,2000,1,"2,310.00",STRATEGIC (NON CYCLICAL),19/12/13,"5,396.75"
161213C,B NOKES CONTRACTS LTD,2000,2,"3,086.75",STRATEGIC (NON CYCLICAL),19/12/13,
161213C,BIGHAND LTD===================,20029079,1,220.41,MAINTENANCE & SUPPORT,19/12/13,730.87
161213C,BIGHAND LTD===================,20029079,2,139.30,MAINTENANCE & SUPPORT,19/12/13,
161213C,BIGHAND LTD===================,20029079,3,371.16,MAINTENANCE & SUPPORT,19/12/13,
140488,THE KITTLE PARTNERSHIP LTD====,2034,1,625.00,MISCELLANEOUS DISBURSEMENTS,19/12/13,625.00
800027210,*OCS GROUP UK LTD,212394-13,1,340.00,REFRESHMENTS,19/12/13,340.00
091213C,VODAFONE LIMITED==============,228775,1,"1,015.00",TELECOMMUNICATIONS,19/12/13,"1,113.79"
091213C,VODAFONE LIMITED==============,228775,2,98.79,TELECOMMUNICATIONS,19/12/13,
140487,THAMES WATER UTILITIES LTD====,2390102764K,1,487.26,WATER & SEWERAGE RATES,19/12/13,487.26
131213C,STORM TECHNOLOGIES============,250803,1,425.00,ACQUISITIONS,19/12/13,463.74
131213C,STORM TECHNOLOGIES============,250803,2,38.74,ACQUISITIONS,19/12/13,
111213D,PRECISE MEDIA MONITORING LTD==,263180,1,"2,092.75",PRESS OFFICE,19/12/13,"2,092.75"
061213C,S W BRUCE & CO LTD,29712,1,"3,092.94",STRATEGIC (NON CYCLICAL),19/12/13,"3,092.94"
111213C,LEVEL 3 COMMUNICATIONS UK,29958573/802915,1,"14,015.91",TELECOMMUNICATIONS,19/12/13,"14,017.15"
111213C,LEVEL 3 COMMUNICATIONS UK,29958573/802915,2,0.01,TELECOMMUNICATIONS,19/12/13,
111213C,LEVEL 3 COMMUNICATIONS UK,29958573/802915,3,1.23,TELECOMMUNICATIONS,19/12/13,
091213D,MCGRATH BROS (WASTE CONTROL) L,308393,1,297.22,REFUSE COLLECTION,19/12/13,"17,643.14"
091213D,MCGRATH BROS (WASTE CONTROL) L,308393,2,111.36,REFUSE COLLECTION,19/12/13,
091213D,MCGRATH BROS (WASTE CONTROL) L,308393,3,223.92,REFUSE COLLECTION,19/12/13,
091213D,MCGRATH BROS (WASTE CONTROL) L,308393,4,82.04,REFUSE COLLECTION,19/12/13,
091213D,MCGRATH BROS (WASTE CONTROL) L,308393,5,111.36,REFUSE COLLECTION,19/12/13,
091213D,MCGRATH BROS (WASTE CONTROL) L,308393,6,82.04,REFUSE COLLECTION,19/12/13,
091213D,MCGRATH BROS (WASTE CONTROL) L,308393,7,143.52,REFUSE COLLECTION,19/12/13,
091213D,MCGRATH BROS (WASTE CONTROL) L,308393,8,159.60,REFUSE COLLECTION,19/12/13,
091213D,MCGRATH BROS (WASTE CONTROL) L,308393,9,111.36,REFUSE COLLECTION,19/12/13,
091213D,MCGRATH BROS (WASTE CONTROL) L,308393,10,82.04,REFUSE COLLECTION,19/12/13,
091213D,MCGRATH BROS (WASTE CONTROL) L,308393,11,90.08,REFUSE COLLECTION,19/12/13,
091213D,MCGRATH BROS (WASTE CONTROL) L,308393,12,114.20,REFUSE COLLECTION,19/12/13,
091213D,MCGRATH BROS (WASTE CONTROL) L,308393,13,143.52,REFUSE COLLECTION,19/12/13,
091213D,MCGRATH BROS (WASTE CONTROL) L,308393,14,266.48,REFUSE COLLECTION,19/12/13,
091213D,MCGRATH BROS (WASTE CONTROL) L,308393,15,111.36,REFUSE COLLECTION,19/12/13,
091213D,MCGRATH BROS (WASTE CONTROL) L,308393,16,282.56,REFUSE COLLECTION,19/12/13,
091213D,MCGRATH BROS (WASTE CONTROL) L,308393,17,82.04,REFUSE COLLECTION,19/12/13,
091213D,MCGRATH BROS (WASTE CONTROL) L,308393,18,266.48,REFUSE COLLECTION,19/12/13,
091213D,MCGRATH BROS (WASTE CONTROL) L,308393,19,297.22,REFUSE COLLECTION,19/12/13,
091213D,MCGRATH BROS (WASTE CONTROL) L,308393,20,345.46,REFUSE COLLECTION,19/12/13,
091213D,MCGRATH BROS (WASTE CONTROL) L,308393,21,151.56,REFUSE COLLECTION,19/12/13,
091213D,MCGRATH BROS (WASTE CONTROL) L,308393,22,82.04,REFUSE COLLECTION,19/12/13,
091213D,MCGRATH BROS (WASTE CONTROL) L,308393,23,82.04,REFUSE COLLECTION,19/12/13,
091213D,MCGRATH BROS (WASTE CONTROL) L,308393,24,90.08,REFUSE COLLECTION,19/12/13,
091213D,MCGRATH BROS (WASTE CONTROL) L,308393,25,82.04,REFUSE COLLECTION,19/12/13,
091213D,MCGRATH BROS (WASTE CONTROL) L,308393,26,111.36,REFUSE COLLECTION,19/12/13,
091213D,MCGRATH BROS (WASTE CONTROL) L,308393,27,82.04,REFUSE COLLECTION,19/12/13,
091213D,MCGRATH BROS (WASTE CONTROL) L,308393,28,282.56,REFUSE COLLECTION,19/12/13,
091213D,MCGRATH BROS (WASTE CONTROL) L,308393,29,202.16,REFUSE COLLECTION,19/12/13,
091213D,MCGRATH BROS (WASTE CONTROL) L,308393,30,82.04,REFUSE COLLECTION,19/12/13,
091213D,MCGRATH BROS (WASTE CONTROL) L,308393,31,111.36,REFUSE COLLECTION,19/12/13,
091213D,MCGRATH BROS (WASTE CONTROL) L,308393,32,302.36,REFUSE COLLECTION,19/12/13,
091213D,MCGRATH BROS (WASTE CONTROL) L,308393,33,111.36,REFUSE COLLECTION,19/12/13,
091213D,MCGRATH BROS (WASTE CONTROL) L,308393,34,111.36,REFUSE COLLECTION,19/12/13,
091213D,MCGRATH BROS (WASTE CONTROL) L,308393,35,143.52,REFUSE COLLECTION,19/12/13,
091213D,MCGRATH BROS (WASTE CONTROL) L,308393,36,131.16,REFUSE COLLECTION,19/12/13,
091213D,MCGRATH BROS (WASTE CONTROL) L,308393,37,143.52,REFUSE COLLECTION,19/12/13,
091213D,MCGRATH BROS (WASTE CONTROL) L,308393,38,114.20,REFUSE COLLECTION,19/12/13,
091213D,MCGRATH BROS (WASTE CONTROL) L,308393,39,90.08,REFUSE COLLECTION,19/12/13,
091213D,MCGRATH BROS (WASTE CONTROL) L,308393,40,202.16,REFUSE COLLECTION,19/12/13,
091213D,MCGRATH BROS (WASTE CONTROL) L,308393,41,202.16,REFUSE COLLECTION,19/12/13,
091213D,MCGRATH BROS (WASTE CONTROL) L,308393,42,111.36,REFUSE COLLECTION,19/12/13,
091213D,MCGRATH BROS (WASTE CONTROL) L,308393,43,82.04,REFUSE COLLECTION,19/12/13,
091213D,MCGRATH BROS (WASTE CONTROL) L,308393,44,82.04,REFUSE COLLECTION,19/12/13,
091213D,MCGRATH BROS (WASTE CONTROL) L,308393,45,297.22,REFUSE COLLECTION,19/12/13,
091213D,MCGRATH BROS (WASTE CONTROL) L,308393,46,221.96,REFUSE COLLECTION,19/12/13,
091213D,MCGRATH BROS (WASTE CONTROL) L,308393,47,111.36,REFUSE COLLECTION,19/12/13,
091213D,MCGRATH BROS (WASTE CONTROL) L,308393,48,82.04,REFUSE COLLECTION,19/12/13,
091213D,MCGRATH BROS (WASTE CONTROL) L,308393,49,90.08,REFUSE COLLECTION,19/12/13,
091213D,MCGRATH BROS (WASTE CONTROL) L,308393,50,111.36,REFUSE COLLECTION,19/12/13,
091213D,MCGRATH BROS (WASTE CONTROL) L,308393,51,282.56,REFUSE COLLECTION,19/12/13,
091213D,MCGRATH BROS (WASTE CONTROL) L,308393,52,82.04,REFUSE COLLECTION,19/12/13,
091213D,MCGRATH BROS (WASTE CONTROL) L,308393,53,82.04,REFUSE COLLECTION,19/12/13,
091213D,MCGRATH BROS (WASTE CONTROL) L,308393,54,111.36,REFUSE COLLECTION,19/12/13,
091213D,MCGRATH BROS (WASTE CONTROL) L,308393,55,82.04,REFUSE COLLECTION,19/12/13,
091213D,MCGRATH BROS (WASTE CONTROL) L,308393,56,114.20,REFUSE COLLECTION,19/12/13,
091213D,MCGRATH BROS (WASTE CONTROL) L,308393,57,82.04,REFUSE COLLECTION,19/12/13,
091213D,MCGRATH BROS (WASTE CONTROL) L,308393,58,143.52,REFUSE COLLECTION,19/12/13,
091213D,MCGRATH BROS (WASTE CONTROL) L,308393,59,94.51,REFUSE COLLECTION,19/12/13,
091213D,MCGRATH BROS (WASTE CONTROL) L,308393,60,302.36,REFUSE COLLECTION,19/12/13,
091213D,MCGRATH BROS (WASTE CONTROL) L,308393,61,111.36,REFUSE COLLECTION,19/12/13,
091213D,MCGRATH BROS (WASTE CONTROL) L,308393,62,111.36,REFUSE COLLECTION,19/12/13,
091213D,MCGRATH BROS (WASTE CONTROL) L,308393,63,82.04,REFUSE COLLECTION,19/12/13,
091213D,MCGRATH BROS (WASTE CONTROL) L,308393,64,282.56,REFUSE COLLECTION,19/12/13,
091213D,MCGRATH BROS (WASTE CONTROL) L,308393,65,82.04,REFUSE COLLECTION,19/12/13,
091213D,MCGRATH BROS (WASTE CONTROL) L,308393,66,302.36,REFUSE COLLECTION,19/12/13,
091213D,MCGRATH BROS (WASTE CONTROL) L,308393,67,82.04,REFUSE COLLECTION,19/12/13,
091213D,MCGRATH BROS (WASTE CONTROL) L,308393,68,111.36,REFUSE COLLECTION,19/12/13,
091213D,MCGRATH BROS (WASTE CONTROL) L,308393,69,111.36,REFUSE COLLECTION,19/12/13,
091213D,MCGRATH BROS (WASTE CONTROL) L,308393,70,111.36,REFUSE COLLECTION,19/12/13,
091213D,MCGRATH BROS (WASTE CONTROL) L,308393,71,82.04,REFUSE COLLECTION,19/12/13,
091213D,MCGRATH BROS (WASTE CONTROL) L,308393,72,287.04,REFUSE COLLECTION,19/12/13,
091213D,MCGRATH BROS (WASTE CONTROL) L,308393,73,82.04,REFUSE COLLECTION,19/12/13,
091213D,MCGRATH BROS (WASTE CONTROL) L,308393,74,111.36,REFUSE COLLECTION,19/12/13,
091213D,MCGRATH BROS (WASTE CONTROL) L,308393,76,111.36,REFUSE COLLECTION,19/12/13,
091213D,MCGRATH BROS (WASTE CONTROL) L,308393,77,130.28,REFUSE COLLECTION,19/12/13,
091213D,MCGRATH BROS (WASTE CONTROL) L,308393,78,82.04,REFUSE COLLECTION,19/12/13,
091213D,MCGRATH BROS (WASTE CONTROL) L,308393,79,82.04,REFUSE COLLECTION,19/12/13,
091213D,MCGRATH BROS (WASTE CONTROL) L,308393,80,90.08,REFUSE COLLECTION,19/12/13,
091213D,MCGRATH BROS (WASTE CONTROL) L,308393,81,82.04,REFUSE COLLECTION,19/12/13,
091213D,MCGRATH BROS (WASTE CONTROL) L,308393,82,297.22,REFUSE COLLECTION,19/12/13,
091213D,MCGRATH BROS (WASTE CONTROL) L,308393,83,282.56,REFUSE COLLECTION,19/12/13,
091213D,MCGRATH BROS (WASTE CONTROL) L,308393,84,111.36,REFUSE COLLECTION,19/12/13,
091213D,MCGRATH BROS (WASTE CONTROL) L,308393,85,90.08,REFUSE COLLECTION,19/12/13,
091213D,MCGRATH BROS (WASTE CONTROL) L,308393,86,114.20,REFUSE COLLECTION,19/12/13,
091213D,MCGRATH BROS (WASTE CONTROL) L,308393,87,82.04,REFUSE COLLECTION,19/12/13,
091213D,MCGRATH BROS (WASTE CONTROL) L,308393,88,111.36,REFUSE COLLECTION,19/12/13,
091213D,MCGRATH BROS (WASTE CONTROL) L,308393,89,546.31,REFUSE COLLECTION,19/12/13,
091213D,MCGRATH BROS (WASTE CONTROL) L,308393,90,82.04,REFUSE COLLECTION,19/12/13,
091213D,MCGRATH BROS (WASTE CONTROL) L,308393,91,82.04,REFUSE COLLECTION,19/12/13,
091213D,MCGRATH BROS (WASTE CONTROL) L,308393,92,282.56,REFUSE COLLECTION,19/12/13,
091213D,MCGRATH BROS (WASTE CONTROL) L,308393,93,82.04,REFUSE COLLECTION,19/12/13,
091213D,MCGRATH BROS (WASTE CONTROL) L,308393,94,111.36,REFUSE COLLECTION,19/12/13,
091213D,MCGRATH BROS (WASTE CONTROL) L,308393,95,111.36,REFUSE COLLECTION,19/12/13,
091213D,MCGRATH BROS (WASTE CONTROL) L,308393,96,266.48,REFUSE COLLECTION,19/12/13,
091213D,MCGRATH BROS (WASTE CONTROL) L,308393,97,111.36,REFUSE COLLECTION,19/12/13,
091213D,MCGRATH BROS (WASTE CONTROL) L,308393,98,"1,629.81",REFUSE COLLECTION,19/12/13,
091213D,MCGRATH BROS (WASTE CONTROL) L,308393,99,82.04,REFUSE COLLECTION,19/12/13,
091213D,MCGRATH BROS (WASTE CONTROL) L,308393,100,119.40,REFUSE COLLECTION,19/12/13,
091213D,MCGRATH BROS (WASTE CONTROL) L,308393,101,111.36,REFUSE COLLECTION,19/12/13,
091213D,MCGRATH BROS (WASTE CONTROL) L,308393,102,301.70,REFUSE COLLECTION,19/12/13,
091213D,MCGRATH BROS (WASTE CONTROL) L,308393,103,90.08,REFUSE COLLECTION,19/12/13,
091213D,MCGRATH BROS (WASTE CONTROL) L,308393,104,114.20,REFUSE COLLECTION,19/12/13,
091213D,MCGRATH BROS (WASTE CONTROL) L,308393,105,111.36,REFUSE COLLECTION,19/12/13,
091213D,MCGRATH BROS (WASTE CONTROL) L,308393,106,207.84,REFUSE COLLECTION,19/12/13,
091213D,MCGRATH BROS (WASTE CONTROL) L,308393,107,119.40,REFUSE COLLECTION,19/12/13,
091213D,MCGRATH BROS (WASTE CONTROL) L,308393,108,111.36,REFUSE COLLECTION,19/12/13,
091213D,MCGRATH BROS (WASTE CONTROL) L,308393,109,114.20,REFUSE COLLECTION,19/12/13,
091213D,MCGRATH BROS (WASTE CONTROL) L,308393,110,90.08,REFUSE COLLECTION,19/12/13,
091213D,MCGRATH BROS (WASTE CONTROL) L,308393,111,82.04,REFUSE COLLECTION,19/12/13,
091213D,MCGRATH BROS (WASTE CONTROL) L,308393,112,82.04,REFUSE COLLECTION,19/12/13,
091213D,MCGRATH BROS (WASTE CONTROL) L,308393,113,102.55,REFUSE COLLECTION,19/12/13,
161213C,PLANTFORCE====================,31428,1,603.00,TACTICAL DAY TO DAY,19/12/13,603.00
161213C,WALKER CONSTRUCTION (UK) LIMIT,33949,1,"57,779.00",DEVELOPMENT  EXPENSES-CONTRACT,19/12/13,"57,779.00"
140483,HENRY STREETER (AUTOMOTIVE)==,3451,1,"32,596.00",RENTS,19/12/13,"32,596.00"
171213F,REACTIVE ROOFING (UK) LIMITED,3462*,1,"1,540.00",STRATEGIC (NON CYCLICAL),19/12/13,"6,102.22"
171213F,REACTIVE ROOFING (UK) LIMITED,3462*,2,"2,995.82",STRATEGIC (NON CYCLICAL),19/12/13,
171213F,REACTIVE ROOFING (UK) LIMITED,3462*,3,950.40,STRATEGIC (NON CYCLICAL),19/12/13,
171213F,REACTIVE ROOFING (UK) LIMITED,3462*,4,616.00,STRATEGIC (NON CYCLICAL),19/12/13,
041213C,MITIE SECURITY (LONDON) LTD===,45/540159,1,"16,516.80",PREMISES SECURITY,19/12/13,"16,516.80"
041213C,MITIE SECURITY (LONDON) LTD===,45/540178,1,"8,259.69",PREMISES SECURITY,19/12/13,"8,259.69"
161213C,FAHEY BUILDERS LTD============,5181,1,"7,675.00",STRATEGIC (NON CYCLICAL),19/12/13,"7,675.00"
161213C,CORE SURVEYSLTD===============,5322,1,402.00,DEVELOPMENT  EXPENSES-CONTRACT,19/12/13,402.00
161213C,CORE SURVEYSLTD===============,5325,1,400.00,ASBESTOS,19/12/13,400.00
161213C,INDEC BECKENHAM LTD===========,5586,1,"4,680.00",STRATEGIC (NON CYCLICAL),19/12/13,"4,680.00"
140487,THAMES WATER UTILITIES LTD====,56986-67403<,1,350.61,WATER & SEWERAGE RATES,19/12/13,350.61
161213C,MOORE STEPHENS CONSULTING LTD=,673355,1,"9,750.00",MAINTENANCE & SUPPORT,19/12/13,"9,750.00"
140483,BIS(POSTAL SERVICES ACT 2011),699/5202,1,"2,918.03",RENTS,19/12/13,"2,918.03"
161213C,SWEETT  UK LTD,7031513,1,"6,240.71",PROF FEES-MISCELLANEOUS,19/12/13,"6,240.71"
131213C,*SP SERVICES,717374,1,260.00,HYGIENE,19/12/13,260.00
131213C,TWO SERVICES LTD==============,74000,1,713.00,CATERING EQUIPMENT,19/12/13,713.00
131213C,CANON (UK) LTD===============,770445352,1,307.26,OFFICE EQUIPMENT,19/12/13,307.26
140487,THAMES WATER UTILITIES LTD====,7977962312K,1,745.79,WATER & SEWERAGE RATES,19/12/13,745.79
161213C,NEXUS PROPERTY SERVICES,79976,1,"2,342.11",GENERAL,19/12/13,"2,342.11"
140487,THAMES WATER UTILITIES LTD====,84470-03310K,1,446.46,WATER & SEWERAGE RATES,19/12/13,446.46
111213C,DRAEGER SAFETY UK LIMITED=====,90431778,1,567.40,PROTECTIVE EQUIPT - PARTS,19/12/13,567.40
111213C,DRAEGER SAFETY UK LIMITED=====,90431779,1,"1,764.83",PROTECTIVE EQUIPT - PARTS,19/12/13,"1,764.83"
131213C,DRAEGER SAFETY UK LIMITED=====,90431891,1,339.00,PROTECTIVE EQUIPT - PARTS,19/12/13,339.00
131213C,DRAEGER SAFETY UK LIMITED=====,90432098,1,"1,359.00",PROTECTIVE EQUIPT - PARTS,19/12/13,"1,359.00"
140487,THAMES WATER UTILITIES LTD====,9524085193*,1,635.73,WATER & SEWERAGE RATES,19/12/13,635.73
902358,OPENDNS INC,AD5788,1,"1,369.20",MAINTENANCE & SUPPORT,19/12/13,"1,369.20"
161213C,ASTEC SURVEYS LIMITED=========,ASL-13-244,1,"4,520.00",ASBESTOS,19/12/13,"4,520.00"
131213C,VOICEPATH,DT7285,1,470.23,MISCELLANEOUS DISBURSEMENTS,19/12/13,470.23
140488,THOMPSONS=====================,G1360179*,1,"1,899.00",CLAIMANT COSTS AGREED,19/12/13,"1,899.00"
140488,THOMPSONS=====================,G1360179A,1,"1,080.00",CLAIMANT COSTS AGREED,19/12/13,"1,080.00"
161213C,JACKSON LIFT GROUP============,JS348385M,1,85.25,STRATEGIC (CYCLICAL),19/12/13,"2,344.27"
161213C,JACKSON LIFT GROUP============,JS348385M,2,85.25,STRATEGIC (CYCLICAL),19/12/13,
161213C,JACKSON LIFT GROUP============,JS348385M,3,85.25,STRATEGIC (CYCLICAL),19/12/13,
161213C,JACKSON LIFT GROUP============,JS348385M,4,85.25,STRATEGIC (CYCLICAL),19/12/13,
161213C,JACKSON LIFT GROUP============,JS348385M,5,85.25,STRATEGIC (CYCLICAL),19/12/13,
161213C,JACKSON LIFT GROUP============,JS348385M,6,85.25,STRATEGIC (CYCLICAL),19/12/13,
161213C,JACKSON LIFT GROUP============,JS348385M,7,85.25,STRATEGIC (CYCLICAL),19/12/13,
161213C,JACKSON LIFT GROUP============,JS348385M,8,85.25,STRATEGIC (CYCLICAL),19/12/13,
161213C,JACKSON LIFT GROUP============,JS348385M,9,85.25,STRATEGIC (CYCLICAL),19/12/13,
161213C,JACKSON LIFT GROUP============,JS348385M,10,42.25,STRATEGIC (CYCLICAL),19/12/13,
161213C,JACKSON LIFT GROUP============,JS348385M,11,42.25,STRATEGIC (CYCLICAL),19/12/13,
161213C,JACKSON LIFT GROUP============,JS348385M,12,106.92,STRATEGIC (CYCLICAL),19/12/13,
161213C,JACKSON LIFT GROUP============,JS348385M,13,106.92,STRATEGIC (CYCLICAL),19/12/13,
161213C,JACKSON LIFT GROUP============,JS348385M,14,106.92,STRATEGIC (CYCLICAL),19/12/13,
161213C,JACKSON LIFT GROUP============,JS348385M,15,106.92,STRATEGIC (CYCLICAL),19/12/13,
161213C,JACKSON LIFT GROUP============,JS348385M,16,106.92,STRATEGIC (CYCLICAL),19/12/13,
161213C,JACKSON LIFT GROUP============,JS348385M,17,42.25,STRATEGIC (CYCLICAL),19/12/13,
161213C,JACKSON LIFT GROUP============,JS348385M,18,85.25,STRATEGIC (CYCLICAL),19/12/13,
161213C,JACKSON LIFT GROUP============,JS348385M,19,42.25,STRATEGIC (CYCLICAL),19/12/13,
161213C,JACKSON LIFT GROUP============,JS348385M,20,85.25,STRATEGIC (CYCLICAL),19/12/13,
161213C,JACKSON LIFT GROUP============,JS348385M,21,42.25,STRATEGIC (CYCLICAL),19/12/13,
161213C,JACKSON LIFT GROUP============,JS348385M,22,85.25,STRATEGIC (CYCLICAL),19/12/13,
161213C,JACKSON LIFT GROUP============,JS348385M,23,85.25,STRATEGIC (CYCLICAL),19/12/13,
161213C,JACKSON LIFT GROUP============,JS348385M,24,85.25,STRATEGIC (CYCLICAL),19/12/13,
161213C,JACKSON LIFT GROUP============,JS348385M,25,85.25,STRATEGIC (CYCLICAL),19/12/13,
161213C,JACKSON LIFT GROUP============,JS348385M,26,42.25,STRATEGIC (CYCLICAL),19/12/13,
161213C,JACKSON LIFT GROUP============,JS348385M,27,85.25,STRATEGIC (CYCLICAL),19/12/13,
161213C,JACKSON LIFT GROUP============,JS348385M,28,85.25,STRATEGIC (CYCLICAL),19/12/13,
161213C,JACKSON LIFT GROUP============,JS348385M,29,106.92,STRATEGIC (CYCLICAL),19/12/13,
161213C,BALFOUR BEATTY WORKPLACE LTD,M124365C/M124365,1,"1,180.00",CATERING FIXTURES,19/12/13,"1,180.00"
800027197,ALLSTAR BUSINESS SOLUTIONS LTD,P2002042341,1,"1,188.35",FUEL,19/12/13,"21,159.12"
800027197,ALLSTAR BUSINESS SOLUTIONS LTD,P2002042341,2,814.16,FUEL,19/12/13,
800027197,ALLSTAR BUSINESS SOLUTIONS LTD,P2002042341,3,592.69,FUEL,19/12/13,
800027197,ALLSTAR BUSINESS SOLUTIONS LTD,P2002042341,4,572.68,FUEL,19/12/13,
800027197,ALLSTAR BUSINESS SOLUTIONS LTD,P2002042341,5,502.11,FUEL,19/12/13,
800027197,ALLSTAR BUSINESS SOLUTIONS LTD,P2002042341,6,466.76,FUEL,19/12/13,
800027197,ALLSTAR BUSINESS SOLUTIONS LTD,P2002042341,7,459.03,FUEL,19/12/13,
800027197,ALLSTAR BUSINESS SOLUTIONS LTD,P2002042341,8,393.72,FUEL,19/12/13,
800027197,ALLSTAR BUSINESS SOLUTIONS LTD,P2002042341,9,367.88,FUEL,19/12/13,
800027197,ALLSTAR BUSINESS SOLUTIONS LTD,P2002042341,10,361.78,FUEL,19/12/13,
800027197,ALLSTAR BUSINESS SOLUTIONS LTD,P2002042341,11,358.92,FUEL,19/12/13,
800027197,ALLSTAR BUSINESS SOLUTIONS LTD,P2002042341,12,354.18,FUEL,19/12/13,
800027197,ALLSTAR BUSINESS SOLUTIONS LTD,P2002042341,13,353.78,FUEL,19/12/13,
800027197,ALLSTAR BUSINESS SOLUTIONS LTD,P2002042341,14,347.07,FUEL,19/12/13,
800027197,ALLSTAR BUSINESS SOLUTIONS LTD,P2002042341,15,330.82,FUEL,19/12/13,
800027197,ALLSTAR BUSINESS SOLUTIONS LTD,P2002042341,16,329.16,FUEL,19/12/13,
800027197,ALLSTAR BUSINESS SOLUTIONS LTD,P2002042341,17,299.36,FUEL,19/12/13,
800027197,ALLSTAR BUSINESS SOLUTIONS LTD,P2002042341,18,297.18,FUEL,19/12/13,
800027197,ALLSTAR BUSINESS SOLUTIONS LTD,P2002042341,19,292.72,FUEL,19/12/13,
800027197,ALLSTAR BUSINESS SOLUTIONS LTD,P2002042341,20,278.43,FUEL,19/12/13,
800027197,ALLSTAR BUSINESS SOLUTIONS LTD,P2002042341,21,275.94,FUEL,19/12/13,
800027197,ALLSTAR BUSINESS SOLUTIONS LTD,P2002042341,22,263.55,FUEL,19/12/13,
800027197,ALLSTAR BUSINESS SOLUTIONS LTD,P2002042341,23,254.35,FUEL,19/12/13,
800027197,ALLSTAR BUSINESS SOLUTIONS LTD,P2002042341,24,252.17,FUEL,19/12/13,
800027197,ALLSTAR BUSINESS SOLUTIONS LTD,P2002042341,25,251.76,FUEL,19/12/13,
800027197,ALLSTAR BUSINESS SOLUTIONS LTD,P2002042341,26,248.21,FUEL,19/12/13,
800027197,ALLSTAR BUSINESS SOLUTIONS LTD,P2002042341,27,244.45,FUEL,19/12/13,
800027197,ALLSTAR BUSINESS SOLUTIONS LTD,P2002042341,28,236.00,FUEL,19/12/13,
800027197,ALLSTAR BUSINESS SOLUTIONS LTD,P2002042341,29,223.77,FUEL,19/12/13,
800027197,ALLSTAR BUSINESS SOLUTIONS LTD,P2002042341,30,221.99,FUEL,19/12/13,
800027197,ALLSTAR BUSINESS SOLUTIONS LTD,P2002042341,31,215.80,FUEL,19/12/13,
800027197,ALLSTAR BUSINESS SOLUTIONS LTD,P2002042341,32,212.99,FUEL,19/12/13,
800027197,ALLSTAR BUSINESS SOLUTIONS LTD,P2002042341,33,212.34,FUEL,19/12/13,
800027197,ALLSTAR BUSINESS SOLUTIONS LTD,P2002042341,34,210.01,FUEL,19/12/13,
800027197,ALLSTAR BUSINESS SOLUTIONS LTD,P2002042341,35,203.52,FUEL,19/12/13,
800027197,ALLSTAR BUSINESS SOLUTIONS LTD,P2002042341,36,193.77,FUEL,19/12/13,
800027197,ALLSTAR BUSINESS SOLUTIONS LTD,P2002042341,37,188.95,FUEL,19/12/13,
800027197,ALLSTAR BUSINESS SOLUTIONS LTD,P2002042341,38,187.66,FUEL,19/12/13,
800027197,ALLSTAR BUSINESS SOLUTIONS LTD,P2002042341,39,183.64,FUEL,19/12/13,
800027197,ALLSTAR BUSINESS SOLUTIONS LTD,P2002042341,40,180.98,FUEL,19/12/13,
800027197,ALLSTAR BUSINESS SOLUTIONS LTD,P2002042341,41,180.86,FUEL,19/12/13,
800027197,ALLSTAR BUSINESS SOLUTIONS LTD,P2002042341,42,180.03,FUEL,19/12/13,
800027197,ALLSTAR BUSINESS SOLUTIONS LTD,P2002042341,43,178.67,FUEL,19/12/13,
800027197,ALLSTAR BUSINESS SOLUTIONS LTD,P2002042341,44,176.08,FUEL,19/12/13,
800027197,ALLSTAR BUSINESS SOLUTIONS LTD,P2002042341,45,173.27,FUEL,19/12/13,
800027197,ALLSTAR BUSINESS SOLUTIONS LTD,P2002042341,46,170.55,FUEL,19/12/13,
800027197,ALLSTAR BUSINESS SOLUTIONS LTD,P2002042341,47,169.47,FUEL,19/12/13,
800027197,ALLSTAR BUSINESS SOLUTIONS LTD,P2002042341,48,168.95,FUEL,19/12/13,
800027197,ALLSTAR BUSINESS SOLUTIONS LTD,P2002042341,49,167.84,FUEL,19/12/13,
800027197,ALLSTAR BUSINESS SOLUTIONS LTD,P2002042341,50,164.07,FUEL,19/12/13,
800027197,ALLSTAR BUSINESS SOLUTIONS LTD,P2002042341,51,157.77,FUEL,19/12/13,
800027197,ALLSTAR BUSINESS SOLUTIONS LTD,P2002042341,52,155.58,FUEL,19/12/13,
800027197,ALLSTAR BUSINESS SOLUTIONS LTD,P2002042341,53,155.07,FUEL,19/12/13,
800027197,ALLSTAR BUSINESS SOLUTIONS LTD,P2002042341,54,153.90,FUEL,19/12/13,
800027197,ALLSTAR BUSINESS SOLUTIONS LTD,P2002042341,55,153.12,FUEL,19/12/13,
800027197,ALLSTAR BUSINESS SOLUTIONS LTD,P2002042341,56,152.04,FUEL,19/12/13,
800027197,ALLSTAR BUSINESS SOLUTIONS LTD,P2002042341,57,150.81,FUEL,19/12/13,
800027197,ALLSTAR BUSINESS SOLUTIONS LTD,P2002042341,58,150.11,FUEL,19/12/13,
800027197,ALLSTAR BUSINESS SOLUTIONS LTD,P2002042341,59,146.68,FUEL,19/12/13,
800027197,ALLSTAR BUSINESS SOLUTIONS LTD,P2002042341,60,144.32,FUEL,19/12/13,
800027197,ALLSTAR BUSINESS SOLUTIONS LTD,P2002042341,61,144.05,FUEL,19/12/13,
800027197,ALLSTAR BUSINESS SOLUTIONS LTD,P2002042341,62,143.13,FUEL,19/12/13,
800027197,ALLSTAR BUSINESS SOLUTIONS LTD,P2002042341,63,140.61,FUEL,19/12/13,
800027197,ALLSTAR BUSINESS SOLUTIONS LTD,P2002042341,64,138.67,FUEL,19/12/13,
800027197,ALLSTAR BUSINESS SOLUTIONS LTD,P2002042341,65,137.40,FUEL,19/12/13,
800027197,ALLSTAR BUSINESS SOLUTIONS LTD,P2002042341,66,134.91,FUEL,19/12/13,
800027197,ALLSTAR BUSINESS SOLUTIONS LTD,P2002042341,67,127.15,FUEL,19/12/13,
800027197,ALLSTAR BUSINESS SOLUTIONS LTD,P2002042341,68,126.92,FUEL,19/12/13,
800027197,ALLSTAR BUSINESS SOLUTIONS LTD,P2002042341,69,124.81,FUEL,19/12/13,
800027197,ALLSTAR BUSINESS SOLUTIONS LTD,P2002042341,70,123.60,FUEL,19/12/13,
800027197,ALLSTAR BUSINESS SOLUTIONS LTD,P2002042341,71,121.52,FUEL,19/12/13,
800027197,ALLSTAR BUSINESS SOLUTIONS LTD,P2002042341,72,118.50,FUEL,19/12/13,
800027197,ALLSTAR BUSINESS SOLUTIONS LTD,P2002042341,73,116.45,FUEL,19/12/13,
800027197,ALLSTAR BUSINESS SOLUTIONS LTD,P2002042341,74,116.39,FUEL,19/12/13,
800027197,ALLSTAR BUSINESS SOLUTIONS LTD,P2002042341,75,115.26,FUEL,19/12/13,
800027197,ALLSTAR BUSINESS SOLUTIONS LTD,P2002042341,76,113.75,FUEL,19/12/13,
800027197,ALLSTAR BUSINESS SOLUTIONS LTD,P2002042341,77,113.55,FUEL,19/12/13,
800027197,ALLSTAR BUSINESS SOLUTIONS LTD,P2002042341,78,109.55,FUEL,19/12/13,
800027197,ALLSTAR BUSINESS SOLUTIONS LTD,P2002042341,79,107.88,FUEL,19/12/13,
800027197,ALLSTAR BUSINESS SOLUTIONS LTD,P2002042341,80,107.16,FUEL,19/12/13,
800027197,ALLSTAR BUSINESS SOLUTIONS LTD,P2002042341,81,106.57,FUEL,19/12/13,
800027197,ALLSTAR BUSINESS SOLUTIONS LTD,P2002042341,82,103.58,FUEL,19/12/13,
800027197,ALLSTAR BUSINESS SOLUTIONS LTD,P2002042341,83,100.53,FUEL,19/12/13,
800027197,ALLSTAR BUSINESS SOLUTIONS LTD,P2002042341,84,100.04,FUEL,19/12/13,
800027197,ALLSTAR BUSINESS SOLUTIONS LTD,P2002042341,85,98.07,FUEL,19/12/13,
800027197,ALLSTAR BUSINESS SOLUTIONS LTD,P2002042341,86,95.11,FUEL,19/12/13,
800027197,ALLSTAR BUSINESS SOLUTIONS LTD,P2002042341,87,84.31,FUEL,19/12/13,
800027197,ALLSTAR BUSINESS SOLUTIONS LTD,P2002042341,88,82.70,FUEL,19/12/13,
800027197,ALLSTAR BUSINESS SOLUTIONS LTD,P2002042341,89,81.88,FUEL,19/12/13,
800027197,ALLSTAR BUSINESS SOLUTIONS LTD,P2002042341,90,80.72,FUEL,19/12/13,
800027197,ALLSTAR BUSINESS SOLUTIONS LTD,P2002042341,91,78.56,FUEL,19/12/13,
800027197,ALLSTAR BUSINESS SOLUTIONS LTD,P2002042341,92,78.30,FUEL,19/12/13,
800027197,ALLSTAR BUSINESS SOLUTIONS LTD,P2002042341,93,78.20,FUEL,19/12/13,
800027197,ALLSTAR BUSINESS SOLUTIONS LTD,P2002042341,94,78.00,FUEL,19/12/13,
800027197,ALLSTAR BUSINESS SOLUTIONS LTD,P2002042341,95,74.74,FUEL,19/12/13,
800027197,ALLSTAR BUSINESS SOLUTIONS LTD,P2002042341,96,73.53,FUEL,19/12/13,
800027197,ALLSTAR BUSINESS SOLUTIONS LTD,P2002042341,97,65.21,FUEL,19/12/13,
800027197,ALLSTAR BUSINESS SOLUTIONS LTD,P2002042341,98,64.81,FUEL,19/12/13,
800027197,ALLSTAR BUSINESS SOLUTIONS LTD,P2002042341,99,62.86,FUEL,19/12/13,
800027197,ALLSTAR BUSINESS SOLUTIONS LTD,P2002042341,100,62.52,FUEL,19/12/13,
800027197,ALLSTAR BUSINESS SOLUTIONS LTD,P2002042341,101,61.13,FUEL,19/12/13,
800027197,ALLSTAR BUSINESS SOLUTIONS LTD,P2002042341,102,55.80,FUEL,19/12/13,
800027197,ALLSTAR BUSINESS SOLUTIONS LTD,P2002042341,103,54.31,FUEL,19/12/13,
800027197,ALLSTAR BUSINESS SOLUTIONS LTD,P2002042341,104,52.80,FUEL,19/12/13,
800027197,ALLSTAR BUSINESS SOLUTIONS LTD,P2002042341,105,45.53,FUEL,19/12/13,
800027197,ALLSTAR BUSINESS SOLUTIONS LTD,P2002042341,106,45.04,FUEL,19/12/13,
800027197,ALLSTAR BUSINESS SOLUTIONS LTD,P2002042341,107,29.41,FUEL,19/12/13,
800027197,ALLSTAR BUSINESS SOLUTIONS LTD,P2002042341,108,11.78,FUEL,19/12/13,
131213C,PEGASUS COURIERS - LONDON=====,PL014651,1,"1,373.56",POSTAL SERVICES,19/12/13,"1,373.56"
111213C,PULLMAN MOTORS================,PULL197,1,900.00,OPERATIONAL EQUIP-PURCHASE,19/12/13,900.00
140478,ARVAL UK LTD,R10000969765,1,289.27,LEASE CAR CHARGES,19/12/13,289.27
140478,ARVAL UK LTD,R10000969765,2,-24.71,VAT CAR LEASING,19/12/13,
140478,ARVAL UK LTD,R10000969765,3,24.71,LEASE CAR CHARGES,19/12/13,
061213C,SECURITAS SECURITY SERVICES LT,S-SIN0189727,1,540.00,GENERAL,19/12/13,540.00
061213C,SECURITAS SECURITY SERVICES LT,S-SIN0189730,1,261.00,GENERAL,19/12/13,261.00
061213C,SECURITAS SECURITY SERVICES LT,S-SIN0189739,1,"115,084.80",GENERAL,19/12/13,"115,084.80"
061213C,SECURITAS SECURITY SERVICES LT,S-SIN0189741,1,"141,862.57",GENERAL,19/12/13,"141,862.57"
061213C,SECURITAS SECURITY SERVICES LT,S-SIN0189761,1,"8,631.36",GENERAL,19/12/13,"8,631.36"
902359,BABCOCK CRITICAL SERVICES LTD,SIMP012153,1,"1,296,200.00",VEHICLES,19/12/13,"1,630,146.28"
902359,BABCOCK CRITICAL SERVICES LTD,SIMP012153,2,"2,507.39",VEHICLES,19/12/13,
902359,BABCOCK CRITICAL SERVICES LTD,SIMP012153,3,"229,622.33",VEHICLES NWFT,19/12/13,
902359,BABCOCK CRITICAL SERVICES LTD,SIMP012153,4,"43,600.15",LOST & NFWT OPS EQUIPMENT,19/12/13,
902359,BABCOCK CRITICAL SERVICES LTD,SIMP012153,5,"10,775.73",LOST & NFWT OPS EQUIPMENT,19/12/13,
902359,BABCOCK CRITICAL SERVICES LTD,SIMP012153,6,"11,097.81",ACCIDENT REPAIRS,19/12/13,
902359,BABCOCK CRITICAL SERVICES LTD,SIMP012153,7,"2,411.10",MODIFICATIONS,19/12/13,
902359,BABCOCK CRITICAL SERVICES LTD,SIMP012153,8,"3,735.54",MODIFICATIONS,19/12/13,
902359,BABCOCK CRITICAL SERVICES LTD,SIMP012153,9,304.78,MODIFICATIONS,19/12/13,
902359,BABCOCK CRITICAL SERVICES LTD,SIMP012153,10,129.01,MODIFICATIONS,19/12/13,
902359,BABCOCK CRITICAL SERVICES LTD,SIMP012153,11,147.48,MODIFICATIONS,19/12/13,
902359,BABCOCK CRITICAL SERVICES LTD,SIMP012153,12,"6,566.10",MODIFICATIONS,19/12/13,
902359,BABCOCK CRITICAL SERVICES LTD,SIMP012153,13,"6,237.83",MODIFICATIONS,19/12/13,
902359,BABCOCK CRITICAL SERVICES LTD,SIMP012153,14,"1,015.15",MODIFICATIONS,19/12/13,
902359,BABCOCK CRITICAL SERVICES LTD,SIMP012153,15,"15,795.88",VEHICLES NWFT,19/12/13,
161213C,WORDWAVE INTERNATIONAL LTD====,SINV/00072340,1,291.10,CONSULTANTS,19/12/13,291.10
161213C,COSMUR CONSTRUCTION LTD,SL005348,1,"7,000.00",DEVELOPMENT  EXPENSES-CONTRACT,19/12/13,"7,000.00"
800027080,*THOMAS KNEALE & CO LTD,TK105743,1,"1,719.20",COMMUNITY RELATIONS,19/12/13,"4,889.42"
800027080,*THOMAS KNEALE & CO LTD,TK105743,2,"2,009.70",COMMUNITY RELATIONS,19/12/13,
800027080,*THOMAS KNEALE & CO LTD,TK105743,3,10.49,CLOTHING,19/12/13,
800027080,*THOMAS KNEALE & CO LTD,TK105743,4,3.47,CLOTHING,19/12/13,
800027080,*THOMAS KNEALE & CO LTD,TK105743,5,1.48,CLOTHING,19/12/13,
800027080,*THOMAS KNEALE & CO LTD,TK105743,6,10.49,CLOTHING,19/12/13,
800027080,*THOMAS KNEALE & CO LTD,TK105743,7,3.47,CLOTHING,19/12/13,
800027080,*THOMAS KNEALE & CO LTD,TK105743,8,1.48,CLOTHING,19/12/13,
800027080,*THOMAS KNEALE & CO LTD,TK105743,9,10.49,CLOTHING,19/12/13,
800027080,*THOMAS KNEALE & CO LTD,TK105743,10,10.49,CLOTHING,19/12/13,
800027080,*THOMAS KNEALE & CO LTD,TK105743,11,3.47,CLOTHING,19/12/13,
800027080,*THOMAS KNEALE & CO LTD,TK105743,12,10.49,CLOTHING,19/12/13,
800027080,*THOMAS KNEALE & CO LTD,TK105743,13,10.49,CLOTHING,19/12/13,
800027080,*THOMAS KNEALE & CO LTD,TK105743,14,0.99,CLOTHING,19/12/13,
800027080,*THOMAS KNEALE & CO LTD,TK105743,15,138.62,OFFICE FURNITURE,19/12/13,
800027080,*THOMAS KNEALE & CO LTD,TK105743,16,54.61,OFFICE FURNITURE,19/12/13,
800027080,*THOMAS KNEALE & CO LTD,TK105743,17,10.49,CLOTHING,19/12/13,
800027080,*THOMAS KNEALE & CO LTD,TK105743,18,0.99,CLOTHING,19/12/13,
800027080,*THOMAS KNEALE & CO LTD,TK105743,19,10.49,CLOTHING,19/12/13,
800027080,*THOMAS KNEALE & CO LTD,TK105743,20,10.49,CLOTHING,19/12/13,
800027080,*THOMAS KNEALE & CO LTD,TK105743,21,0.99,CLOTHING,19/12/13,
800027080,*THOMAS KNEALE & CO LTD,TK105743,22,3.47,CLOTHING,19/12/13,
800027080,*THOMAS KNEALE & CO LTD,TK105743,23,1.48,CLOTHING,19/12/13,
800027080,*THOMAS KNEALE & CO LTD,TK105743,24,10.49,CLOTHING,19/12/13,
800027080,*THOMAS KNEALE & CO LTD,TK105743,25,3.47,CLOTHING,19/12/13,
800027080,*THOMAS KNEALE & CO LTD,TK105743,26,1.48,CLOTHING,19/12/13,
800027080,*THOMAS KNEALE & CO LTD,TK105743,27,10.49,CLOTHING,19/12/13,
800027080,*THOMAS KNEALE & CO LTD,TK105743,28,3.47,CLOTHING,19/12/13,
800027080,*THOMAS KNEALE & CO LTD,TK105743,29,1.48,CLOTHING,19/12/13,
800027080,*THOMAS KNEALE & CO LTD,TK105743,30,10.49,CLOTHING,19/12/13,
800027080,*THOMAS KNEALE & CO LTD,TK105743,31,3.47,CLOTHING,19/12/13,
800027080,*THOMAS KNEALE & CO LTD,TK105743,32,1.48,CLOTHING,19/12/13,
800027080,*THOMAS KNEALE & CO LTD,TK105743,33,10.49,CLOTHING,19/12/13,
800027080,*THOMAS KNEALE & CO LTD,TK105743,34,3.47,CLOTHING,19/12/13,
800027080,*THOMAS KNEALE & CO LTD,TK105743,35,1.48,CLOTHING,19/12/13,
800027080,*THOMAS KNEALE & CO LTD,TK105743,36,109.22,OFFICE FURNITURE,19/12/13,
800027080,*THOMAS KNEALE & CO LTD,TK105743,37,5.96,OFFICE FURNITURE,19/12/13,
800027080,*THOMAS KNEALE & CO LTD,TK105743,38,10.49,CLOTHING,19/12/13,
800027080,*THOMAS KNEALE & CO LTD,TK105743,39,0.99,CLOTHING,19/12/13,
800027080,*THOMAS KNEALE & CO LTD,TK105743,40,10.49,CLOTHING,19/12/13,
800027080,*THOMAS KNEALE & CO LTD,TK105743,41,10.49,CLOTHING,19/12/13,
800027080,*THOMAS KNEALE & CO LTD,TK105743,42,10.49,CLOTHING,19/12/13,
800027080,*THOMAS KNEALE & CO LTD,TK105743,43,2.59,OFFICE FURNITURE,19/12/13,
800027080,*THOMAS KNEALE & CO LTD,TK105743,44,14.90,OFFICE FURNITURE,19/12/13,
800027080,*THOMAS KNEALE & CO LTD,TK105743,45,10.49,CLOTHING,19/12/13,
800027080,*THOMAS KNEALE & CO LTD,TK105743,46,3.47,CLOTHING,19/12/13,
800027080,*THOMAS KNEALE & CO LTD,TK105743,47,1.48,CLOTHING,19/12/13,
800027080,*THOMAS KNEALE & CO LTD,TK105743,48,10.49,CLOTHING,19/12/13,
800027080,*THOMAS KNEALE & CO LTD,TK105743,49,0.99,CLOTHING,19/12/13,
800027080,*THOMAS KNEALE & CO LTD,TK105743,50,10.49,CLOTHING,19/12/13,
800027080,*THOMAS KNEALE & CO LTD,TK105743,51,3.47,CLOTHING,19/12/13,
800027080,*THOMAS KNEALE & CO LTD,TK105743,52,10.49,CLOTHING,19/12/13,
800027080,*THOMAS KNEALE & CO LTD,TK105743,53,0.99,CLOTHING,19/12/13,
800027080,*THOMAS KNEALE & CO LTD,TK105743,54,3.47,CLOTHING,19/12/13,
800027080,*THOMAS KNEALE & CO LTD,TK105743,55,1.48,CLOTHING,19/12/13,
800027080,*THOMAS KNEALE & CO LTD,TK105743,56,10.49,CLOTHING,19/12/13,
800027080,*THOMAS KNEALE & CO LTD,TK105743,57,10.49,CLOTHING,19/12/13,
800027080,*THOMAS KNEALE & CO LTD,TK105743,58,3.47,CLOTHING,19/12/13,
800027080,*THOMAS KNEALE & CO LTD,TK105743,59,10.49,CLOTHING,19/12/13,
800027080,*THOMAS KNEALE & CO LTD,TK105743,60,3.47,CLOTHING,19/12/13,
800027080,*THOMAS KNEALE & CO LTD,TK105743,61,5.18,OFFICE FURNITURE,19/12/13,
800027080,*THOMAS KNEALE & CO LTD,TK105743,62,10.49,CLOTHING,19/12/13,
800027080,*THOMAS KNEALE & CO LTD,TK105743,63,3.47,CLOTHING,19/12/13,
800027080,*THOMAS KNEALE & CO LTD,TK105743,64,10.49,CLOTHING,19/12/13,
800027080,*THOMAS KNEALE & CO LTD,TK105743,65,0.99,CLOTHING,19/12/13,
800027080,*THOMAS KNEALE & CO LTD,TK105743,66,10.49,CLOTHING,19/12/13,
800027080,*THOMAS KNEALE & CO LTD,TK105743,67,5.18,OFFICE FURNITURE,19/12/13,
800027080,*THOMAS KNEALE & CO LTD,TK105743,68,10.49,CLOTHING,19/12/13,
800027080,*THOMAS KNEALE & CO LTD,TK105743,69,10.49,CLOTHING,19/12/13,
800027080,*THOMAS KNEALE & CO LTD,TK105743,70,3.47,CLOTHING,19/12/13,
800027080,*THOMAS KNEALE & CO LTD,TK105743,71,1.48,CLOTHING,19/12/13,
800027080,*THOMAS KNEALE & CO LTD,TK105743,72,10.49,CLOTHING,19/12/13,
800027080,*THOMAS KNEALE & CO LTD,TK105743,73,3.47,CLOTHING,19/12/13,
800027080,*THOMAS KNEALE & CO LTD,TK105743,74,1.48,CLOTHING,19/12/13,
800027080,*THOMAS KNEALE & CO LTD,TK105743,75,10.49,CLOTHING,19/12/13,
800027080,*THOMAS KNEALE & CO LTD,TK105743,76,10.49,CLOTHING,19/12/13,
800027080,*THOMAS KNEALE & CO LTD,TK105743,77,0.99,CLOTHING,19/12/13,
800027080,*THOMAS KNEALE & CO LTD,TK105743,78,3.47,CLOTHING,19/12/13,
800027080,*THOMAS KNEALE & CO LTD,TK105743,79,1.48,CLOTHING,19/12/13,
800027080,*THOMAS KNEALE & CO LTD,TK105743,80,10.49,CLOTHING,19/12/13,
800027080,*THOMAS KNEALE & CO LTD,TK105743,81,3.47,CLOTHING,19/12/13,
800027080,*THOMAS KNEALE & CO LTD,TK105743,82,1.48,CLOTHING,19/12/13,
800027080,*THOMAS KNEALE & CO LTD,TK105743,83,10.49,CLOTHING,19/12/13,
800027080,*THOMAS KNEALE & CO LTD,TK105743,84,10.49,CLOTHING,19/12/13,
800027080,*THOMAS KNEALE & CO LTD,TK105743,85,10.49,CLOTHING,19/12/13,
800027080,*THOMAS KNEALE & CO LTD,TK105743,86,3.47,CLOTHING,19/12/13,
800027080,*THOMAS KNEALE & CO LTD,TK105743,87,10.49,CLOTHING,19/12/13,
800027080,*THOMAS KNEALE & CO LTD,TK105743,88,3.47,CLOTHING,19/12/13,
800027080,*THOMAS KNEALE & CO LTD,TK105743,89,10.49,CLOTHING,19/12/13,
800027080,*THOMAS KNEALE & CO LTD,TK105743,90,3.47,CLOTHING,19/12/13,
800027080,*THOMAS KNEALE & CO LTD,TK105743,91,10.49,CLOTHING,19/12/13,
800027080,*THOMAS KNEALE & CO LTD,TK105743,92,10.49,CLOTHING,19/12/13,
800027080,*THOMAS KNEALE & CO LTD,TK105743,93,10.49,CLOTHING,19/12/13,
800027080,*THOMAS KNEALE & CO LTD,TK105743,94,10.49,CLOTHING,19/12/13,
800027080,*THOMAS KNEALE & CO LTD,TK105743,95,10.49,CLOTHING,19/12/13,
800027080,*THOMAS KNEALE & CO LTD,TK105743,96,6.94,CLOTHING,19/12/13,
800027080,*THOMAS KNEALE & CO LTD,TK105743,97,2.96,CLOTHING,19/12/13,
800027080,*THOMAS KNEALE & CO LTD,TK105743,98,10.49,CLOTHING,19/12/13,
800027080,*THOMAS KNEALE & CO LTD,TK105743,99,0.99,CLOTHING,19/12/13,
800027080,*THOMAS KNEALE & CO LTD,TK105743,100,1.48,CLOTHING,19/12/13,
800027080,*THOMAS KNEALE & CO LTD,TK105743,101,2.98,OFFICE FURNITURE,19/12/13,
800027080,*THOMAS KNEALE & CO LTD,TK105743,102,0.99,CLOTHING,19/12/13,
800027080,*THOMAS KNEALE & CO LTD,TK105743,103,6.94,CLOTHING,19/12/13,
800027080,*THOMAS KNEALE & CO LTD,TK105743,104,2.96,CLOTHING,19/12/13,
800027080,*THOMAS KNEALE & CO LTD,TK105743,105,0.99,CLOTHING,19/12/13,
800027080,*THOMAS KNEALE & CO LTD,TK105743,106,2.96,CLOTHING,19/12/13,
800027080,*THOMAS KNEALE & CO LTD,TK105743,107,6.94,CLOTHING,19/12/13,
800027080,*THOMAS KNEALE & CO LTD,TK105743,108,2.59,OFFICE FURNITURE,19/12/13,
800027080,*THOMAS KNEALE & CO LTD,TK105743,109,2.96,CLOTHING,19/12/13,
800027080,*THOMAS KNEALE & CO LTD,TK105743,110,6.94,CLOTHING,19/12/13,
800027080,*THOMAS KNEALE & CO LTD,TK105743,111,10.49,CLOTHING,19/12/13,
800027080,*THOMAS KNEALE & CO LTD,TK105743,112,10.49,CLOTHING,19/12/13,
800027080,*THOMAS KNEALE & CO LTD,TK105743,113,5.18,OFFICE FURNITURE,19/12/13,
800027080,*THOMAS KNEALE & CO LTD,TK105743,114,0.99,CLOTHING,19/12/13,
800027080,*THOMAS KNEALE & CO LTD,TK105743,115,3.47,CLOTHING,19/12/13,
800027080,*THOMAS KNEALE & CO LTD,TK105743,116,1.48,CLOTHING,19/12/13,
800027080,*THOMAS KNEALE & CO LTD,TK105743,117,10.49,CLOTHING,19/12/13,
800027080,*THOMAS KNEALE & CO LTD,TK105743,118,3.47,CLOTHING,19/12/13,
800027080,*THOMAS KNEALE & CO LTD,TK105743,119,10.49,CLOTHING,19/12/13,
800027080,*THOMAS KNEALE & CO LTD,TK105743,120,2.98,OFFICE FURNITURE,19/12/13,
800027080,*THOMAS KNEALE & CO LTD,TK105743,121,1.48,CLOTHING,19/12/13,
800027080,*THOMAS KNEALE & CO LTD,TK105743,122,10.49,CLOTHING,19/12/13,
800027080,*THOMAS KNEALE & CO LTD,TK105743,123,0.99,CLOTHING,19/12/13,
800027080,*THOMAS KNEALE & CO LTD,TK105743,124,10.49,CLOTHING,19/12/13,
800027080,*THOMAS KNEALE & CO LTD,TK105743,125,10.49,CLOTHING,19/12/13,
800027080,*THOMAS KNEALE & CO LTD,TK105743,126,10.49,CLOTHING,19/12/13,
800027080,*THOMAS KNEALE & CO LTD,TK105743,127,0.99,CLOTHING,19/12/13,
800027080,*THOMAS KNEALE & CO LTD,TK105743,128,3.47,CLOTHING,19/12/13,
800027080,*THOMAS KNEALE & CO LTD,TK105743,129,10.49,CLOTHING,19/12/13,
800027080,*THOMAS KNEALE & CO LTD,TK105743,130,0.99,CLOTHING,19/12/13,
800027080,*THOMAS KNEALE & CO LTD,TK105743,131,3.47,CLOTHING,19/12/13,
800027080,*THOMAS KNEALE & CO LTD,TK105743,132,1.48,CLOTHING,19/12/13,
800027080,*THOMAS KNEALE & CO LTD,TK105743,133,10.49,CLOTHING,19/12/13,
800027080,*THOMAS KNEALE & CO LTD,TK105743,134,10.49,CLOTHING,19/12/13,
800027080,*THOMAS KNEALE & CO LTD,TK105743,135,3.47,CLOTHING,19/12/13,
800027080,*THOMAS KNEALE & CO LTD,TK105743,136,10.49,CLOTHING,19/12/13,
800027080,*THOMAS KNEALE & CO LTD,TK105743,137,3.47,CLOTHING,19/12/13,
800027080,*THOMAS KNEALE & CO LTD,TK105743,138,1.48,CLOTHING,19/12/13,
800027080,*THOMAS KNEALE & CO LTD,TK105743,139,10.49,CLOTHING,19/12/13,
800027080,*THOMAS KNEALE & CO LTD,TK105743,140,6.94,CLOTHING,19/12/13,
800027080,*THOMAS KNEALE & CO LTD,TK105743,141,10.49,CLOTHING,19/12/13,
800027080,*THOMAS KNEALE & CO LTD,TK105743,142,2.96,CLOTHING,19/12/13,
800027080,*THOMAS KNEALE & CO LTD,TK105743,143,6.94,CLOTHING,19/12/13,
800027080,*THOMAS KNEALE & CO LTD,TK105743,144,10.49,CLOTHING,19/12/13,
131213C,BRITISH TELECOM===============,VP7118070M13701,1,"3,095.98",CALL CHARGES,19/12/13,"88,516.63"
131213C,BRITISH TELECOM===============,VP7118070M13701,2,"85,420.65",TELECOMMUNICATIONS,19/12/13,
191213C,MOOLANDS LTD,00000302,1,"3,490.70",STRATEGIC (NON CYCLICAL),24/12/13,"3,490.70"
191213C,MOOLANDS LTD,00000306,1,"4,690.20",STRATEGIC (NON CYCLICAL),24/12/13,"4,690.20"
191213C,MOOLANDS LTD,00000312,1,"2,990.20",STRATEGIC (NON CYCLICAL),24/12/13,"2,990.20"
191213C,MOOLANDS LTD,00000313,1,"4,720.00",STRATEGIC (NON CYCLICAL),24/12/13,"4,720.00"
181213C,OGILVIE FLEET LTD=============,00262800,1,324.78,LEASE CAR CHARGES,24/12/13,324.78
111213C,ADAM PHONES LTD===============,01020335,1,480.00,CELLULAR TELEPHONES,24/12/13,502.51
111213C,ADAM PHONES LTD===============,01020335,2,22.51,CELLULAR TELEPHONES,24/12/13,
091213C,GEORGE JONES & SON LTD========,036697,1,"13,956.36",STRATEGIC (NON CYCLICAL),24/12/13,"13,956.36"
140489,CORONA ENERGY RETAIL 4 LTD,0886811131,1,6.50,GAS,24/12/13,"24,574.44"
140489,CORONA ENERGY RETAIL 4 LTD,0886811131,2,"1,200.63",GAS,24/12/13,
140489,CORONA ENERGY RETAIL 4 LTD,0886811131,3,414.86,GAS,24/12/13,
140489,CORONA ENERGY RETAIL 4 LTD,0886811131,4,629.62,GAS,24/12/13,
140489,CORONA ENERGY RETAIL 4 LTD,0886811131,5,887.94,GAS,24/12/13,
140489,CORONA ENERGY RETAIL 4 LTD,0886811131,6,"1,117.71",GAS,24/12/13,
140489,CORONA ENERGY RETAIL 4 LTD,0886811131,7,798.30,GAS,24/12/13,
140489,CORONA ENERGY RETAIL 4 LTD,0886811131,8,708.61,GAS,24/12/13,
140489,CORONA ENERGY RETAIL 4 LTD,0886811131,9,658.44,GAS,24/12/13,
140489,CORONA ENERGY RETAIL 4 LTD,0886811131,10,84.00,GAS,24/12/13,
140489,CORONA ENERGY RETAIL 4 LTD,0886811131,11,612.40,GAS,24/12/13,
140489,CORONA ENERGY RETAIL 4 LTD,0886811131,12,709.61,GAS,24/12/13,
140489,CORONA ENERGY RETAIL 4 LTD,0886811131,13,"1,157.31",GAS,24/12/13,
140489,CORONA ENERGY RETAIL 4 LTD,0886811131,14,"1,387.97",GAS,24/12/13,
140489,CORONA ENERGY RETAIL 4 LTD,0886811131,15,764.77,GAS,24/12/13,
140489,CORONA ENERGY RETAIL 4 LTD,0886811131,16,904.62,GAS,24/12/13,
140489,CORONA ENERGY RETAIL 4 LTD,0886811131,17,"1,237.45",GAS,24/12/13,
140489,CORONA ENERGY RETAIL 4 LTD,0886811131,18,115.44,GAS,24/12/13,
140489,CORONA ENERGY RETAIL 4 LTD,0886811131,19,87.20,GAS,24/12/13,
140489,CORONA ENERGY RETAIL 4 LTD,0886811131,20,53.03,GAS,24/12/13,
140489,CORONA ENERGY RETAIL 4 LTD,0886811131,21,"1,095.30",GAS,24/12/13,
140489,CORONA ENERGY RETAIL 4 LTD,0886811131,22,"1,732.88",GAS,24/12/13,
140489,CORONA ENERGY RETAIL 4 LTD,0886811131,23,"1,219.90",GAS,24/12/13,
140489,CORONA ENERGY RETAIL 4 LTD,0886811131,24,559.47,GAS,24/12/13,
140489,CORONA ENERGY RETAIL 4 LTD,0886811131,25,845.87,GAS,24/12/13,
140489,CORONA ENERGY RETAIL 4 LTD,0886811131,26,430.29,GAS,24/12/13,
140489,CORONA ENERGY RETAIL 4 LTD,0886811131,27,293.69,GAS,24/12/13,
140489,CORONA ENERGY RETAIL 4 LTD,0886811131,28,937.15,GAS,24/12/13,
140489,CORONA ENERGY RETAIL 4 LTD,0886811131,29,912.08,GAS,24/12/13,
140489,CORONA ENERGY RETAIL 4 LTD,0886811131,30,"1,641.60",GAS,24/12/13,
140489,CORONA ENERGY RETAIL 4 LTD,0886811131,31,"1,369.80",GAS,24/12/13,
140490,CORONA ENERGY RETAIL 4 LTD,0886811132,1,387.41,GAS,24/12/13,"27,020.10"
140490,CORONA ENERGY RETAIL 4 LTD,0886811132,2,621.41,GAS,24/12/13,
140490,CORONA ENERGY RETAIL 4 LTD,0886811132,3,961.60,GAS,24/12/13,
140490,CORONA ENERGY RETAIL 4 LTD,0886811132,4,817.44,GAS,24/12/13,
140490,CORONA ENERGY RETAIL 4 LTD,0886811132,5,"1,462.65",GAS,24/12/13,
140490,CORONA ENERGY RETAIL 4 LTD,0886811132,6,505.75,GAS,24/12/13,
140490,CORONA ENERGY RETAIL 4 LTD,0886811132,7,"1,078.82",GAS,24/12/13,
140490,CORONA ENERGY RETAIL 4 LTD,0886811132,8,814.97,GAS,24/12/13,
140490,CORONA ENERGY RETAIL 4 LTD,0886811132,9,506.33,GAS,24/12/13,
140490,CORONA ENERGY RETAIL 4 LTD,0886811132,10,"1,336.52",GAS,24/12/13,
140490,CORONA ENERGY RETAIL 4 LTD,0886811132,11,70.93,GAS,24/12/13,
140490,CORONA ENERGY RETAIL 4 LTD,0886811132,12,649.95,GAS,24/12/13,
140490,CORONA ENERGY RETAIL 4 LTD,0886811132,13,816.61,GAS,24/12/13,
140490,CORONA ENERGY RETAIL 4 LTD,0886811132,14,708.45,GAS,24/12/13,
140490,CORONA ENERGY RETAIL 4 LTD,0886811132,15,556.95,GAS,24/12/13,
140490,CORONA ENERGY RETAIL 4 LTD,0886811132,16,718.83,GAS,24/12/13,
140490,CORONA ENERGY RETAIL 4 LTD,0886811132,17,45.03,GAS,24/12/13,
140490,CORONA ENERGY RETAIL 4 LTD,0886811132,18,"1,258.62",GAS,24/12/13,
140490,CORONA ENERGY RETAIL 4 LTD,0886811132,19,660.68,GAS,24/12/13,
140490,CORONA ENERGY RETAIL 4 LTD,0886811132,20,483.55,GAS,24/12/13,
140490,CORONA ENERGY RETAIL 4 LTD,0886811132,21,802.23,GAS,24/12/13,
140490,CORONA ENERGY RETAIL 4 LTD,0886811132,22,891.12,GAS,24/12/13,
140490,CORONA ENERGY RETAIL 4 LTD,0886811132,23,691.23,GAS,24/12/13,
140490,CORONA ENERGY RETAIL 4 LTD,0886811132,24,807.74,GAS,24/12/13,
140490,CORONA ENERGY RETAIL 4 LTD,0886811132,25,928.32,GAS,24/12/13,
140490,CORONA ENERGY RETAIL 4 LTD,0886811132,26,627.92,GAS,24/12/13,
140490,CORONA ENERGY RETAIL 4 LTD,0886811132,27,"1,167.69",GAS,24/12/13,
140490,CORONA ENERGY RETAIL 4 LTD,0886811132,28,557.40,GAS,24/12/13,
140490,CORONA ENERGY RETAIL 4 LTD,0886811132,29,"1,045.80",GAS,24/12/13,
140490,CORONA ENERGY RETAIL 4 LTD,0886811132,30,636.60,GAS,24/12/13,
140490,CORONA ENERGY RETAIL 4 LTD,0886811132,31,"4,401.55",GAS,24/12/13,
140491,CORONA ENERGY RETAIL 4 LTD,0886811133,1,587.59,GAS,24/12/13,"31,617.05"
140491,CORONA ENERGY RETAIL 4 LTD,0886811133,2,144.52,GAS,24/12/13,
140491,CORONA ENERGY RETAIL 4 LTD,0886811133,3,465.75,GAS,24/12/13,
140491,CORONA ENERGY RETAIL 4 LTD,0886811133,4,"1,703.68",GAS,24/12/13,
140491,CORONA ENERGY RETAIL 4 LTD,0886811133,5,801.66,GAS,24/12/13,
140491,CORONA ENERGY RETAIL 4 LTD,0886811133,6,768.35,GAS,24/12/13,
140491,CORONA ENERGY RETAIL 4 LTD,0886811133,7,"3,342.04",GAS,24/12/13,
140491,CORONA ENERGY RETAIL 4 LTD,0886811133,8,522.61,GAS,24/12/13,
140491,CORONA ENERGY RETAIL 4 LTD,0886811133,9,"1,286.36",GAS,24/12/13,
140491,CORONA ENERGY RETAIL 4 LTD,0886811133,10,475.80,GAS,24/12/13,
140491,CORONA ENERGY RETAIL 4 LTD,0886811133,11,"1,448.94",GAS,24/12/13,
140491,CORONA ENERGY RETAIL 4 LTD,0886811133,12,426.84,GAS,24/12/13,
140491,CORONA ENERGY RETAIL 4 LTD,0886811133,13,448.89,GAS,24/12/13,
140491,CORONA ENERGY RETAIL 4 LTD,0886811133,14,558.49,GAS,24/12/13,
140491,CORONA ENERGY RETAIL 4 LTD,0886811133,15,987.42,GAS,24/12/13,
140491,CORONA ENERGY RETAIL 4 LTD,0886811133,16,634.96,GAS,24/12/13,
140491,CORONA ENERGY RETAIL 4 LTD,0886811133,17,746.92,GAS,24/12/13,
140491,CORONA ENERGY RETAIL 4 LTD,0886811133,18,"2,476.40",GAS,24/12/13,
140491,CORONA ENERGY RETAIL 4 LTD,0886811133,19,898.00,GAS,24/12/13,
140491,CORONA ENERGY RETAIL 4 LTD,0886811133,20,953.91,GAS,24/12/13,
140491,CORONA ENERGY RETAIL 4 LTD,0886811133,21,604.87,GAS,24/12/13,
140491,CORONA ENERGY RETAIL 4 LTD,0886811133,22,864.20,GAS,24/12/13,
140491,CORONA ENERGY RETAIL 4 LTD,0886811133,23,"1,081.21",GAS,24/12/13,
140491,CORONA ENERGY RETAIL 4 LTD,0886811133,24,776.94,GAS,24/12/13,
140491,CORONA ENERGY RETAIL 4 LTD,0886811133,25,767.84,GAS,24/12/13,
140491,CORONA ENERGY RETAIL 4 LTD,0886811133,26,637.42,GAS,24/12/13,
140491,CORONA ENERGY RETAIL 4 LTD,0886811133,27,765.18,GAS,24/12/13,
140491,CORONA ENERGY RETAIL 4 LTD,0886811133,28,"1,417.05",GAS,24/12/13,
140491,CORONA ENERGY RETAIL 4 LTD,0886811133,29,"1,913.13",GAS,24/12/13,
140491,CORONA ENERGY RETAIL 4 LTD,0886811133,30,964.01,GAS,24/12/13,
140491,CORONA ENERGY RETAIL 4 LTD,0886811133,31,926.40,GAS,24/12/13,
140491,CORONA ENERGY RETAIL 4 LTD,0886811133,32,"1,219.67",GAS,24/12/13,
